Workbook

Sheet Klasszik
B1: Klasszik karakter? | C1: IGEN | E1: nap/jhét | F1: dátum | G1: játékhét | H1: EXT | I1: elérhető fordulószám | J1: venni kell | K1: összes várásolt | L1: dátum2
B2: Indulás/reinkarnálás dátuma: | C2: 2021-03-01 | E2: =IF(F2>$C$8,6,7) -> 7 | F2: =C2 -> 2021-03-01 | G2: =IF(C1="IGEN",116,C4) -> 116 | H2: =IF(MONTH(F3)>MONTH(F2),VLOOKUP(G2,$P$13:$R$19,IF(F2>$C$7,3,2),1),0) -> 0 | I2: =C5+20 -> 21 | J2: =IF(G2-I2<0,I2-G2,0) -> 0 | L2: =F2 -> 2021-03-01
E3: =IF(F2>$C$8,6,7) -> 7 | F3: =F2+E3 -> 2021-03-08 | G3: =G2+H2+J2+IF($C$1="IGEN",IF(I2<100,20,1),1) -> 136 | H3: =IF(YEAR(F4)=YEAR(F3),IF(MONTH(F4)>MONTH(F3),VLOOKUP(G3,$P$13:$R$19,IF(F3>$C$7,3,2),1),0),VLOOKUP(G3,$P$13:$R$19,IF(F3>$C$7,3,2),1)) -> 0 | I3: =I2+20 -> 41 | J3: =IF(G3-I3<0,I3-G3,0) -> 0 | K3: =J3+K2 -> 0 | L3: =F3 -> 2021-03-08
B4: Karakter induló játékhete (ha nem klasszik) | C4: 40 | E4: 7 | F4: =F3+E4 -> 2021-03-15 | G4: 156 | H4: 0 | I4: =I3+20 -> 61 | J4: 0 | K4: =J4+K3 -> 0 | L4: 2021-03-15
B5: Jelenlegi fordulószáma (ha nem klasszik) | C5: 1 | E5: 7 | F5: 2021-03-22 | G5: 176 | H5: 0 | I5: 81 | J5: 0 | K5: 0 | L5: 2021-03-22
E6: 7 | F6: 2021-03-29 | G6: 196 | H6: 50 | I6: 101 | J6: 0 | K6: 0 | L6: 2021-03-29
B7: Tudati ismétlés megszerzésének dátuma: | C7: 2021-05-01 | E7: 7 | F7: 2021-04-05 | G7: 247 | H7: 0 | I7: 121 | J7: 0 | K7: 0 | L7: 2021-04-05
B8: 6 napos játékhét megszerzésének dátuma: | C8: 2021-07-01 | E8: 7 | F8: 2021-04-12 | G8: 248 | H8: 0 | I8: 141 | J8: 0 | K8: 0 | L8: 2021-04-12 | T8: IGEN
E9: 7 | F9: 2021-04-19 | G9: 249 | H9: 0 | I9: 161 | J9: 0 | K9: 0 | L9: 2021-04-19 | T9: NEM
E10: 7 | F10: 2021-04-26 | G10: 250 | H10: 40 | I10: 181 | J10: 0 | K10: 0 | L10: 2021-04-26
B11: Maximum vehető játékhét | C11: 1800 | E11: 7 | F11: 2021-05-03 | G11: 291 | H11: 0 | I11: 201 | J11: 0 | K11: 0 | L11: 2021-05-03
B12: szükséges EXT venni db: | C12: =VLOOKUP(C11,G:K,5,1) -> 1150 | E12: 7 | F12: 2021-05-10 | G12: 292 | H12: 0 | I12: 221 | J12: 0 | K12: 0 | L12: 2021-05-10
B13: HUF | C13: =C12*50 -> 57500 | E13: 7 | F13: 2021-05-17 | G13: 293 | H13: 0 | I13: 241 | J13: 0 | K13: 0 | L13: 2021-05-17 | P13: 0 | Q13: 50 | R13: 50 | T13: 200. játékhétig +50 forduló kérhető.
B14: (abban az esetben, ha minden héten maximum lépés van) | E14: 7 | F14: 2021-05-24 | G14: 294 | H14: 0 | I14: 261 | J14: 0 | K14: 0 | L14: 2021-05-24 | P14: 200 | Q14: 40 | R14: 50 | T14: 201-350. játékhétig +40.
E15: 7 | F15: 2021-05-31 | G15: 295 | H15: 50 | I15: 281 | J15: 0 | K15: 0 | L15: 2021-05-31 | P15: 350 | Q15: 30 | R15: 40 | T15: 351-500. játékhétig +30.
B16: cél fordulószám | C16: 1500 | E16: 7 | F16: 2021-06-07 | G16: 346 | H16: 0 | I16: 301 | J16: 0 | K16: 0 | L16: 2021-06-07 | P16: 500 | Q16: 20 | R16: 30 | T16: 501-650. játékhétig +20.
B17: szükséges EXT venni db: | C17: =VLOOKUP(C16,G:K,5,1) -> 880 | E17: 7 | F17: 2021-06-14 | G17: 347 | H17: 0 | I17: 321 | J17: 0 | K17: 0 | L17: 2021-06-14 | P17: 650 | Q17: 10 | R17: 20 | T17: 651-800. játékhétig +10.
B18: HUF | C18: =C17*50 -> 44000 | E18: 7 | F18: 2021-06-21 | G18: 348 | H18: 0 | I18: 341 | J18: 0 | K18: 0 | L18: 2021-06-21 | P18: 800 | Q18: 5 | R18: 10 | T18: 801-950. játékhétig +5.
B19: Cél fordulószám elérésének legkorábbi dátuma | C19: =VLOOKUP(C16,I:L,4,1) -> 2022-05-31 | E19: 7 | F19: 2021-06-28 | G19: 349 | H19: 50 | I19: 361 | J19: 12 | K19: 12 | L19: 2021-06-28 | P19: 950 | Q19: 3 | R19: 5 | T19: 950. játékhéttől +3.
E20: 7 | F20: 2021-07-05 | G20: 412 | H20: 0 | I20: 381 | J20: 0 | K20: 12 | L20: 2021-07-05
E21: 6 | F21: 2021-07-11 | G21: 413 | H21: 0 | I21: 401 | J21: 0 | K21: 12 | L21: 2021-07-11
E22: 6 | F22: 2021-07-17 | G22: 414 | H22: 0 | I22: 421 | J22: 7 | K22: 19 | L22: 2021-07-17
E23: 6 | F23: 2021-07-23 | G23: 422 | H23: 0 | I23: 441 | J23: 19 | K23: 38 | L23: 2021-07-23
E24: 6 | F24: 2021-07-29 | G24: 442 | H24: 40 | I24: 461 | J24: 19 | K24: 57 | L24: 2021-07-29
E25: 6 | F25: 2021-08-04 | G25: 502 | H25: 0 | I25: 481 | J25: 0 | K25: 57 | L25: 2021-08-04
E26: 6 | F26: 2021-08-10 | G26: 503 | H26: 0 | I26: 501 | J26: 0 | K26: 57 | L26: 2021-08-10
E27: 6 | F27: 2021-08-16 | G27: 504 | H27: 0 | I27: 521 | J27: 17 | K27: 74 | L27: 2021-08-16
E28: 6 | F28: 2021-08-22 | G28: 522 | H28: 0 | I28: 541 | J28: 19 | K28: 93 | L28: 2021-08-22
E29: 6 | F29: 2021-08-28 | G29: 542 | H29: 30 | I29: 561 | J29: 19 | K29: 112 | L29: 2021-08-28
E30: 6 | F30: 2021-09-03 | G30: 592 | H30: 0 | I30: 581 | J30: 0 | K30: 112 | L30: 2021-09-03
E31: 6 | F31: 2021-09-09 | G31: 593 | H31: 0 | I31: 601 | J31: 8 | K31: 120 | L31: 2021-09-09
E32: 6 | F32: 2021-09-15 | G32: 602 | H32: 0 | I32: 621 | J32: 19 | K32: 139 | L32: 2021-09-15
E33: 6 | F33: 2021-09-21 | G33: 622 | H33: 0 | I33: 641 | J33: 19 | K33: 158 | L33: 2021-09-21
E34: 6 | F34: 2021-09-27 | G34: 642 | H34: 30 | I34: 661 | J34: 19 | K34: 177 | L34: 2021-09-27
E35: 6 | F35: 2021-10-03 | G35: 692 | H35: 0 | I35: 681 | J35: 0 | K35: 177 | L35: 2021-10-03
E36: 6 | F36: 2021-10-09 | G36: 693 | H36: 0 | I36: 701 | J36: 8 | K36: 185 | L36: 2021-10-09
E37: 6 | F37: 2021-10-15 | G37: 702 | H37: 0 | I37: 721 | J37: 19 | K37: 204 | L37: 2021-10-15
E38: 6 | F38: 2021-10-21 | G38: 722 | H38: 0 | I38: 741 | J38: 19 | K38: 223 | L38: 2021-10-21
E39: 6 | F39: 2021-10-27 | G39: 742 | H39: 20 | I39: 761 | J39: 19 | K39: 242 | L39: 2021-10-27
E40: 6 | F40: 2021-11-02 | G40: 782 | H40: 0 | I40: 781 | J40: 0 | K40: 242 | L40: 2021-11-02
E41: 6 | F41: 2021-11-08 | G41: 783 | H41: 0 | I41: 801 | J41: 18 | K41: 260 | L41: 2021-11-08
E42: 6 | F42: 2021-11-14 | G42: 802 | H42: 0 | I42: 821 | J42: 19 | K42: 279 | L42: 2021-11-14
E43: 6 | F43: 2021-11-20 | G43: 822 | H43: 0 | I43: 841 | J43: 19 | K43: 298 | L43: 2021-11-20
E44: 6 | F44: 2021-11-26 | G44: 842 | H44: 10 | I44: 861 | J44: 19 | K44: 317 | L44: 2021-11-26
E45: 6 | F45: 2021-12-02 | G45: 872 | H45: 0 | I45: 881 | J45: 9 | K45: 326 | L45: 2021-12-02
E46: 6 | F46: 2021-12-08 | G46: 882 | H46: 0 | I46: 901 | J46: 19 | K46: 345 | L46: 2021-12-08
E47: 6 | F47: 2021-12-14 | G47: 902 | H47: 0 | I47: 921 | J47: 19 | K47: 364 | L47: 2021-12-14
E48: 6 | F48: 2021-12-20 | G48: 922 | H48: 0 | I48: 941 | J48: 19 | K48: 383 | L48: 2021-12-20
E49: 6 | F49: 2021-12-26 | G49: 942 | H49: 10 | I49: 961 | J49: 19 | K49: 402 | L49: 2021-12-26
E50: 6 | F50: 2022-01-01 | G50: 972 | H50: 0 | I50: 981 | J50: 9 | K50: 411 | L50: 2022-01-01
E51: 6 | F51: 2022-01-07 | G51: 982 | H51: 0 | I51: 1001 | J51: 19 | K51: 430 | L51: 2022-01-07
E52: 6 | F52: 2022-01-13 | G52: 1002 | H52: 0 | I52: 1021 | J52: 19 | K52: 449 | L52: 2022-01-13
E53: 6 | F53: 2022-01-19 | G53: 1022 | H53: 0 | I53: 1041 | J53: 19 | K53: 468 | L53: 2022-01-19
E54: 6 | F54: 2022-01-25 | G54: 1042 | H54: 0 | I54: 1061 | J54: 19 | K54: 487 | L54: 2022-01-25
E55: 6 | F55: 2022-01-31 | G55: 1062 | H55: 5 | I55: 1081 | J55: 19 | K55: 506 | L55: 2022-01-31
E56: 6 | F56: 2022-02-06 | G56: 1087 | H56: 0 | I56: 1101 | J56: 14 | K56: 520 | L56: 2022-02-06
E57: 6 | F57: 2022-02-12 | G57: 1102 | H57: 0 | I57: 1121 | J57: 19 | K57: 539 | L57: 2022-02-12
E58: 6 | F58: 2022-02-18 | G58: 1122 | H58: 0 | I58: 1141 | J58: 19 | K58: 558 | L58: 2022-02-18
E59: 6 | F59: 2022-02-24 | G59: 1142 | H59: 5 | I59: 1161 | J59: 19 | K59: 577 | L59: 2022-02-24
E60: 6 | F60: 2022-03-02 | G60: 1167 | H60: 0 | I60: 1181 | J60: 14 | K60: 591 | L60: 2022-03-02
E61: 6 | F61: 2022-03-08 | G61: 1182 | H61: 0 | I61: 1201 | J61: 19 | K61: 610 | L61: 2022-03-08
E62: 6 | F62: 2022-03-14 | G62: 1202 | H62: 0 | I62: 1221 | J62: 19 | K62: 629 | L62: 2022-03-14
E63: 6 | F63: 2022-03-20 | G63: 1222 | H63: 0 | I63: 1241 | J63: 19 | K63: 648 | L63: 2022-03-20
E64: 6 | F64: 2022-03-26 | G64: 1242 | H64: 5 | I64: 1261 | J64: 19 | K64: 667 | L64: 2022-03-26
E65: 6 | F65: 2022-04-01 | G65: 1267 | H65: 0 | I65: 1281 | J65: 14 | K65: 681 | L65: 2022-04-01
E66: 6 | F66: 2022-04-07 | G66: 1282 | H66: 0 | I66: 1301 | J66: 19 | K66: 700 | L66: 2022-04-07
E67: =IF(F66>$C$8,6,7) -> 6 | F67: 2022-04-13 | G67: =G66+H66+J66+IF($C$1="IGEN",IF(I66<100,20,1),1) -> 1302 | H67: =IF(YEAR(F68)=YEAR(F67),IF(MONTH(F68)>MONTH(F67),VLOOKUP(G67,$P$13:$R$19,IF(F67>$C$7,3,2),1),0),VLOOKUP(G67,$P$13:$R$19,IF(F67>$C$7,3,2),1)) -> 0 | I67: 1321 | J67: =IF(G67-I67<0,I67-G67,0) -> 19 | K67: 719 | L67: =F67 -> 2022-04-13
E68: 6 | F68: =F67+E68 -> 2022-04-19 | G68: 1322 | H68: 0 | I68: =I67+20 -> 1341 | J68: 19 | K68: =J68+K67 -> 738 | L68: 2022-04-19
E69: 6 | F69: 2022-04-25 | G69: 1342 | H69: 5 | I69: 1361 | J69: 19 | K69: 757 | L69: 2022-04-25
E70: 6 | F70: 2022-05-01 | G70: 1367 | H70: 0 | I70: 1381 | J70: 14 | K70: 771 | L70: 2022-05-01
E71: 6 | F71: 2022-05-07 | G71: 1382 | H71: 0 | I71: 1401 | J71: 19 | K71: 790 | L71: 2022-05-07
E72: 6 | F72: 2022-05-13 | G72: 1402 | H72: 0 | I72: 1421 | J72: 19 | K72: 809 | L72: 2022-05-13
E73: 6 | F73: 2022-05-19 | G73: 1422 | H73: 0 | I73: 1441 | J73: 19 | K73: 828 | L73: 2022-05-19
E74: 6 | F74: 2022-05-25 | G74: 1442 | H74: 0 | I74: 1461 | J74: 19 | K74: 847 | L74: 2022-05-25
E75: 6 | F75: 2022-05-31 | G75: 1462 | H75: 5 | I75: 1481 | J75: 19 | K75: 866 | L75: 2022-05-31
E76: 6 | F76: 2022-06-06 | G76: 1487 | H76: 0 | I76: 1501 | J76: 14 | K76: 880 | L76: 2022-06-06
E77: 6 | F77: 2022-06-12 | G77: 1502 | H77: 0 | I77: 1521 | J77: 19 | K77: 899 | L77: 2022-06-12
E78: 6 | F78: 2022-06-18 | G78: 1522 | H78: 0 | I78: 1541 | J78: 19 | K78: 918 | L78: 2022-06-18
E79: 6 | F79: 2022-06-24 | G79: 1542 | H79: 0 | I79: 1561 | J79: 19 | K79: 937 | L79: 2022-06-24
E80: 6 | F80: 2022-06-30 | G80: 1562 | H80: 5 | I80: 1581 | J80: 19 | K80: 956 | L80: 2022-06-30
E81: 6 | F81: 2022-07-06 | G81: 1587 | H81: 0 | I81: 1601 | J81: 14 | K81: 970 | L81: 2022-07-06
E82: 6 | F82: 2022-07-12 | G82: 1602 | H82: 0 | I82: 1621 | J82: 19 | K82: 989 | L82: 2022-07-12
E83: 6 | F83: 2022-07-18 | G83: 1622 | H83: 0 | I83: 1641 | J83: 19 | K83: 1008 | L83: 2022-07-18
E84: 6 | F84: 2022-07-24 | G84: 1642 | H84: 0 | I84: 1661 | J84: 19 | K84: 1027 | L84: 2022-07-24
E85: 6 | F85: 2022-07-30 | G85: 1662 | H85: 5 | I85: 1681 | J85: 19 | K85: 1046 | L85: 2022-07-30
E86: 6 | F86: 2022-08-05 | G86: 1687 | H86: 0 | I86: 1701 | J86: 14 | K86: 1060 | L86: 2022-08-05
E87: 6 | F87: 2022-08-11 | G87: 1702 | H87: 0 | I87: 1721 | J87: 19 | K87: 1079 | L87: 2022-08-11
E88: 6 | F88: 2022-08-17 | G88: 1722 | H88: 0 | I88: 1741 | J88: 19 | K88: 1098 | L88: 2022-08-17
E89: 6 | F89: 2022-08-23 | G89: 1742 | H89: 0 | I89: 1761 | J89: 19 | K89: 1117 | L89: 2022-08-23
E90: 6 | F90: 2022-08-29 | G90: 1762 | H90: 5 | I90: 1781 | J90: 19 | K90: 1136 | L90: 2022-08-29
E91: 6 | F91: 2022-09-04 | G91: 1787 | H91: 0 | I91: 1801 | J91: 14 | K91: 1150 | L91: 2022-09-04
E92: 6 | F92: 2022-09-10 | G92: 1802 | H92: 0 | I92: 1821 | J92: 19 | K92: 1169 | L92: 2022-09-10
E93: 6 | F93: 2022-09-16 | G93: 1822 | H93: 0 | I93: 1841 | J93: 19 | K93: 1188 | L93: 2022-09-16
E94: 6 | F94: 2022-09-22 | G94: 1842 | H94: 0 | I94: 1861 | J94: 19 | K94: 1207 | L94: 2022-09-22
E95: 6 | F95: 2022-09-28 | G95: 1862 | H95: 5 | I95: 1881 | J95: 19 | K95: 1226 | L95: 2022-09-28
E96: 6 | F96: 2022-10-04 | G96: 1887 | H96: 0 | I96: 1901 | J96: 14 | K96: 1240 | L96: 2022-10-04
E97: 6 | F97: 2022-10-10 | G97: 1902 | H97: 0 | I97: 1921 | J97: 19 | K97: 1259 | L97: 2022-10-10
E98: 6 | F98: 2022-10-16 | G98: 1922 | H98: 0 | I98: 1941 | J98: 19 | K98: 1278 | L98: 2022-10-16
E99: 6 | F99: 2022-10-22 | G99: 1942 | H99: 0 | I99: 1961 | J99: 19 | K99: 1297 | L99: 2022-10-22
E100: 6 | F100: 2022-10-28 | G100: 1962 | H100: 5 | I100: 1981 | J100: 19 | K100: 1316 | L100: 2022-10-28
E101: 6 | F101: 2022-11-03 | G101: 1987 | H101: 0 | I101: 2001 | J101: 14 | K101: 1330 | L101: 2022-11-03
E102: 6 | F102: 2022-11-09 | G102: 2002 | H102: 0 | I102: 2021 | J102: 19 | K102: 1349 | L102: 2022-11-09
E103: 6 | F103: 2022-11-15 | G103: 2022 | H103: 0 | I103: 2041 | J103: 19 | K103: 1368 | L103: 2022-11-15
E104: 6 | F104: 2022-11-21 | G104: 2042 | H104: 0 | I104: 2061 | J104: 19 | K104: 1387 | L104: 2022-11-21
E105: 6 | F105: 2022-11-27 | G105: 2062 | H105: 5 | I105: 2081 | J105: 19 | K105: 1406 | L105: 2022-11-27
E106: 6 | F106: 2022-12-03 | G106: 2087 | H106: 0 | I106: 2101 | J106: 14 | K106: 1420 | L106: 2022-12-03
E107: 6 | F107: 2022-12-09 | G107: 2102 | H107: 0 | I107: 2121 | J107: 19 | K107: 1439 | L107: 2022-12-09
E108: 6 | F108: 2022-12-15 | G108: 2122 | H108: 0 | I108: 2141 | J108: 19 | K108: 1458 | L108: 2022-12-15
E109: 6 | F109: 2022-12-21 | G109: 2142 | H109: 0 | I109: 2161 | J109: 19 | K109: 1477 | L109: 2022-12-21
E110: 6 | F110: 2022-12-27 | G110: 2162 | H110: 5 | I110: 2181 | J110: 19 | K110: 1496 | L110: 2022-12-27
E111: 6 | F111: 2023-01-02 | G111: 2187 | H111: 0 | I111: 2201 | J111: 14 | K111: 1510 | L111: 2023-01-02
E112: 6 | F112: 2023-01-08 | G112: 2202 | H112: 0 | I112: 2221 | J112: 19 | K112: 1529 | L112: 2023-01-08
E113: 6 | F113: 2023-01-14 | G113: 2222 | H113: 0 | I113: 2241 | J113: 19 | K113: 1548 | L113: 2023-01-14
E114: 6 | F114: 2023-01-20 | G114: 2242 | H114: 0 | I114: 2261 | J114: 19 | K114: 1567 | L114: 2023-01-20
E115: 6 | F115: 2023-01-26 | G115: 2262 | H115: 5 | I115: 2281 | J115: 19 | K115: 1586 | L115: 2023-01-26
E116: 6 | F116: 2023-02-01 | G116: 2287 | H116: 0 | I116: 2301 | J116: 14 | K116: 1600 | L116: 2023-02-01
E117: 6 | F117: 2023-02-07 | G117: 2302 | H117: 0 | I117: 2321 | J117: 19 | K117: 1619 | L117: 2023-02-07
E118: 6 | F118: 2023-02-13 | G118: 2322 | H118: 0 | I118: 2341 | J118: 19 | K118: 1638 | L118: 2023-02-13
E119: 6 | F119: 2023-02-19 | G119: 2342 | H119: 0 | I119: 2361 | J119: 19 | K119: 1657 | L119: 2023-02-19
E120: 6 | F120: 2023-02-25 | G120: 2362 | H120: 5 | I120: 2381 | J120: 19 | K120: 1676 | L120: 2023-02-25
E121: 6 | F121: 2023-03-03 | G121: 2387 | H121: 0 | I121: 2401 | J121: 14 | K121: 1690 | L121: 2023-03-03
E122: 6 | F122: 2023-03-09 | G122: 2402 | H122: 0 | I122: 2421 | J122: 19 | K122: 1709 | L122: 2023-03-09
E123: 6 | F123: 2023-03-15 | G123: 2422 | H123: 0 | I123: 2441 | J123: 19 | K123: 1728 | L123: 2023-03-15
E124: 6 | F124: 2023-03-21 | G124: 2442 | H124: 0 | I124: 2461 | J124: 19 | K124: 1747 | L124: 2023-03-21
E125: 6 | F125: 2023-03-27 | G125: 2462 | H125: 5 | I125: 2481 | J125: 19 | K125: 1766 | L125: 2023-03-27
E126: 6 | F126: 2023-04-02 | G126: 2487 | H126: 0 | I126: 2501 | J126: 14 | K126: 1780 | L126: 2023-04-02
E127: 6 | F127: 2023-04-08 | G127: 2502 | H127: 0 | I127: 2521 | J127: 19 | K127: 1799 | L127: 2023-04-08
E128: 6 | F128: 2023-04-14 | G128: 2522 | H128: 0 | I128: 2541 | J128: 19 | K128: 1818 | L128: 2023-04-14
E129: 6 | F129: 2023-04-20 | G129: 2542 | H129: 0 | I129: 2561 | J129: 19 | K129: 1837 | L129: 2023-04-20
E130: 6 | F130: 2023-04-26 | G130: 2562 | H130: 5 | I130: 2581 | J130: 19 | K130: 1856 | L130: 2023-04-26
E131: =IF(F130>$C$8,6,7) -> 6 | F131: 2023-05-02 | G131: =G130+H130+J130+IF($C$1="IGEN",IF(I130<100,20,1),1) -> 2587 | H131: =IF(YEAR(F132)=YEAR(F131),IF(MONTH(F132)>MONTH(F131),VLOOKUP(G131,$P$13:$R$19,IF(F131>$C$7,3,2),1),0),VLOOKUP(G131,$P$13:$R$19,IF(F131>$C$7,3,2),1)) -> 0 | I131: 2601 | J131: =IF(G131-I131<0,I131-G131,0) -> 14 | K131: 1870 | L131: =F131 -> 2023-05-02
E132: 6 | F132: =F131+E132 -> 2023-05-08 | G132: 2602 | H132: 0 | I132: =I131+20 -> 2621 | J132: 19 | K132: =J132+K131 -> 1889 | L132: 2023-05-08
E133: 6 | F133: 2023-05-14 | G133: 2622 | H133: 0 | I133: 2641 | J133: 19 | K133: 1908 | L133: 2023-05-14
E134: 6 | F134: 2023-05-20 | G134: 2642 | H134: 0 | I134: 2661 | J134: 19 | K134: 1927 | L134: 2023-05-20
E135: 6 | F135: 2023-05-26 | G135: 2662 | H135: 5 | I135: 2681 | J135: 19 | K135: 1946 | L135: 2023-05-26
E136: 6 | F136: 2023-06-01 | G136: 2687 | H136: 0 | I136: 2701 | J136: 14 | K136: 1960 | L136: 2023-06-01
E137: 6 | F137: 2023-06-07 | G137: 2702 | H137: 0 | I137: 2721 | J137: 19 | K137: 1979 | L137: 2023-06-07
E138: 6 | F138: 2023-06-13 | G138: 2722 | H138: 0 | I138: 2741 | J138: 19 | K138: 1998 | L138: 2023-06-13
E139: 6 | F139: 2023-06-19 | G139: 2742 | H139: 0 | I139: 2761 | J139: 19 | K139: 2017 | L139: 2023-06-19
E140: 6 | F140: 2023-06-25 | G140: 2762 | H140: 5 | I140: 2781 | J140: 19 | K140: 2036 | L140: 2023-06-25
E141: 6 | F141: 2023-07-01 | G141: 2787 | H141: 0 | I141: 2801 | J141: 14 | K141: 2050 | L141: 2023-07-01
E142: 6 | F142: 2023-07-07 | G142: 2802 | H142: 0 | I142: 2821 | J142: 19 | K142: 2069 | L142: 2023-07-07
E143: 6 | F143: 2023-07-13 | G143: 2822 | H143: 0 | I143: 2841 | J143: 19 | K143: 2088 | L143: 2023-07-13
E144: 6 | F144: 2023-07-19 | G144: 2842 | H144: 0 | I144: 2861 | J144: 19 | K144: 2107 | L144: 2023-07-19
E145: 6 | F145: 2023-07-25 | G145: 2862 | H145: 0 | I145: 2881 | J145: 19 | K145: 2126 | L145: 2023-07-25
E146: 6 | F146: 2023-07-31 | G146: 2882 | H146: 5 | I146: 2901 | J146: 19 | K146: 2145 | L146: 2023-07-31
E147: 6 | F147: 2023-08-06 | G147: 2907 | H147: 0 | I147: 2921 | J147: 14 | K147: 2159 | L147: 2023-08-06
E148: 6 | F148: 2023-08-12 | G148: 2922 | H148: 0 | I148: 2941 | J148: 19 | K148: 2178 | L148: 2023-08-12
E149: 6 | F149: 2023-08-18 | G149: 2942 | H149: 0 | I149: 2961 | J149: 19 | K149: 2197 | L149: 2023-08-18
E150: 6 | F150: 2023-08-24 | G150: 2962 | H150: 0 | I150: 2981 | J150: 19 | K150: 2216 | L150: 2023-08-24
E151: 6 | F151: 2023-08-30 | G151: 2982 | H151: 5 | I151: 3001 | J151: 19 | K151: 2235 | L151: 2023-08-30
E152: 6 | F152: 2023-09-05 | G152: 3007 | H152: 0 | I152: 3021 | J152: 14 | K152: 2249 | L152: 2023-09-05
E153: 6 | F153: 2023-09-11 | G153: 3022 | H153: 0 | I153: 3041 | J153: 19 | K153: 2268 | L153: 2023-09-11
E154: 6 | F154: 2023-09-17 | G154: 3042 | H154: 0 | I154: 3061 | J154: 19 | K154: 2287 | L154: 2023-09-17
E155: 6 | F155: 2023-09-23 | G155: 3062 | H155: 0 | I155: 3081 | J155: 19 | K155: 2306 | L155: 2023-09-23
E156: 6 | F156: 2023-09-29 | G156: 3082 | H156: 5 | I156: 3101 | J156: 19 | K156: 2325 | L156: 2023-09-29
E157: 6 | F157: 2023-10-05 | G157: 3107 | H157: 0 | I157: 3121 | J157: 14 | K157: 2339 | L157: 2023-10-05
E158: 6 | F158: 2023-10-11 | G158: 3122 | H158: 0 | I158: 3141 | J158: 19 | K158: 2358 | L158: 2023-10-11
E159: 6 | F159: 2023-10-17 | G159: 3142 | H159: 0 | I159: 3161 | J159: 19 | K159: 2377 | L159: 2023-10-17
E160: 6 | F160: 2023-10-23 | G160: 3162 | H160: 0 | I160: 3181 | J160: 19 | K160: 2396 | L160: 2023-10-23
E161: 6 | F161: 2023-10-29 | G161: 3182 | H161: 5 | I161: 3201 | J161: 19 | K161: 2415 | L161: 2023-10-29
E162: 6 | F162: 2023-11-04 | G162: 3207 | H162: 0 | I162: 3221 | J162: 14 | K162: 2429 | L162: 2023-11-04
E163: 6 | F163: 2023-11-10 | G163: 3222 | H163: 0 | I163: 3241 | J163: 19 | K163: 2448 | L163: 2023-11-10
E164: 6 | F164: 2023-11-16 | G164: 3242 | H164: 0 | I164: 3261 | J164: 19 | K164: 2467 | L164: 2023-11-16
E165: 6 | F165: 2023-11-22 | G165: 3262 | H165: 0 | I165: 3281 | J165: 19 | K165: 2486 | L165: 2023-11-22
E166: 6 | F166: 2023-11-28 | G166: 3282 | H166: 5 | I166: 3301 | J166: 19 | K166: 2505 | L166: 2023-11-28
E167: 6 | F167: 2023-12-04 | G167: 3307 | H167: 0 | I167: 3321 | J167: 14 | K167: 2519 | L167: 2023-12-04
E168: 6 | F168: 2023-12-10 | G168: 3322 | H168: 0 | I168: 3341 | J168: 19 | K168: 2538 | L168: 2023-12-10
E169: 6 | F169: 2023-12-16 | G169: 3342 | H169: 0 | I169: 3361 | J169: 19 | K169: 2557 | L169: 2023-12-16
E170: 6 | F170: 2023-12-22 | G170: 3362 | H170: 0 | I170: 3381 | J170: 19 | K170: 2576 | L170: 2023-12-22
E171: 6 | F171: 2023-12-28 | G171: 3382 | H171: 5 | I171: 3401 | J171: 19 | K171: 2595 | L171: 2023-12-28
E172: 6 | F172: 2024-01-03 | G172: 3407 | H172: 0 | I172: 3421 | J172: 14 | K172: 2609 | L172: 2024-01-03
E173: 6 | F173: 2024-01-09 | G173: 3422 | H173: 0 | I173: 3441 | J173: 19 | K173: 2628 | L173: 2024-01-09
E174: 6 | F174: 2024-01-15 | G174: 3442 | H174: 0 | I174: 3461 | J174: 19 | K174: 2647 | L174: 2024-01-15
E175: 6 | F175: 2024-01-21 | G175: 3462 | H175: 0 | I175: 3481 | J175: 19 | K175: 2666 | L175: 2024-01-21
E176: 6 | F176: 2024-01-27 | G176: 3482 | H176: 5 | I176: 3501 | J176: 19 | K176: 2685 | L176: 2024-01-27
E177: 6 | F177: 2024-02-02 | G177: 3507 | H177: 0 | I177: 3521 | J177: 14 | K177: 2699 | L177: 2024-02-02
E178: 6 | F178: 2024-02-08 | G178: 3522 | H178: 0 | I178: 3541 | J178: 19 | K178: 2718 | L178: 2024-02-08
E179: 6 | F179: 2024-02-14 | G179: 3542 | H179: 0 | I179: 3561 | J179: 19 | K179: 2737 | L179: 2024-02-14
E180: 6 | F180: 2024-02-20 | G180: 3562 | H180: 0 | I180: 3581 | J180: 19 | K180: 2756 | L180: 2024-02-20
E181: 6 | F181: 2024-02-26 | G181: 3582 | H181: 5 | I181: 3601 | J181: 19 | K181: 2775 | L181: 2024-02-26
E182: 6 | F182: 2024-03-03 | G182: 3607 | H182: 0 | I182: 3621 | J182: 14 | K182: 2789 | L182: 2024-03-03
E183: 6 | F183: 2024-03-09 | G183: 3622 | H183: 0 | I183: 3641 | J183: 19 | K183: 2808 | L183: 2024-03-09
E184: 6 | F184: 2024-03-15 | G184: 3642 | H184: 0 | I184: 3661 | J184: 19 | K184: 2827 | L184: 2024-03-15
E185: 6 | F185: 2024-03-21 | G185: 3662 | H185: 0 | I185: 3681 | J185: 19 | K185: 2846 | L185: 2024-03-21
E186: 6 | F186: 2024-03-27 | G186: 3682 | H186: 5 | I186: 3701 | J186: 19 | K186: 2865 | L186: 2024-03-27
E187: 6 | F187: 2024-04-02 | G187: 3707 | H187: 0 | I187: 3721 | J187: 14 | K187: 2879 | L187: 2024-04-02
E188: 6 | F188: 2024-04-08 | G188: 3722 | H188: 0 | I188: 3741 | J188: 19 | K188: 2898 | L188: 2024-04-08
E189: 6 | F189: 2024-04-14 | G189: 3742 | H189: 0 | I189: 3761 | J189: 19 | K189: 2917 | L189: 2024-04-14
E190: 6 | F190: 2024-04-20 | G190: 3762 | H190: 0 | I190: 3781 | J190: 19 | K190: 2936 | L190: 2024-04-20
E191: 6 | F191: 2024-04-26 | G191: 3782 | H191: 5 | I191: 3801 | J191: 19 | K191: 2955 | L191: 2024-04-26
E192: 6 | F192: 2024-05-02 | G192: 3807 | H192: 0 | I192: 3821 | J192: 14 | K192: 2969 | L192: 2024-05-02
E193: 6 | F193: 2024-05-08 | G193: 3822 | H193: 0 | I193: 3841 | J193: 19 | K193: 2988 | L193: 2024-05-08
E194: 6 | F194: 2024-05-14 | G194: 3842 | H194: 0 | I194: 3861 | J194: 19 | K194: 3007 | L194: 2024-05-14
E195: =IF(F194>$C$8,6,7) -> 6 | F195: 2024-05-20 | G195: =G194+H194+J194+IF($C$1="IGEN",IF(I194<100,20,1),1) -> 3862 | H195: =IF(YEAR(F196)=YEAR(F195),IF(MONTH(F196)>MONTH(F195),VLOOKUP(G195,$P$13:$R$19,IF(F195>$C$7,3,2),1),0),VLOOKUP(G195,$P$13:$R$19,IF(F195>$C$7,3,2),1)) -> 0 | I195: 3881 | J195: =IF(G195-I195<0,I195-G195,0) -> 19 | K195: 3026 | L195: =F195 -> 2024-05-20
E196: 6 | F196: =F195+E196 -> 2024-05-26 | G196: 3882 | H196: 5 | I196: =I195+20 -> 3901 | J196: 19 | K196: =J196+K195 -> 3045 | L196: 2024-05-26
E197: 6 | F197: 2024-06-01 | G197: 3907 | H197: 0 | I197: 3921 | J197: 14 | K197: 3059 | L197: 2024-06-01
E198: 6 | F198: 2024-06-07 | G198: 3922 | H198: 0 | I198: 3941 | J198: 19 | K198: 3078 | L198: 2024-06-07
E199: 6 | F199: 2024-06-13 | G199: 3942 | H199: 0 | I199: 3961 | J199: 19 | K199: 3097 | L199: 2024-06-13
E200: 6 | F200: 2024-06-19 | G200: 3962 | H200: 0 | I200: 3981 | J200: 19 | K200: 3116 | L200: 2024-06-19
... 310 more rows

Sheet Reinkarnált
B1: Klasszik karakter? | C1: NEM | E1: nap/jhét | F1: dátum | G1: játékhét | H1: EXT | I1: elérhető fordulószám | J1: venni kell | K1: összes várásolt | L1: dátum2
B2: Indulás/reinkarnálás dátuma: | C2: 2021-03-01 | E2: =IF(F2>$C$8,6,7) -> 7 | F2: =C2 -> 2021-03-01 | G2: =IF(C1="IGEN",116,C4) -> 1400 | H2: =IF(MONTH(F3)>MONTH(F2),VLOOKUP(G2,$P$13:$R$19,IF(F2>$C$7,3,2),1),0) -> 0 | I2: =C5+20 -> 21 | J2: =IF(G2-I2<0,I2-G2,0) -> 0 | L2: =F2 -> 2021-03-01
E3: =IF(F2>$C$8,6,7) -> 7 | F3: =F2+E3 -> 2021-03-08 | G3: =G2+H2+J2+IF($C$1="IGEN",IF(I2<100,20,1),1) -> 1401 | H3: =IF(YEAR(F4)=YEAR(F3),IF(MONTH(F4)>MONTH(F3),VLOOKUP(G3,$P$13:$R$19,IF(F3>$C$7,3,2),1),0),VLOOKUP(G3,$P$13:$R$19,IF(F3>$C$7,3,2),1)) -> 0 | I3: =I2+20 -> 41 | J3: =IF(G3-I3<0,I3-G3,0) -> 0 | K3: =J3+K2 -> 0 | L3: =F3 -> 2021-03-08
B4: Karakter induló játékhete (ha nem klasszik) | C4: 1400 | E4: 7 | F4: =F3+E4 -> 2021-03-15 | G4: 1402 | H4: 0 | I4: =I3+20 -> 61 | J4: 0 | K4: =J4+K3 -> 0 | L4: 2021-03-15
B5: Jelenlegi fordulószáma (ha nem klasszik) | C5: 1 | E5: 7 | F5: 2021-03-22 | G5: 1403 | H5: 0 | I5: 81 | J5: 0 | K5: 0 | L5: 2021-03-22
E6: 7 | F6: 2021-03-29 | G6: 1404 | H6: 3 | I6: 101 | J6: 0 | K6: 0 | L6: 2021-03-29
B7: Tudati ismétlés megszerzésének dátuma: | C7: 2021-05-01 | E7: 7 | F7: 2021-04-05 | G7: 1408 | H7: 0 | I7: 121 | J7: 0 | K7: 0 | L7: 2021-04-05
B8: 6 napos játékhét megszerzésének dátuma: | C8: 2021-07-01 | E8: 7 | F8: 2021-04-12 | G8: 1409 | H8: 0 | I8: 141 | J8: 0 | K8: 0 | L8: 2021-04-12 | T8: IGEN
E9: 7 | F9: 2021-04-19 | G9: 1410 | H9: 0 | I9: 161 | J9: 0 | K9: 0 | L9: 2021-04-19 | T9: NEM
E10: 7 | F10: 2021-04-26 | G10: 1411 | H10: 3 | I10: 181 | J10: 0 | K10: 0 | L10: 2021-04-26
B11: Maximum vehető játékhét | C11: 1800 | E11: 7 | F11: 2021-05-03 | G11: 1415 | H11: 0 | I11: 201 | J11: 0 | K11: 0 | L11: 2021-05-03
B12: szükséges EXT venni db: | C12: =VLOOKUP(C11,G:K,5,1) -> 226 | E12: 7 | F12: 2021-05-10 | G12: 1416 | H12: 0 | I12: 221 | J12: 0 | K12: 0 | L12: 2021-05-10
B13: HUF | C13: =C12*50 -> 11300 | E13: 7 | F13: 2021-05-17 | G13: 1417 | H13: 0 | I13: 241 | J13: 0 | K13: 0 | L13: 2021-05-17 | P13: 0 | Q13: 50 | R13: 50 | T13: 200. játékhétig +50 forduló kérhető.
B14: (abban az esetben, ha minden héten maximum lépés van) | E14: 7 | F14: 2021-05-24 | G14: 1418 | H14: 0 | I14: 261 | J14: 0 | K14: 0 | L14: 2021-05-24 | P14: 200 | Q14: 40 | R14: 50 | T14: 201-350. játékhétig +40.
E15: 7 | F15: 2021-05-31 | G15: 1419 | H15: 5 | I15: 281 | J15: 0 | K15: 0 | L15: 2021-05-31 | P15: 350 | Q15: 30 | R15: 40 | T15: 351-500. játékhétig +30.
B16: cél fordulószám | C16: 1500 | E16: 7 | F16: 2021-06-07 | G16: 1425 | H16: 0 | I16: 301 | J16: 0 | K16: 0 | L16: 2021-06-07 | P16: 500 | Q16: 20 | R16: 30 | T16: 501-650. játékhétig +20.
B17: szükséges EXT venni db: | C17: =VLOOKUP(C16,G:K,5,1) -> 0 | E17: 7 | F17: 2021-06-14 | G17: 1426 | H17: 0 | I17: 321 | J17: 0 | K17: 0 | L17: 2021-06-14 | P17: 650 | Q17: 10 | R17: 20 | T17: 651-800. játékhétig +10.
B18: HUF | C18: =C17*50 -> 0 | E18: 7 | F18: 2021-06-21 | G18: 1427 | H18: 0 | I18: 341 | J18: 0 | K18: 0 | L18: 2021-06-21 | P18: 800 | Q18: 5 | R18: 10 | T18: 801-950. játékhétig +5.
B19: Cél fordulószám elérésének legkorábbi dátuma | C19: =VLOOKUP(C16,I:L,4,1) -> 2022-05-31 | E19: 7 | F19: 2021-06-28 | G19: 1428 | H19: 5 | I19: 361 | J19: 0 | K19: 0 | L19: 2021-06-28 | P19: 950 | Q19: 3 | R19: 5 | T19: 950. játékhéttől +3.
E20: 7 | F20: 2021-07-05 | G20: 1434 | H20: 0 | I20: 381 | J20: 0 | K20: 0 | L20: 2021-07-05
E21: 6 | F21: 2021-07-11 | G21: 1435 | H21: 0 | I21: 401 | J21: 0 | K21: 0 | L21: 2021-07-11
E22: 6 | F22: 2021-07-17 | G22: 1436 | H22: 0 | I22: 421 | J22: 0 | K22: 0 | L22: 2021-07-17
E23: 6 | F23: 2021-07-23 | G23: 1437 | H23: 0 | I23: 441 | J23: 0 | K23: 0 | L23: 2021-07-23
E24: 6 | F24: 2021-07-29 | G24: 1438 | H24: 5 | I24: 461 | J24: 0 | K24: 0 | L24: 2021-07-29
E25: 6 | F25: 2021-08-04 | G25: 1444 | H25: 0 | I25: 481 | J25: 0 | K25: 0 | L25: 2021-08-04
E26: 6 | F26: 2021-08-10 | G26: 1445 | H26: 0 | I26: 501 | J26: 0 | K26: 0 | L26: 2021-08-10
E27: 6 | F27: 2021-08-16 | G27: 1446 | H27: 0 | I27: 521 | J27: 0 | K27: 0 | L27: 2021-08-16
E28: 6 | F28: 2021-08-22 | G28: 1447 | H28: 0 | I28: 541 | J28: 0 | K28: 0 | L28: 2021-08-22
E29: 6 | F29: 2021-08-28 | G29: 1448 | H29: 5 | I29: 561 | J29: 0 | K29: 0 | L29: 2021-08-28
E30: 6 | F30: 2021-09-03 | G30: 1454 | H30: 0 | I30: 581 | J30: 0 | K30: 0 | L30: 2021-09-03
E31: 6 | F31: 2021-09-09 | G31: 1455 | H31: 0 | I31: 601 | J31: 0 | K31: 0 | L31: 2021-09-09
E32: 6 | F32: 2021-09-15 | G32: 1456 | H32: 0 | I32: 621 | J32: 0 | K32: 0 | L32: 2021-09-15
E33: 6 | F33: 2021-09-21 | G33: 1457 | H33: 0 | I33: 641 | J33: 0 | K33: 0 | L33: 2021-09-21
E34: 6 | F34: 2021-09-27 | G34: 1458 | H34: 5 | I34: 661 | J34: 0 | K34: 0 | L34: 2021-09-27
E35: 6 | F35: 2021-10-03 | G35: 1464 | H35: 0 | I35: 681 | J35: 0 | K35: 0 | L35: 2021-10-03
E36: 6 | F36: 2021-10-09 | G36: 1465 | H36: 0 | I36: 701 | J36: 0 | K36: 0 | L36: 2021-10-09
E37: 6 | F37: 2021-10-15 | G37: 1466 | H37: 0 | I37: 721 | J37: 0 | K37: 0 | L37: 2021-10-15
E38: 6 | F38: 2021-10-21 | G38: 1467 | H38: 0 | I38: 741 | J38: 0 | K38: 0 | L38: 2021-10-21
E39: 6 | F39: 2021-10-27 | G39: 1468 | H39: 5 | I39: 761 | J39: 0 | K39: 0 | L39: 2021-10-27
E40: 6 | F40: 2021-11-02 | G40: 1474 | H40: 0 | I40: 781 | J40: 0 | K40: 0 | L40: 2021-11-02
E41: 6 | F41: 2021-11-08 | G41: 1475 | H41: 0 | I41: 801 | J41: 0 | K41: 0 | L41: 2021-11-08
E42: 6 | F42: 2021-11-14 | G42: 1476 | H42: 0 | I42: 821 | J42: 0 | K42: 0 | L42: 2021-11-14
E43: 6 | F43: 2021-11-20 | G43: 1477 | H43: 0 | I43: 841 | J43: 0 | K43: 0 | L43: 2021-11-20
E44: 6 | F44: 2021-11-26 | G44: 1478 | H44: 5 | I44: 861 | J44: 0 | K44: 0 | L44: 2021-11-26
E45: 6 | F45: 2021-12-02 | G45: 1484 | H45: 0 | I45: 881 | J45: 0 | K45: 0 | L45: 2021-12-02
E46: 6 | F46: 2021-12-08 | G46: 1485 | H46: 0 | I46: 901 | J46: 0 | K46: 0 | L46: 2021-12-08
E47: 6 | F47: 2021-12-14 | G47: 1486 | H47: 0 | I47: 921 | J47: 0 | K47: 0 | L47: 2021-12-14
E48: 6 | F48: 2021-12-20 | G48: 1487 | H48: 0 | I48: 941 | J48: 0 | K48: 0 | L48: 2021-12-20
E49: 6 | F49: 2021-12-26 | G49: 1488 | H49: 5 | I49: 961 | J49: 0 | K49: 0 | L49: 2021-12-26
E50: 6 | F50: 2022-01-01 | G50: 1494 | H50: 0 | I50: 981 | J50: 0 | K50: 0 | L50: 2022-01-01
E51: 6 | F51: 2022-01-07 | G51: 1495 | H51: 0 | I51: 1001 | J51: 0 | K51: 0 | L51: 2022-01-07
E52: 6 | F52: 2022-01-13 | G52: 1496 | H52: 0 | I52: 1021 | J52: 0 | K52: 0 | L52: 2022-01-13
E53: 6 | F53: 2022-01-19 | G53: 1497 | H53: 0 | I53: 1041 | J53: 0 | K53: 0 | L53: 2022-01-19
E54: 6 | F54: 2022-01-25 | G54: 1498 | H54: 0 | I54: 1061 | J54: 0 | K54: 0 | L54: 2022-01-25
E55: 6 | F55: 2022-01-31 | G55: 1499 | H55: 5 | I55: 1081 | J55: 0 | K55: 0 | L55: 2022-01-31
E56: 6 | F56: 2022-02-06 | G56: 1505 | H56: 0 | I56: 1101 | J56: 0 | K56: 0 | L56: 2022-02-06
E57: 6 | F57: 2022-02-12 | G57: 1506 | H57: 0 | I57: 1121 | J57: 0 | K57: 0 | L57: 2022-02-12
E58: 6 | F58: 2022-02-18 | G58: 1507 | H58: 0 | I58: 1141 | J58: 0 | K58: 0 | L58: 2022-02-18
E59: 6 | F59: 2022-02-24 | G59: 1508 | H59: 5 | I59: 1161 | J59: 0 | K59: 0 | L59: 2022-02-24
E60: 6 | F60: 2022-03-02 | G60: 1514 | H60: 0 | I60: 1181 | J60: 0 | K60: 0 | L60: 2022-03-02
E61: 6 | F61: 2022-03-08 | G61: 1515 | H61: 0 | I61: 1201 | J61: 0 | K61: 0 | L61: 2022-03-08
E62: 6 | F62: 2022-03-14 | G62: 1516 | H62: 0 | I62: 1221 | J62: 0 | K62: 0 | L62: 2022-03-14
E63: 6 | F63: 2022-03-20 | G63: 1517 | H63: 0 | I63: 1241 | J63: 0 | K63: 0 | L63: 2022-03-20
E64: 6 | F64: 2022-03-26 | G64: 1518 | H64: 5 | I64: 1261 | J64: 0 | K64: 0 | L64: 2022-03-26
E65: 6 | F65: 2022-04-01 | G65: 1524 | H65: 0 | I65: 1281 | J65: 0 | K65: 0 | L65: 2022-04-01
E66: 6 | F66: 2022-04-07 | G66: 1525 | H66: 0 | I66: 1301 | J66: 0 | K66: 0 | L66: 2022-04-07
E67: =IF(F66>$C$8,6,7) -> 6 | F67: 2022-04-13 | G67: =G66+H66+J66+IF($C$1="IGEN",IF(I66<100,20,1),1) -> 1526 | H67: =IF(YEAR(F68)=YEAR(F67),IF(MONTH(F68)>MONTH(F67),VLOOKUP(G67,$P$13:$R$19,IF(F67>$C$7,3,2),1),0),VLOOKUP(G67,$P$13:$R$19,IF(F67>$C$7,3,2),1)) -> 0 | I67: 1321 | J67: =IF(G67-I67<0,I67-G67,0) -> 0 | K67: 0 | L67: =F67 -> 2022-04-13
E68: 6 | F68: =F67+E68 -> 2022-04-19 | G68: 1527 | H68: 0 | I68: =I67+20 -> 1341 | J68: 0 | K68: =J68+K67 -> 0 | L68: 2022-04-19
E69: 6 | F69: 2022-04-25 | G69: 1528 | H69: 5 | I69: 1361 | J69: 0 | K69: 0 | L69: 2022-04-25
E70: 6 | F70: 2022-05-01 | G70: 1534 | H70: 0 | I70: 1381 | J70: 0 | K70: 0 | L70: 2022-05-01
E71: 6 | F71: 2022-05-07 | G71: 1535 | H71: 0 | I71: 1401 | J71: 0 | K71: 0 | L71: 2022-05-07
E72: 6 | F72: 2022-05-13 | G72: 1536 | H72: 0 | I72: 1421 | J72: 0 | K72: 0 | L72: 2022-05-13
E73: 6 | F73: 2022-05-19 | G73: 1537 | H73: 0 | I73: 1441 | J73: 0 | K73: 0 | L73: 2022-05-19
E74: 6 | F74: 2022-05-25 | G74: 1538 | H74: 0 | I74: 1461 | J74: 0 | K74: 0 | L74: 2022-05-25
E75: 6 | F75: 2022-05-31 | G75: 1539 | H75: 5 | I75: 1481 | J75: 0 | K75: 0 | L75: 2022-05-31
E76: 6 | F76: 2022-06-06 | G76: 1545 | H76: 0 | I76: 1501 | J76: 0 | K76: 0 | L76: 2022-06-06
E77: 6 | F77: 2022-06-12 | G77: 1546 | H77: 0 | I77: 1521 | J77: 0 | K77: 0 | L77: 2022-06-12
E78: 6 | F78: 2022-06-18 | G78: 1547 | H78: 0 | I78: 1541 | J78: 0 | K78: 0 | L78: 2022-06-18
E79: 6 | F79: 2022-06-24 | G79: 1548 | H79: 0 | I79: 1561 | J79: 13 | K79: 13 | L79: 2022-06-24
E80: 6 | F80: 2022-06-30 | G80: 1562 | H80: 5 | I80: 1581 | J80: 19 | K80: 32 | L80: 2022-06-30
E81: 6 | F81: 2022-07-06 | G81: 1587 | H81: 0 | I81: 1601 | J81: 14 | K81: 46 | L81: 2022-07-06
E82: 6 | F82: 2022-07-12 | G82: 1602 | H82: 0 | I82: 1621 | J82: 19 | K82: 65 | L82: 2022-07-12
E83: 6 | F83: 2022-07-18 | G83: 1622 | H83: 0 | I83: 1641 | J83: 19 | K83: 84 | L83: 2022-07-18
E84: 6 | F84: 2022-07-24 | G84: 1642 | H84: 0 | I84: 1661 | J84: 19 | K84: 103 | L84: 2022-07-24
E85: 6 | F85: 2022-07-30 | G85: 1662 | H85: 5 | I85: 1681 | J85: 19 | K85: 122 | L85: 2022-07-30
E86: 6 | F86: 2022-08-05 | G86: 1687 | H86: 0 | I86: 1701 | J86: 14 | K86: 136 | L86: 2022-08-05
E87: 6 | F87: 2022-08-11 | G87: 1702 | H87: 0 | I87: 1721 | J87: 19 | K87: 155 | L87: 2022-08-11
E88: 6 | F88: 2022-08-17 | G88: 1722 | H88: 0 | I88: 1741 | J88: 19 | K88: 174 | L88: 2022-08-17
E89: 6 | F89: 2022-08-23 | G89: 1742 | H89: 0 | I89: 1761 | J89: 19 | K89: 193 | L89: 2022-08-23
E90: 6 | F90: 2022-08-29 | G90: 1762 | H90: 5 | I90: 1781 | J90: 19 | K90: 212 | L90: 2022-08-29
E91: 6 | F91: 2022-09-04 | G91: 1787 | H91: 0 | I91: 1801 | J91: 14 | K91: 226 | L91: 2022-09-04
E92: 6 | F92: 2022-09-10 | G92: 1802 | H92: 0 | I92: 1821 | J92: 19 | K92: 245 | L92: 2022-09-10
E93: 6 | F93: 2022-09-16 | G93: 1822 | H93: 0 | I93: 1841 | J93: 19 | K93: 264 | L93: 2022-09-16
E94: 6 | F94: 2022-09-22 | G94: 1842 | H94: 0 | I94: 1861 | J94: 19 | K94: 283 | L94: 2022-09-22
E95: 6 | F95: 2022-09-28 | G95: 1862 | H95: 5 | I95: 1881 | J95: 19 | K95: 302 | L95: 2022-09-28
E96: 6 | F96: 2022-10-04 | G96: 1887 | H96: 0 | I96: 1901 | J96: 14 | K96: 316 | L96: 2022-10-04
E97: 6 | F97: 2022-10-10 | G97: 1902 | H97: 0 | I97: 1921 | J97: 19 | K97: 335 | L97: 2022-10-10
E98: 6 | F98: 2022-10-16 | G98: 1922 | H98: 0 | I98: 1941 | J98: 19 | K98: 354 | L98: 2022-10-16
E99: 6 | F99: 2022-10-22 | G99: 1942 | H99: 0 | I99: 1961 | J99: 19 | K99: 373 | L99: 2022-10-22
E100: 6 | F100: 2022-10-28 | G100: 1962 | H100: 5 | I100: 1981 | J100: 19 | K100: 392 | L100: 2022-10-28
E101: 6 | F101: 2022-11-03 | G101: 1987 | H101: 0 | I101: 2001 | J101: 14 | K101: 406 | L101: 2022-11-03
E102: 6 | F102: 2022-11-09 | G102: 2002 | H102: 0 | I102: 2021 | J102: 19 | K102: 425 | L102: 2022-11-09
E103: 6 | F103: 2022-11-15 | G103: 2022 | H103: 0 | I103: 2041 | J103: 19 | K103: 444 | L103: 2022-11-15
E104: 6 | F104: 2022-11-21 | G104: 2042 | H104: 0 | I104: 2061 | J104: 19 | K104: 463 | L104: 2022-11-21
E105: 6 | F105: 2022-11-27 | G105: 2062 | H105: 5 | I105: 2081 | J105: 19 | K105: 482 | L105: 2022-11-27
E106: 6 | F106: 2022-12-03 | G106: 2087 | H106: 0 | I106: 2101 | J106: 14 | K106: 496 | L106: 2022-12-03
E107: 6 | F107: 2022-12-09 | G107: 2102 | H107: 0 | I107: 2121 | J107: 19 | K107: 515 | L107: 2022-12-09
E108: 6 | F108: 2022-12-15 | G108: 2122 | H108: 0 | I108: 2141 | J108: 19 | K108: 534 | L108: 2022-12-15
E109: 6 | F109: 2022-12-21 | G109: 2142 | H109: 0 | I109: 2161 | J109: 19 | K109: 553 | L109: 2022-12-21
E110: 6 | F110: 2022-12-27 | G110: 2162 | H110: 5 | I110: 2181 | J110: 19 | K110: 572 | L110: 2022-12-27
E111: 6 | F111: 2023-01-02 | G111: 2187 | H111: 0 | I111: 2201 | J111: 14 | K111: 586 | L111: 2023-01-02
E112: 6 | F112: 2023-01-08 | G112: 2202 | H112: 0 | I112: 2221 | J112: 19 | K112: 605 | L112: 2023-01-08
E113: 6 | F113: 2023-01-14 | G113: 2222 | H113: 0 | I113: 2241 | J113: 19 | K113: 624 | L113: 2023-01-14
E114: 6 | F114: 2023-01-20 | G114: 2242 | H114: 0 | I114: 2261 | J114: 19 | K114: 643 | L114: 2023-01-20
E115: 6 | F115: 2023-01-26 | G115: 2262 | H115: 5 | I115: 2281 | J115: 19 | K115: 662 | L115: 2023-01-26
E116: 6 | F116: 2023-02-01 | G116: 2287 | H116: 0 | I116: 2301 | J116: 14 | K116: 676 | L116: 2023-02-01
E117: 6 | F117: 2023-02-07 | G117: 2302 | H117: 0 | I117: 2321 | J117: 19 | K117: 695 | L117: 2023-02-07
E118: 6 | F118: 2023-02-13 | G118: 2322 | H118: 0 | I118: 2341 | J118: 19 | K118: 714 | L118: 2023-02-13
E119: 6 | F119: 2023-02-19 | G119: 2342 | H119: 0 | I119: 2361 | J119: 19 | K119: 733 | L119: 2023-02-19
E120: 6 | F120: 2023-02-25 | G120: 2362 | H120: 5 | I120: 2381 | J120: 19 | K120: 752 | L120: 2023-02-25
E121: 6 | F121: 2023-03-03 | G121: 2387 | H121: 0 | I121: 2401 | J121: 14 | K121: 766 | L121: 2023-03-03
E122: 6 | F122: 2023-03-09 | G122: 2402 | H122: 0 | I122: 2421 | J122: 19 | K122: 785 | L122: 2023-03-09
E123: 6 | F123: 2023-03-15 | G123: 2422 | H123: 0 | I123: 2441 | J123: 19 | K123: 804 | L123: 2023-03-15
E124: 6 | F124: 2023-03-21 | G124: 2442 | H124: 0 | I124: 2461 | J124: 19 | K124: 823 | L124: 2023-03-21
E125: 6 | F125: 2023-03-27 | G125: 2462 | H125: 5 | I125: 2481 | J125: 19 | K125: 842 | L125: 2023-03-27
E126: 6 | F126: 2023-04-02 | G126: 2487 | H126: 0 | I126: 2501 | J126: 14 | K126: 856 | L126: 2023-04-02
E127: 6 | F127: 2023-04-08 | G127: 2502 | H127: 0 | I127: 2521 | J127: 19 | K127: 875 | L127: 2023-04-08
E128: 6 | F128: 2023-04-14 | G128: 2522 | H128: 0 | I128: 2541 | J128: 19 | K128: 894 | L128: 2023-04-14
E129: 6 | F129: 2023-04-20 | G129: 2542 | H129: 0 | I129: 2561 | J129: 19 | K129: 913 | L129: 2023-04-20
E130: 6 | F130: 2023-04-26 | G130: 2562 | H130: 5 | I130: 2581 | J130: 19 | K130: 932 | L130: 2023-04-26
E131: =IF(F130>$C$8,6,7) -> 6 | F131: 2023-05-02 | G131: =G130+H130+J130+IF($C$1="IGEN",IF(I130<100,20,1),1) -> 2587 | H131: =IF(YEAR(F132)=YEAR(F131),IF(MONTH(F132)>MONTH(F131),VLOOKUP(G131,$P$13:$R$19,IF(F131>$C$7,3,2),1),0),VLOOKUP(G131,$P$13:$R$19,IF(F131>$C$7,3,2),1)) -> 0 | I131: 2601 | J131: =IF(G131-I131<0,I131-G131,0) -> 14 | K131: 946 | L131: =F131 -> 2023-05-02
E132: 6 | F132: =F131+E132 -> 2023-05-08 | G132: 2602 | H132: 0 | I132: =I131+20 -> 2621 | J132: 19 | K132: =J132+K131 -> 965 | L132: 2023-05-08
E133: 6 | F133: 2023-05-14 | G133: 2622 | H133: 0 | I133: 2641 | J133: 19 | K133: 984 | L133: 2023-05-14
E134: 6 | F134: 2023-05-20 | G134: 2642 | H134: 0 | I134: 2661 | J134: 19 | K134: 1003 | L134: 2023-05-20
E135: 6 | F135: 2023-05-26 | G135: 2662 | H135: 5 | I135: 2681 | J135: 19 | K135: 1022 | L135: 2023-05-26
E136: 6 | F136: 2023-06-01 | G136: 2687 | H136: 0 | I136: 2701 | J136: 14 | K136: 1036 | L136: 2023-06-01
E137: 6 | F137: 2023-06-07 | G137: 2702 | H137: 0 | I137: 2721 | J137: 19 | K137: 1055 | L137: 2023-06-07
E138: 6 | F138: 2023-06-13 | G138: 2722 | H138: 0 | I138: 2741 | J138: 19 | K138: 1074 | L138: 2023-06-13
E139: 6 | F139: 2023-06-19 | G139: 2742 | H139: 0 | I139: 2761 | J139: 19 | K139: 1093 | L139: 2023-06-19
E140: 6 | F140: 2023-06-25 | G140: 2762 | H140: 5 | I140: 2781 | J140: 19 | K140: 1112 | L140: 2023-06-25
E141: 6 | F141: 2023-07-01 | G141: 2787 | H141: 0 | I141: 2801 | J141: 14 | K141: 1126 | L141: 2023-07-01
E142: 6 | F142: 2023-07-07 | G142: 2802 | H142: 0 | I142: 2821 | J142: 19 | K142: 1145 | L142: 2023-07-07
E143: 6 | F143: 2023-07-13 | G143: 2822 | H143: 0 | I143: 2841 | J143: 19 | K143: 1164 | L143: 2023-07-13
E144: 6 | F144: 2023-07-19 | G144: 2842 | H144: 0 | I144: 2861 | J144: 19 | K144: 1183 | L144: 2023-07-19
E145: 6 | F145: 2023-07-25 | G145: 2862 | H145: 0 | I145: 2881 | J145: 19 | K145: 1202 | L145: 2023-07-25
E146: 6 | F146: 2023-07-31 | G146: 2882 | H146: 5 | I146: 2901 | J146: 19 | K146: 1221 | L146: 2023-07-31
E147: 6 | F147: 2023-08-06 | G147: 2907 | H147: 0 | I147: 2921 | J147: 14 | K147: 1235 | L147: 2023-08-06
E148: 6 | F148: 2023-08-12 | G148: 2922 | H148: 0 | I148: 2941 | J148: 19 | K148: 1254 | L148: 2023-08-12
E149: 6 | F149: 2023-08-18 | G149: 2942 | H149: 0 | I149: 2961 | J149: 19 | K149: 1273 | L149: 2023-08-18
E150: 6 | F150: 2023-08-24 | G150: 2962 | H150: 0 | I150: 2981 | J150: 19 | K150: 1292 | L150: 2023-08-24
E151: 6 | F151: 2023-08-30 | G151: 2982 | H151: 5 | I151: 3001 | J151: 19 | K151: 1311 | L151: 2023-08-30
E152: 6 | F152: 2023-09-05 | G152: 3007 | H152: 0 | I152: 3021 | J152: 14 | K152: 1325 | L152: 2023-09-05
E153: 6 | F153: 2023-09-11 | G153: 3022 | H153: 0 | I153: 3041 | J153: 19 | K153: 1344 | L153: 2023-09-11
E154: 6 | F154: 2023-09-17 | G154: 3042 | H154: 0 | I154: 3061 | J154: 19 | K154: 1363 | L154: 2023-09-17
E155: 6 | F155: 2023-09-23 | G155: 3062 | H155: 0 | I155: 3081 | J155: 19 | K155: 1382 | L155: 2023-09-23
E156: 6 | F156: 2023-09-29 | G156: 3082 | H156: 5 | I156: 3101 | J156: 19 | K156: 1401 | L156: 2023-09-29
E157: 6 | F157: 2023-10-05 | G157: 3107 | H157: 0 | I157: 3121 | J157: 14 | K157: 1415 | L157: 2023-10-05
E158: 6 | F158: 2023-10-11 | G158: 3122 | H158: 0 | I158: 3141 | J158: 19 | K158: 1434 | L158: 2023-10-11
E159: 6 | F159: 2023-10-17 | G159: 3142 | H159: 0 | I159: 3161 | J159: 19 | K159: 1453 | L159: 2023-10-17
E160: 6 | F160: 2023-10-23 | G160: 3162 | H160: 0 | I160: 3181 | J160: 19 | K160: 1472 | L160: 2023-10-23
E161: 6 | F161: 2023-10-29 | G161: 3182 | H161: 5 | I161: 3201 | J161: 19 | K161: 1491 | L161: 2023-10-29
E162: 6 | F162: 2023-11-04 | G162: 3207 | H162: 0 | I162: 3221 | J162: 14 | K162: 1505 | L162: 2023-11-04
E163: 6 | F163: 2023-11-10 | G163: 3222 | H163: 0 | I163: 3241 | J163: 19 | K163: 1524 | L163: 2023-11-10
E164: 6 | F164: 2023-11-16 | G164: 3242 | H164: 0 | I164: 3261 | J164: 19 | K164: 1543 | L164: 2023-11-16
E165: 6 | F165: 2023-11-22 | G165: 3262 | H165: 0 | I165: 3281 | J165: 19 | K165: 1562 | L165: 2023-11-22
E166: 6 | F166: 2023-11-28 | G166: 3282 | H166: 5 | I166: 3301 | J166: 19 | K166: 1581 | L166: 2023-11-28
E167: 6 | F167: 2023-12-04 | G167: 3307 | H167: 0 | I167: 3321 | J167: 14 | K167: 1595 | L167: 2023-12-04
E168: 6 | F168: 2023-12-10 | G168: 3322 | H168: 0 | I168: 3341 | J168: 19 | K168: 1614 | L168: 2023-12-10
E169: 6 | F169: 2023-12-16 | G169: 3342 | H169: 0 | I169: 3361 | J169: 19 | K169: 1633 | L169: 2023-12-16
E170: 6 | F170: 2023-12-22 | G170: 3362 | H170: 0 | I170: 3381 | J170: 19 | K170: 1652 | L170: 2023-12-22
E171: 6 | F171: 2023-12-28 | G171: 3382 | H171: 5 | I171: 3401 | J171: 19 | K171: 1671 | L171: 2023-12-28
E172: 6 | F172: 2024-01-03 | G172: 3407 | H172: 0 | I172: 3421 | J172: 14 | K172: 1685 | L172: 2024-01-03
E173: 6 | F173: 2024-01-09 | G173: 3422 | H173: 0 | I173: 3441 | J173: 19 | K173: 1704 | L173: 2024-01-09
E174: 6 | F174: 2024-01-15 | G174: 3442 | H174: 0 | I174: 3461 | J174: 19 | K174: 1723 | L174: 2024-01-15
E175: 6 | F175: 2024-01-21 | G175: 3462 | H175: 0 | I175: 3481 | J175: 19 | K175: 1742 | L175: 2024-01-21
E176: 6 | F176: 2024-01-27 | G176: 3482 | H176: 5 | I176: 3501 | J176: 19 | K176: 1761 | L176: 2024-01-27
E177: 6 | F177: 2024-02-02 | G177: 3507 | H177: 0 | I177: 3521 | J177: 14 | K177: 1775 | L177: 2024-02-02
E178: 6 | F178: 2024-02-08 | G178: 3522 | H178: 0 | I178: 3541 | J178: 19 | K178: 1794 | L178: 2024-02-08
E179: 6 | F179: 2024-02-14 | G179: 3542 | H179: 0 | I179: 3561 | J179: 19 | K179: 1813 | L179: 2024-02-14
E180: 6 | F180: 2024-02-20 | G180: 3562 | H180: 0 | I180: 3581 | J180: 19 | K180: 1832 | L180: 2024-02-20
E181: 6 | F181: 2024-02-26 | G181: 3582 | H181: 5 | I181: 3601 | J181: 19 | K181: 1851 | L181: 2024-02-26
E182: 6 | F182: 2024-03-03 | G182: 3607 | H182: 0 | I182: 3621 | J182: 14 | K182: 1865 | L182: 2024-03-03
E183: 6 | F183: 2024-03-09 | G183: 3622 | H183: 0 | I183: 3641 | J183: 19 | K183: 1884 | L183: 2024-03-09
E184: 6 | F184: 2024-03-15 | G184: 3642 | H184: 0 | I184: 3661 | J184: 19 | K184: 1903 | L184: 2024-03-15
E185: 6 | F185: 2024-03-21 | G185: 3662 | H185: 0 | I185: 3681 | J185: 19 | K185: 1922 | L185: 2024-03-21
E186: 6 | F186: 2024-03-27 | G186: 3682 | H186: 5 | I186: 3701 | J186: 19 | K186: 1941 | L186: 2024-03-27
E187: 6 | F187: 2024-04-02 | G187: 3707 | H187: 0 | I187: 3721 | J187: 14 | K187: 1955 | L187: 2024-04-02
E188: 6 | F188: 2024-04-08 | G188: 3722 | H188: 0 | I188: 3741 | J188: 19 | K188: 1974 | L188: 2024-04-08
E189: 6 | F189: 2024-04-14 | G189: 3742 | H189: 0 | I189: 3761 | J189: 19 | K189: 1993 | L189: 2024-04-14
E190: 6 | F190: 2024-04-20 | G190: 3762 | H190: 0 | I190: 3781 | J190: 19 | K190: 2012 | L190: 2024-04-20
E191: 6 | F191: 2024-04-26 | G191: 3782 | H191: 5 | I191: 3801 | J191: 19 | K191: 2031 | L191: 2024-04-26
E192: 6 | F192: 2024-05-02 | G192: 3807 | H192: 0 | I192: 3821 | J192: 14 | K192: 2045 | L192: 2024-05-02
E193: 6 | F193: 2024-05-08 | G193: 3822 | H193: 0 | I193: 3841 | J193: 19 | K193: 2064 | L193: 2024-05-08
E194: 6 | F194: 2024-05-14 | G194: 3842 | H194: 0 | I194: 3861 | J194: 19 | K194: 2083 | L194: 2024-05-14
E195: =IF(F194>$C$8,6,7) -> 6 | F195: 2024-05-20 | G195: =G194+H194+J194+IF($C$1="IGEN",IF(I194<100,20,1),1) -> 3862 | H195: =IF(YEAR(F196)=YEAR(F195),IF(MONTH(F196)>MONTH(F195),VLOOKUP(G195,$P$13:$R$19,IF(F195>$C$7,3,2),1),0),VLOOKUP(G195,$P$13:$R$19,IF(F195>$C$7,3,2),1)) -> 0 | I195: 3881 | J195: =IF(G195-I195<0,I195-G195,0) -> 19 | K195: 2102 | L195: =F195 -> 2024-05-20
E196: 6 | F196: =F195+E196 -> 2024-05-26 | G196: 3882 | H196: 5 | I196: =I195+20 -> 3901 | J196: 19 | K196: =J196+K195 -> 2121 | L196: 2024-05-26
E197: 6 | F197: 2024-06-01 | G197: 3907 | H197: 0 | I197: 3921 | J197: 14 | K197: 2135 | L197: 2024-06-01
E198: 6 | F198: 2024-06-07 | G198: 3922 | H198: 0 | I198: 3941 | J198: 19 | K198: 2154 | L198: 2024-06-07
E199: 6 | F199: 2024-06-13 | G199: 3942 | H199: 0 | I199: 3961 | J199: 19 | K199: 2173 | L199: 2024-06-13
E200: 6 | F200: 2024-06-19 | G200: 3962 | H200: 0 | I200: 3981 | J200: 19 | K200: 2192 | L200: 2024-06-19
... 310 more rows

Sheet Klasszik JAVASOLT
B1: Klasszik karakter? | C1: IGEN | E1: nap/jhét | F1: dátum | G1: játékhét | H1: EXT | I1: elérhető fordulószám | J1: venni kell | K1: összes várásolt | L1: dátum2
B2: Indulás/reinkarnálás dátuma: | C2: 2021-03-01 | E2: =IF(F2>$C$8,6,7) -> 7 | F2: =C2 -> 2021-03-01 | G2: =IF(C1="IGEN",116,C4) -> 116 | H2: =IF(MONTH(F3)>MONTH(F2),VLOOKUP(G2,$N$13:$P$24,IF(F2>$C$7,3,2),1),0) -> 0 | I2: =C5+20 -> 21 | J2: =IF(G2-I2<0,I2-G2,0) -> 0 | L2: =F2 -> 2021-03-01
E3: =IF(F2>$C$8,6,7) -> 7 | F3: =F2+E3 -> 2021-03-08 | G3: =G2+H2+J2+IF($C$1="IGEN",IF(I2<100,20,1),1) -> 136 | H3: =IF(YEAR(F4)=YEAR(F3),IF(MONTH(F4)>MONTH(F3),VLOOKUP(G3,$N$13:$P$25,IF(F3>$C$7,3,2),1),0),VLOOKUP(G3,$N$13:$P$25,IF(F3>$C$7,3,2),1)) -> 0 | I3: =I2+20 -> 41 | J3: =IF(G3-I3<0,I3-G3,0) -> 0 | K3: =J3+K2 -> 0 | L3: =F3 -> 2021-03-08
B4: Karakter induló játékhete (ha nem klasszik) | C4: 40 | E4: 7 | F4: =F3+E4 -> 2021-03-15 | G4: 156 | H4: =IF(YEAR(F5)=YEAR(F4),IF(MONTH(F5)>MONTH(F4),VLOOKUP(G4,$N$13:$P$25,IF(F4>$C$7,3,2),1),0),VLOOKUP(G4,$N$13:$P$25,IF(F4>$C$7,3,2),1)) -> 0 | I4: =I3+20 -> 61 | J4: 0 | K4: =J4+K3 -> 0 | L4: 2021-03-15
B5: Jelenlegi fordulószáma (ha nem klasszik) | C5: 1 | E5: 7 | F5: 2021-03-22 | G5: 176 | H5: 0 | I5: 81 | J5: 0 | K5: 0 | L5: 2021-03-22
E6: 7 | F6: 2021-03-29 | G6: 196 | H6: 300 | I6: 101 | J6: 0 | K6: 0 | L6: 2021-03-29
B7: Tudati ismétlés megszerzésének dátuma: | C7: 2021-05-01 | E7: 7 | F7: 2021-04-05 | G7: 497 | H7: 0 | I7: 121 | J7: 0 | K7: 0 | L7: 2021-04-05
B8: 6 napos játékhét megszerzésének dátuma: | C8: 2021-07-01 | E8: 7 | F8: 2021-04-12 | G8: 498 | H8: 0 | I8: 141 | J8: 0 | K8: 0 | L8: 2021-04-12 | R8: IGEN
E9: 7 | F9: 2021-04-19 | G9: 499 | H9: 0 | I9: 161 | J9: 0 | K9: 0 | L9: 2021-04-19 | R9: NEM
E10: 7 | F10: 2021-04-26 | G10: 500 | H10: 120 | I10: 181 | J10: 0 | K10: 0 | L10: 2021-04-26
B11: Maximum vehető játékhét | C11: 1800 | E11: 7 | F11: 2021-05-03 | G11: 621 | H11: 0 | I11: 201 | J11: 0 | K11: 0 | L11: 2021-05-03
B12: szükséges EXT venni db: | C12: =VLOOKUP(C11,G:K,5,1) -> 265 | E12: 7 | F12: 2021-05-10 | G12: 622 | H12: 0 | I12: 221 | J12: 0 | K12: 0 | L12: 2021-05-10
B13: HUF | C13: =C12*50 -> 13250 | E13: 7 | F13: 2021-05-17 | G13: 623 | H13: 0 | I13: 241 | J13: 0 | K13: 0 | L13: 2021-05-17 | N13: ='Reinkarnált JAVASOLT'!N5 -> 0 | O13: ='Reinkarnált JAVASOLT'!O5 -> 300 | P13: ='Reinkarnált JAVASOLT'!P5 -> 300 | R13: 200. játékhétig +50 forduló kérhető.
B14: (abban az esetben, ha minden héten maximum lépés van) | E14: 7 | F14: 2021-05-24 | G14: 624 | H14: 0 | I14: 261 | J14: 0 | K14: 0 | L14: 2021-05-24 | N14: ='Reinkarnált JAVASOLT'!N6 -> 200 | O14: ='Reinkarnált JAVASOLT'!O6 -> 200 | P14: ='Reinkarnált JAVASOLT'!P6 -> 300 | R14: 201-350. játékhétig +40.
E15: 7 | F15: 2021-05-31 | G15: 625 | H15: 150 | I15: 281 | J15: 0 | K15: 0 | L15: 2021-05-31 | N15: ='Reinkarnált JAVASOLT'!N7 -> 350 | O15: ='Reinkarnált JAVASOLT'!O7 -> 150 | P15: ='Reinkarnált JAVASOLT'!P7 -> 200 | R15: 351-500. játékhétig +30.
B16: cél fordulószám | C16: 1500 | E16: 7 | F16: 2021-06-07 | G16: 776 | H16: 0 | I16: 301 | J16: 0 | K16: 0 | L16: 2021-06-07 | N16: ='Reinkarnált JAVASOLT'!N8 -> 500 | O16: ='Reinkarnált JAVASOLT'!O8 -> 120 | P16: ='Reinkarnált JAVASOLT'!P8 -> 150 | R16: 501-650. játékhétig +20.
B17: szükséges EXT venni db: | C17: =VLOOKUP(C16,G:K,5,1) -> 21 | E17: 7 | F17: 2021-06-14 | G17: 777 | H17: 0 | I17: 321 | J17: 0 | K17: 0 | L17: 2021-06-14 | N17: ='Reinkarnált JAVASOLT'!N9 -> 650 | O17: ='Reinkarnált JAVASOLT'!O9 -> 100 | P17: ='Reinkarnált JAVASOLT'!P9 -> 120 | R17: 651-800. játékhétig +10.
B18: HUF | C18: =C17*50 -> 1050 | E18: 7 | F18: 2021-06-21 | G18: 778 | H18: 0 | I18: 341 | J18: 0 | K18: 0 | L18: 2021-06-21 | N18: ='Reinkarnált JAVASOLT'!N10 -> 800 | O18: ='Reinkarnált JAVASOLT'!O10 -> 75 | P18: ='Reinkarnált JAVASOLT'!P10 -> 100 | R18: 801-950. játékhétig +5.
B19: Cél fordulószám elérésének legkorábbi dátuma | C19: =VLOOKUP(C16,I:L,4,1) -> 2022-05-31 | E19: 7 | F19: 2021-06-28 | G19: 779 | H19: 120 | I19: 361 | J19: 0 | K19: 0 | L19: 2021-06-28 | N19: ='Reinkarnált JAVASOLT'!N11 -> 950 | O19: ='Reinkarnált JAVASOLT'!O11 -> 30 | P19: ='Reinkarnált JAVASOLT'!P11 -> 75 | R19: 950. játékhéttől +3.
E20: 7 | F20: 2021-07-05 | G20: 900 | H20: 0 | I20: 381 | J20: 0 | K20: 0 | L20: 2021-07-05 | N20: ='Reinkarnált JAVASOLT'!N12 -> 1200 | O20: ='Reinkarnált JAVASOLT'!O12 -> 10 | P20: ='Reinkarnált JAVASOLT'!P12 -> 30
E21: 6 | F21: 2021-07-11 | G21: 901 | H21: 0 | I21: 401 | J21: 0 | K21: 0 | L21: 2021-07-11 | N21: ='Reinkarnált JAVASOLT'!N13 -> 1500 | O21: ='Reinkarnált JAVASOLT'!O13 -> 5 | P21: ='Reinkarnált JAVASOLT'!P13 -> 10
E22: 6 | F22: 2021-07-17 | G22: 902 | H22: 0 | I22: 421 | J22: 0 | K22: 0 | L22: 2021-07-17 | N22: ='Reinkarnált JAVASOLT'!N14 -> 1800 | O22: ='Reinkarnált JAVASOLT'!O14 -> 3 | P22: ='Reinkarnált JAVASOLT'!P14 -> 5
E23: 6 | F23: 2021-07-23 | G23: 903 | H23: 0 | I23: 441 | J23: 0 | K23: 0 | L23: 2021-07-23
E24: 6 | F24: 2021-07-29 | G24: 904 | H24: 100 | I24: 461 | J24: 0 | K24: 0 | L24: 2021-07-29
E25: 6 | F25: 2021-08-04 | G25: 1005 | H25: 0 | I25: 481 | J25: 0 | K25: 0 | L25: 2021-08-04
E26: 6 | F26: 2021-08-10 | G26: 1006 | H26: 0 | I26: 501 | J26: 0 | K26: 0 | L26: 2021-08-10
E27: 6 | F27: 2021-08-16 | G27: 1007 | H27: 0 | I27: 521 | J27: 0 | K27: 0 | L27: 2021-08-16
E28: 6 | F28: 2021-08-22 | G28: 1008 | H28: 0 | I28: 541 | J28: 0 | K28: 0 | L28: 2021-08-22
E29: 6 | F29: 2021-08-28 | G29: 1009 | H29: 75 | I29: 561 | J29: 0 | K29: 0 | L29: 2021-08-28
E30: 6 | F30: 2021-09-03 | G30: 1085 | H30: 0 | I30: 581 | J30: 0 | K30: 0 | L30: 2021-09-03
E31: 6 | F31: 2021-09-09 | G31: 1086 | H31: 0 | I31: 601 | J31: 0 | K31: 0 | L31: 2021-09-09
E32: 6 | F32: 2021-09-15 | G32: 1087 | H32: 0 | I32: 621 | J32: 0 | K32: 0 | L32: 2021-09-15
E33: 6 | F33: 2021-09-21 | G33: 1088 | H33: 0 | I33: 641 | J33: 0 | K33: 0 | L33: 2021-09-21
E34: 6 | F34: 2021-09-27 | G34: 1089 | H34: 75 | I34: 661 | J34: 0 | K34: 0 | L34: 2021-09-27
E35: 6 | F35: 2021-10-03 | G35: 1165 | H35: 0 | I35: 681 | J35: 0 | K35: 0 | L35: 2021-10-03
E36: 6 | F36: 2021-10-09 | G36: 1166 | H36: 0 | I36: 701 | J36: 0 | K36: 0 | L36: 2021-10-09
E37: 6 | F37: 2021-10-15 | G37: 1167 | H37: 0 | I37: 721 | J37: 0 | K37: 0 | L37: 2021-10-15
E38: 6 | F38: 2021-10-21 | G38: 1168 | H38: 0 | I38: 741 | J38: 0 | K38: 0 | L38: 2021-10-21
E39: 6 | F39: 2021-10-27 | G39: 1169 | H39: 75 | I39: 761 | J39: 0 | K39: 0 | L39: 2021-10-27
E40: 6 | F40: 2021-11-02 | G40: 1245 | H40: 0 | I40: 781 | J40: 0 | K40: 0 | L40: 2021-11-02
E41: 6 | F41: 2021-11-08 | G41: 1246 | H41: 0 | I41: 801 | J41: 0 | K41: 0 | L41: 2021-11-08
E42: 6 | F42: 2021-11-14 | G42: 1247 | H42: 0 | I42: 821 | J42: 0 | K42: 0 | L42: 2021-11-14
E43: 6 | F43: 2021-11-20 | G43: 1248 | H43: 0 | I43: 841 | J43: 0 | K43: 0 | L43: 2021-11-20
E44: 6 | F44: 2021-11-26 | G44: 1249 | H44: 30 | I44: 861 | J44: 0 | K44: 0 | L44: 2021-11-26
E45: 6 | F45: 2021-12-02 | G45: 1280 | H45: 0 | I45: 881 | J45: 0 | K45: 0 | L45: 2021-12-02
E46: 6 | F46: 2021-12-08 | G46: 1281 | H46: 0 | I46: 901 | J46: 0 | K46: 0 | L46: 2021-12-08
E47: 6 | F47: 2021-12-14 | G47: 1282 | H47: 0 | I47: 921 | J47: 0 | K47: 0 | L47: 2021-12-14
E48: 6 | F48: 2021-12-20 | G48: 1283 | H48: 0 | I48: 941 | J48: 0 | K48: 0 | L48: 2021-12-20
E49: 6 | F49: 2021-12-26 | G49: 1284 | H49: 30 | I49: 961 | J49: 0 | K49: 0 | L49: 2021-12-26
E50: 6 | F50: 2022-01-01 | G50: 1315 | H50: 0 | I50: 981 | J50: 0 | K50: 0 | L50: 2022-01-01
E51: 6 | F51: 2022-01-07 | G51: 1316 | H51: 0 | I51: 1001 | J51: 0 | K51: 0 | L51: 2022-01-07
E52: 6 | F52: 2022-01-13 | G52: 1317 | H52: 0 | I52: 1021 | J52: 0 | K52: 0 | L52: 2022-01-13
E53: 6 | F53: 2022-01-19 | G53: 1318 | H53: 0 | I53: 1041 | J53: 0 | K53: 0 | L53: 2022-01-19
E54: 6 | F54: 2022-01-25 | G54: 1319 | H54: 0 | I54: 1061 | J54: 0 | K54: 0 | L54: 2022-01-25
E55: 6 | F55: 2022-01-31 | G55: 1320 | H55: 30 | I55: 1081 | J55: 0 | K55: 0 | L55: 2022-01-31
E56: 6 | F56: 2022-02-06 | G56: 1351 | H56: 0 | I56: 1101 | J56: 0 | K56: 0 | L56: 2022-02-06
E57: 6 | F57: 2022-02-12 | G57: 1352 | H57: 0 | I57: 1121 | J57: 0 | K57: 0 | L57: 2022-02-12
E58: 6 | F58: 2022-02-18 | G58: 1353 | H58: 0 | I58: 1141 | J58: 0 | K58: 0 | L58: 2022-02-18
E59: 6 | F59: 2022-02-24 | G59: 1354 | H59: 30 | I59: 1161 | J59: 0 | K59: 0 | L59: 2022-02-24
E60: 6 | F60: 2022-03-02 | G60: 1385 | H60: 0 | I60: 1181 | J60: 0 | K60: 0 | L60: 2022-03-02
E61: 6 | F61: 2022-03-08 | G61: 1386 | H61: 0 | I61: 1201 | J61: 0 | K61: 0 | L61: 2022-03-08
E62: 6 | F62: 2022-03-14 | G62: 1387 | H62: 0 | I62: 1221 | J62: 0 | K62: 0 | L62: 2022-03-14
E63: 6 | F63: 2022-03-20 | G63: 1388 | H63: 0 | I63: 1241 | J63: 0 | K63: 0 | L63: 2022-03-20
E64: 6 | F64: 2022-03-26 | G64: 1389 | H64: 30 | I64: 1261 | J64: 0 | K64: 0 | L64: 2022-03-26
E65: 6 | F65: 2022-04-01 | G65: 1420 | H65: 0 | I65: 1281 | J65: 0 | K65: 0 | L65: 2022-04-01
E66: 6 | F66: 2022-04-07 | G66: 1421 | H66: 0 | I66: 1301 | J66: 0 | K66: 0 | L66: 2022-04-07
E67: =IF(F66>$C$8,6,7) -> 6 | F67: 2022-04-13 | G67: =G66+H66+J66+IF($C$1="IGEN",IF(I66<100,20,1),1) -> 1422 | H67: 0 | I67: 1321 | J67: =IF(G67-I67<0,I67-G67,0) -> 0 | K67: 0 | L67: =F67 -> 2022-04-13
E68: 6 | F68: =F67+E68 -> 2022-04-19 | G68: 1423 | H68: =IF(YEAR(F69)=YEAR(F68),IF(MONTH(F69)>MONTH(F68),VLOOKUP(G68,$N$13:$P$25,IF(F68>$C$7,3,2),1),0),VLOOKUP(G68,$N$13:$P$25,IF(F68>$C$7,3,2),1)) -> 0 | I68: =I67+20 -> 1341 | J68: 0 | K68: =J68+K67 -> 0 | L68: 2022-04-19
E69: 6 | F69: 2022-04-25 | G69: 1424 | H69: 30 | I69: 1361 | J69: 0 | K69: 0 | L69: 2022-04-25
E70: 6 | F70: 2022-05-01 | G70: 1455 | H70: 0 | I70: 1381 | J70: 0 | K70: 0 | L70: 2022-05-01
E71: 6 | F71: 2022-05-07 | G71: 1456 | H71: 0 | I71: 1401 | J71: 0 | K71: 0 | L71: 2022-05-07
E72: 6 | F72: 2022-05-13 | G72: 1457 | H72: 0 | I72: 1421 | J72: 0 | K72: 0 | L72: 2022-05-13
E73: 6 | F73: 2022-05-19 | G73: 1458 | H73: 0 | I73: 1441 | J73: 0 | K73: 0 | L73: 2022-05-19
E74: 6 | F74: 2022-05-25 | G74: 1459 | H74: 0 | I74: 1461 | J74: 2 | K74: 2 | L74: 2022-05-25
E75: 6 | F75: 2022-05-31 | G75: 1462 | H75: 30 | I75: 1481 | J75: 19 | K75: 21 | L75: 2022-05-31
E76: 6 | F76: 2022-06-06 | G76: 1512 | H76: 0 | I76: 1501 | J76: 0 | K76: 21 | L76: 2022-06-06
E77: 6 | F77: 2022-06-12 | G77: 1513 | H77: 0 | I77: 1521 | J77: 8 | K77: 29 | L77: 2022-06-12
E78: 6 | F78: 2022-06-18 | G78: 1522 | H78: 0 | I78: 1541 | J78: 19 | K78: 48 | L78: 2022-06-18
E79: 6 | F79: 2022-06-24 | G79: 1542 | H79: 0 | I79: 1561 | J79: 19 | K79: 67 | L79: 2022-06-24
E80: 6 | F80: 2022-06-30 | G80: 1562 | H80: 10 | I80: 1581 | J80: 19 | K80: 86 | L80: 2022-06-30
E81: 6 | F81: 2022-07-06 | G81: 1592 | H81: 0 | I81: 1601 | J81: 9 | K81: 95 | L81: 2022-07-06
E82: 6 | F82: 2022-07-12 | G82: 1602 | H82: 0 | I82: 1621 | J82: 19 | K82: 114 | L82: 2022-07-12
E83: 6 | F83: 2022-07-18 | G83: 1622 | H83: 0 | I83: 1641 | J83: 19 | K83: 133 | L83: 2022-07-18
E84: 6 | F84: 2022-07-24 | G84: 1642 | H84: 0 | I84: 1661 | J84: 19 | K84: 152 | L84: 2022-07-24
E85: 6 | F85: 2022-07-30 | G85: 1662 | H85: 10 | I85: 1681 | J85: 19 | K85: 171 | L85: 2022-07-30
E86: 6 | F86: 2022-08-05 | G86: 1692 | H86: 0 | I86: 1701 | J86: 9 | K86: 180 | L86: 2022-08-05
E87: 6 | F87: 2022-08-11 | G87: 1702 | H87: 0 | I87: 1721 | J87: 19 | K87: 199 | L87: 2022-08-11
E88: 6 | F88: 2022-08-17 | G88: 1722 | H88: 0 | I88: 1741 | J88: 19 | K88: 218 | L88: 2022-08-17
E89: 6 | F89: 2022-08-23 | G89: 1742 | H89: 0 | I89: 1761 | J89: 19 | K89: 237 | L89: 2022-08-23
E90: 6 | F90: 2022-08-29 | G90: 1762 | H90: 10 | I90: 1781 | J90: 19 | K90: 256 | L90: 2022-08-29
E91: 6 | F91: 2022-09-04 | G91: 1792 | H91: 0 | I91: 1801 | J91: 9 | K91: 265 | L91: 2022-09-04
E92: 6 | F92: 2022-09-10 | G92: 1802 | H92: 0 | I92: 1821 | J92: 19 | K92: 284 | L92: 2022-09-10
E93: 6 | F93: 2022-09-16 | G93: 1822 | H93: 0 | I93: 1841 | J93: 19 | K93: 303 | L93: 2022-09-16
E94: 6 | F94: 2022-09-22 | G94: 1842 | H94: 0 | I94: 1861 | J94: 19 | K94: 322 | L94: 2022-09-22
E95: 6 | F95: 2022-09-28 | G95: 1862 | H95: 5 | I95: 1881 | J95: 19 | K95: 341 | L95: 2022-09-28
E96: 6 | F96: 2022-10-04 | G96: 1887 | H96: 0 | I96: 1901 | J96: 14 | K96: 355 | L96: 2022-10-04
E97: 6 | F97: 2022-10-10 | G97: 1902 | H97: 0 | I97: 1921 | J97: 19 | K97: 374 | L97: 2022-10-10
E98: 6 | F98: 2022-10-16 | G98: 1922 | H98: 0 | I98: 1941 | J98: 19 | K98: 393 | L98: 2022-10-16
E99: 6 | F99: 2022-10-22 | G99: 1942 | H99: 0 | I99: 1961 | J99: 19 | K99: 412 | L99: 2022-10-22
E100: 6 | F100: 2022-10-28 | G100: 1962 | H100: 5 | I100: 1981 | J100: 19 | K100: 431 | L100: 2022-10-28
E101: 6 | F101: 2022-11-03 | G101: 1987 | H101: 0 | I101: 2001 | J101: 14 | K101: 445 | L101: 2022-11-03
E102: 6 | F102: 2022-11-09 | G102: 2002 | H102: 0 | I102: 2021 | J102: 19 | K102: 464 | L102: 2022-11-09
E103: 6 | F103: 2022-11-15 | G103: 2022 | H103: 0 | I103: 2041 | J103: 19 | K103: 483 | L103: 2022-11-15
E104: 6 | F104: 2022-11-21 | G104: 2042 | H104: 0 | I104: 2061 | J104: 19 | K104: 502 | L104: 2022-11-21
E105: 6 | F105: 2022-11-27 | G105: 2062 | H105: 5 | I105: 2081 | J105: 19 | K105: 521 | L105: 2022-11-27
E106: 6 | F106: 2022-12-03 | G106: 2087 | H106: 0 | I106: 2101 | J106: 14 | K106: 535 | L106: 2022-12-03
E107: 6 | F107: 2022-12-09 | G107: 2102 | H107: 0 | I107: 2121 | J107: 19 | K107: 554 | L107: 2022-12-09
E108: 6 | F108: 2022-12-15 | G108: 2122 | H108: 0 | I108: 2141 | J108: 19 | K108: 573 | L108: 2022-12-15
E109: 6 | F109: 2022-12-21 | G109: 2142 | H109: 0 | I109: 2161 | J109: 19 | K109: 592 | L109: 2022-12-21
E110: 6 | F110: 2022-12-27 | G110: 2162 | H110: 5 | I110: 2181 | J110: 19 | K110: 611 | L110: 2022-12-27
E111: 6 | F111: 2023-01-02 | G111: 2187 | H111: 0 | I111: 2201 | J111: 14 | K111: 625 | L111: 2023-01-02
E112: 6 | F112: 2023-01-08 | G112: 2202 | H112: 0 | I112: 2221 | J112: 19 | K112: 644 | L112: 2023-01-08
E113: 6 | F113: 2023-01-14 | G113: 2222 | H113: 0 | I113: 2241 | J113: 19 | K113: 663 | L113: 2023-01-14
E114: 6 | F114: 2023-01-20 | G114: 2242 | H114: 0 | I114: 2261 | J114: 19 | K114: 682 | L114: 2023-01-20
E115: 6 | F115: 2023-01-26 | G115: 2262 | H115: 5 | I115: 2281 | J115: 19 | K115: 701 | L115: 2023-01-26
E116: 6 | F116: 2023-02-01 | G116: 2287 | H116: 0 | I116: 2301 | J116: 14 | K116: 715 | L116: 2023-02-01
E117: 6 | F117: 2023-02-07 | G117: 2302 | H117: 0 | I117: 2321 | J117: 19 | K117: 734 | L117: 2023-02-07
E118: 6 | F118: 2023-02-13 | G118: 2322 | H118: 0 | I118: 2341 | J118: 19 | K118: 753 | L118: 2023-02-13
E119: 6 | F119: 2023-02-19 | G119: 2342 | H119: 0 | I119: 2361 | J119: 19 | K119: 772 | L119: 2023-02-19
E120: 6 | F120: 2023-02-25 | G120: 2362 | H120: 5 | I120: 2381 | J120: 19 | K120: 791 | L120: 2023-02-25
E121: 6 | F121: 2023-03-03 | G121: 2387 | H121: 0 | I121: 2401 | J121: 14 | K121: 805 | L121: 2023-03-03
E122: 6 | F122: 2023-03-09 | G122: 2402 | H122: 0 | I122: 2421 | J122: 19 | K122: 824 | L122: 2023-03-09
E123: 6 | F123: 2023-03-15 | G123: 2422 | H123: 0 | I123: 2441 | J123: 19 | K123: 843 | L123: 2023-03-15
E124: 6 | F124: 2023-03-21 | G124: 2442 | H124: 0 | I124: 2461 | J124: 19 | K124: 862 | L124: 2023-03-21
E125: 6 | F125: 2023-03-27 | G125: 2462 | H125: 5 | I125: 2481 | J125: 19 | K125: 881 | L125: 2023-03-27
E126: 6 | F126: 2023-04-02 | G126: 2487 | H126: 0 | I126: 2501 | J126: 14 | K126: 895 | L126: 2023-04-02
E127: 6 | F127: 2023-04-08 | G127: 2502 | H127: 0 | I127: 2521 | J127: 19 | K127: 914 | L127: 2023-04-08
E128: 6 | F128: 2023-04-14 | G128: 2522 | H128: 0 | I128: 2541 | J128: 19 | K128: 933 | L128: 2023-04-14
E129: 6 | F129: 2023-04-20 | G129: 2542 | H129: 0 | I129: 2561 | J129: 19 | K129: 952 | L129: 2023-04-20
E130: 6 | F130: 2023-04-26 | G130: 2562 | H130: 5 | I130: 2581 | J130: 19 | K130: 971 | L130: 2023-04-26
E131: =IF(F130>$C$8,6,7) -> 6 | F131: 2023-05-02 | G131: =G130+H130+J130+IF($C$1="IGEN",IF(I130<100,20,1),1) -> 2587 | H131: 0 | I131: 2601 | J131: =IF(G131-I131<0,I131-G131,0) -> 14 | K131: 985 | L131: =F131 -> 2023-05-02
E132: 6 | F132: =F131+E132 -> 2023-05-08 | G132: 2602 | H132: =IF(YEAR(F133)=YEAR(F132),IF(MONTH(F133)>MONTH(F132),VLOOKUP(G132,$N$13:$P$25,IF(F132>$C$7,3,2),1),0),VLOOKUP(G132,$N$13:$P$25,IF(F132>$C$7,3,2),1)) -> 0 | I132: =I131+20 -> 2621 | J132: 19 | K132: =J132+K131 -> 1004 | L132: 2023-05-08
E133: 6 | F133: 2023-05-14 | G133: 2622 | H133: 0 | I133: 2641 | J133: 19 | K133: 1023 | L133: 2023-05-14
E134: 6 | F134: 2023-05-20 | G134: 2642 | H134: 0 | I134: 2661 | J134: 19 | K134: 1042 | L134: 2023-05-20
E135: 6 | F135: 2023-05-26 | G135: 2662 | H135: 5 | I135: 2681 | J135: 19 | K135: 1061 | L135: 2023-05-26
E136: 6 | F136: 2023-06-01 | G136: 2687 | H136: 0 | I136: 2701 | J136: 14 | K136: 1075 | L136: 2023-06-01
E137: 6 | F137: 2023-06-07 | G137: 2702 | H137: 0 | I137: 2721 | J137: 19 | K137: 1094 | L137: 2023-06-07
E138: 6 | F138: 2023-06-13 | G138: 2722 | H138: 0 | I138: 2741 | J138: 19 | K138: 1113 | L138: 2023-06-13
E139: 6 | F139: 2023-06-19 | G139: 2742 | H139: 0 | I139: 2761 | J139: 19 | K139: 1132 | L139: 2023-06-19
E140: 6 | F140: 2023-06-25 | G140: 2762 | H140: 5 | I140: 2781 | J140: 19 | K140: 1151 | L140: 2023-06-25
E141: 6 | F141: 2023-07-01 | G141: 2787 | H141: 0 | I141: 2801 | J141: 14 | K141: 1165 | L141: 2023-07-01
E142: 6 | F142: 2023-07-07 | G142: 2802 | H142: 0 | I142: 2821 | J142: 19 | K142: 1184 | L142: 2023-07-07
E143: 6 | F143: 2023-07-13 | G143: 2822 | H143: 0 | I143: 2841 | J143: 19 | K143: 1203 | L143: 2023-07-13
E144: 6 | F144: 2023-07-19 | G144: 2842 | H144: 0 | I144: 2861 | J144: 19 | K144: 1222 | L144: 2023-07-19
E145: 6 | F145: 2023-07-25 | G145: 2862 | H145: 0 | I145: 2881 | J145: 19 | K145: 1241 | L145: 2023-07-25
E146: 6 | F146: 2023-07-31 | G146: 2882 | H146: 5 | I146: 2901 | J146: 19 | K146: 1260 | L146: 2023-07-31
E147: 6 | F147: 2023-08-06 | G147: 2907 | H147: 0 | I147: 2921 | J147: 14 | K147: 1274 | L147: 2023-08-06
E148: 6 | F148: 2023-08-12 | G148: 2922 | H148: 0 | I148: 2941 | J148: 19 | K148: 1293 | L148: 2023-08-12
E149: 6 | F149: 2023-08-18 | G149: 2942 | H149: 0 | I149: 2961 | J149: 19 | K149: 1312 | L149: 2023-08-18
E150: 6 | F150: 2023-08-24 | G150: 2962 | H150: 0 | I150: 2981 | J150: 19 | K150: 1331 | L150: 2023-08-24
E151: 6 | F151: 2023-08-30 | G151: 2982 | H151: 5 | I151: 3001 | J151: 19 | K151: 1350 | L151: 2023-08-30
E152: 6 | F152: 2023-09-05 | G152: 3007 | H152: 0 | I152: 3021 | J152: 14 | K152: 1364 | L152: 2023-09-05
E153: 6 | F153: 2023-09-11 | G153: 3022 | H153: 0 | I153: 3041 | J153: 19 | K153: 1383 | L153: 2023-09-11
E154: 6 | F154: 2023-09-17 | G154: 3042 | H154: 0 | I154: 3061 | J154: 19 | K154: 1402 | L154: 2023-09-17
E155: 6 | F155: 2023-09-23 | G155: 3062 | H155: 0 | I155: 3081 | J155: 19 | K155: 1421 | L155: 2023-09-23
E156: 6 | F156: 2023-09-29 | G156: 3082 | H156: 5 | I156: 3101 | J156: 19 | K156: 1440 | L156: 2023-09-29
E157: 6 | F157: 2023-10-05 | G157: 3107 | H157: 0 | I157: 3121 | J157: 14 | K157: 1454 | L157: 2023-10-05
E158: 6 | F158: 2023-10-11 | G158: 3122 | H158: 0 | I158: 3141 | J158: 19 | K158: 1473 | L158: 2023-10-11
E159: 6 | F159: 2023-10-17 | G159: 3142 | H159: 0 | I159: 3161 | J159: 19 | K159: 1492 | L159: 2023-10-17
E160: 6 | F160: 2023-10-23 | G160: 3162 | H160: 0 | I160: 3181 | J160: 19 | K160: 1511 | L160: 2023-10-23
E161: 6 | F161: 2023-10-29 | G161: 3182 | H161: 5 | I161: 3201 | J161: 19 | K161: 1530 | L161: 2023-10-29
E162: 6 | F162: 2023-11-04 | G162: 3207 | H162: 0 | I162: 3221 | J162: 14 | K162: 1544 | L162: 2023-11-04
E163: 6 | F163: 2023-11-10 | G163: 3222 | H163: 0 | I163: 3241 | J163: 19 | K163: 1563 | L163: 2023-11-10
E164: 6 | F164: 2023-11-16 | G164: 3242 | H164: 0 | I164: 3261 | J164: 19 | K164: 1582 | L164: 2023-11-16
E165: 6 | F165: 2023-11-22 | G165: 3262 | H165: 0 | I165: 3281 | J165: 19 | K165: 1601 | L165: 2023-11-22
E166: 6 | F166: 2023-11-28 | G166: 3282 | H166: 5 | I166: 3301 | J166: 19 | K166: 1620 | L166: 2023-11-28
E167: 6 | F167: 2023-12-04 | G167: 3307 | H167: 0 | I167: 3321 | J167: 14 | K167: 1634 | L167: 2023-12-04
E168: 6 | F168: 2023-12-10 | G168: 3322 | H168: 0 | I168: 3341 | J168: 19 | K168: 1653 | L168: 2023-12-10
E169: 6 | F169: 2023-12-16 | G169: 3342 | H169: 0 | I169: 3361 | J169: 19 | K169: 1672 | L169: 2023-12-16
E170: 6 | F170: 2023-12-22 | G170: 3362 | H170: 0 | I170: 3381 | J170: 19 | K170: 1691 | L170: 2023-12-22
E171: 6 | F171: 2023-12-28 | G171: 3382 | H171: 5 | I171: 3401 | J171: 19 | K171: 1710 | L171: 2023-12-28
E172: 6 | F172: 2024-01-03 | G172: 3407 | H172: 0 | I172: 3421 | J172: 14 | K172: 1724 | L172: 2024-01-03
E173: 6 | F173: 2024-01-09 | G173: 3422 | H173: 0 | I173: 3441 | J173: 19 | K173: 1743 | L173: 2024-01-09
E174: 6 | F174: 2024-01-15 | G174: 3442 | H174: 0 | I174: 3461 | J174: 19 | K174: 1762 | L174: 2024-01-15
E175: 6 | F175: 2024-01-21 | G175: 3462 | H175: 0 | I175: 3481 | J175: 19 | K175: 1781 | L175: 2024-01-21
E176: 6 | F176: 2024-01-27 | G176: 3482 | H176: 5 | I176: 3501 | J176: 19 | K176: 1800 | L176: 2024-01-27
E177: 6 | F177: 2024-02-02 | G177: 3507 | H177: 0 | I177: 3521 | J177: 14 | K177: 1814 | L177: 2024-02-02
E178: 6 | F178: 2024-02-08 | G178: 3522 | H178: 0 | I178: 3541 | J178: 19 | K178: 1833 | L178: 2024-02-08
E179: 6 | F179: 2024-02-14 | G179: 3542 | H179: 0 | I179: 3561 | J179: 19 | K179: 1852 | L179: 2024-02-14
E180: 6 | F180: 2024-02-20 | G180: 3562 | H180: 0 | I180: 3581 | J180: 19 | K180: 1871 | L180: 2024-02-20
E181: 6 | F181: 2024-02-26 | G181: 3582 | H181: 5 | I181: 3601 | J181: 19 | K181: 1890 | L181: 2024-02-26
E182: 6 | F182: 2024-03-03 | G182: 3607 | H182: 0 | I182: 3621 | J182: 14 | K182: 1904 | L182: 2024-03-03
E183: 6 | F183: 2024-03-09 | G183: 3622 | H183: 0 | I183: 3641 | J183: 19 | K183: 1923 | L183: 2024-03-09
E184: 6 | F184: 2024-03-15 | G184: 3642 | H184: 0 | I184: 3661 | J184: 19 | K184: 1942 | L184: 2024-03-15
E185: 6 | F185: 2024-03-21 | G185: 3662 | H185: 0 | I185: 3681 | J185: 19 | K185: 1961 | L185: 2024-03-21
E186: 6 | F186: 2024-03-27 | G186: 3682 | H186: 5 | I186: 3701 | J186: 19 | K186: 1980 | L186: 2024-03-27
E187: 6 | F187: 2024-04-02 | G187: 3707 | H187: 0 | I187: 3721 | J187: 14 | K187: 1994 | L187: 2024-04-02
E188: 6 | F188: 2024-04-08 | G188: 3722 | H188: 0 | I188: 3741 | J188: 19 | K188: 2013 | L188: 2024-04-08
E189: 6 | F189: 2024-04-14 | G189: 3742 | H189: 0 | I189: 3761 | J189: 19 | K189: 2032 | L189: 2024-04-14
E190: 6 | F190: 2024-04-20 | G190: 3762 | H190: 0 | I190: 3781 | J190: 19 | K190: 2051 | L190: 2024-04-20
E191: 6 | F191: 2024-04-26 | G191: 3782 | H191: 5 | I191: 3801 | J191: 19 | K191: 2070 | L191: 2024-04-26
E192: 6 | F192: 2024-05-02 | G192: 3807 | H192: 0 | I192: 3821 | J192: 14 | K192: 2084 | L192: 2024-05-02
E193: 6 | F193: 2024-05-08 | G193: 3822 | H193: 0 | I193: 3841 | J193: 19 | K193: 2103 | L193: 2024-05-08
E194: 6 | F194: 2024-05-14 | G194: 3842 | H194: 0 | I194: 3861 | J194: 19 | K194: 2122 | L194: 2024-05-14
E195: =IF(F194>$C$8,6,7) -> 6 | F195: 2024-05-20 | G195: =G194+H194+J194+IF($C$1="IGEN",IF(I194<100,20,1),1) -> 3862 | H195: 0 | I195: 3881 | J195: =IF(G195-I195<0,I195-G195,0) -> 19 | K195: 2141 | L195: =F195 -> 2024-05-20
E196: 6 | F196: =F195+E196 -> 2024-05-26 | G196: 3882 | H196: =IF(YEAR(F197)=YEAR(F196),IF(MONTH(F197)>MONTH(F196),VLOOKUP(G196,$N$13:$P$25,IF(F196>$C$7,3,2),1),0),VLOOKUP(G196,$N$13:$P$25,IF(F196>$C$7,3,2),1)) -> 5 | I196: =I195+20 -> 3901 | J196: 19 | K196: =J196+K195 -> 2160 | L196: 2024-05-26
E197: 6 | F197: 2024-06-01 | G197: 3907 | H197: 0 | I197: 3921 | J197: 14 | K197: 2174 | L197: 2024-06-01
E198: 6 | F198: 2024-06-07 | G198: 3922 | H198: 0 | I198: 3941 | J198: 19 | K198: 2193 | L198: 2024-06-07
E199: 6 | F199: 2024-06-13 | G199: 3942 | H199: 0 | I199: 3961 | J199: 19 | K199: 2212 | L199: 2024-06-13
E200: 6 | F200: 2024-06-19 | G200: 3962 | H200: 0 | I200: 3981 | J200: 19 | K200: 2231 | L200: 2024-06-19
... 310 more rows

Sheet Reinkarnált JAVASOLT
B1: Klasszik karakter? | C1: NEM | E1: nap/jhét | F1: dátum | G1: játékhét | H1: EXT | I1: elérhető fordulószám | J1: venni kell | K1: összes várásolt | L1: dátum2 | R1: IGEN
B2: Indulás/reinkarnálás dátuma: | C2: 2021-03-01 | E2: =IF(F2>$C$8,6,7) -> 7 | F2: =C2 -> 2021-03-01 | G2: =IF(C1="IGEN",116,C4) -> 1400 | H2: =IF(MONTH(F3)>MONTH(F2),VLOOKUP(G2,$N$5:$P$24,IF(F2>$C$7,3,2),1),0) -> 0 | I2: =C5+20 -> 21 | J2: =IF(G2-I2<0,I2-G2,0) -> 0 | L2: =F2 -> 2021-03-01 | R2: NEM
E3: =IF(F2>$C$8,6,7) -> 7 | F3: =F2+E3 -> 2021-03-08 | G3: =G2+H2+J2+IF($C$1="IGEN",IF(I2<100,20,1),1) -> 1401 | H3: =IF(YEAR(F4)=YEAR(F3),IF(MONTH(F4)>MONTH(F3),VLOOKUP(G3,$N$5:$P$25,IF(F3>$C$7,3,2),1),0),VLOOKUP(G3,$N$5:$P$25,IF(F3>$C$7,3,2),1)) -> 0 | I3: =I2+20 -> 41 | J3: =IF(G3-I3<0,I3-G3,0) -> 0 | K3: =J3+K2 -> 0 | L3: =F3 -> 2021-03-08
B4: Karakter induló játékhete (ha nem klasszik) | C4: 1400 | E4: 7 | F4: =F3+E4 -> 2021-03-15 | G4: 1402 | H4: =IF(YEAR(F5)=YEAR(F4),IF(MONTH(F5)>MONTH(F4),VLOOKUP(G4,$N$5:$P$25,IF(F4>$C$7,3,2),1),0),VLOOKUP(G4,$N$5:$P$25,IF(F4>$C$7,3,2),1)) -> 0 | I4: =I3+20 -> 61 | J4: 0 | K4: =J4+K3 -> 0 | L4: 2021-03-15 | N4: játékhét | O4: + | P4: ++
B5: Jelenlegi fordulószáma (ha nem klasszik) | C5: 1 | E5: 7 | F5: 2021-03-22 | G5: 1403 | H5: =IF(YEAR(F6)=YEAR(F5),IF(MONTH(F6)>MONTH(F5),VLOOKUP(G5,$N$5:$P$25,IF(F5>$C$7,3,2),1),0),VLOOKUP(G5,$N$5:$P$25,IF(F5>$C$7,3,2),1)) -> 0 | I5: 81 | J5: 0 | K5: 0 | L5: 2021-03-22 | N5: 0 | O5: 300 | P5: =O5 -> 300 | R5: ="200. játékhétig +"&O5&" forduló kérhető." -> 200. játékhétig +300 forduló kérhető.
E6: 7 | F6: 2021-03-29 | G6: 1404 | H6: =IF(YEAR(F7)=YEAR(F6),IF(MONTH(F7)>MONTH(F6),VLOOKUP(G6,$N$5:$P$25,IF(F6>$C$7,3,2),1),0),VLOOKUP(G6,$N$5:$P$25,IF(F6>$C$7,3,2),1)) -> 10 | I6: 101 | J6: 0 | K6: 0 | L6: 2021-03-29 | N6: 200 | O6: 200 | P6: =O5 -> 300 | R6: =N6+1&"-"&N7&". Játékhétig +"&O6 -> 201-350. Játékhétig +200
B7: Tudati ismétlés megszerzésének dátuma: | C7: 2021-05-01 | E7: 7 | F7: 2021-04-05 | G7: 1415 | H7: =IF(YEAR(F8)=YEAR(F7),IF(MONTH(F8)>MONTH(F7),VLOOKUP(G7,$N$5:$P$25,IF(F7>$C$7,3,2),1),0),VLOOKUP(G7,$N$5:$P$25,IF(F7>$C$7,3,2),1)) -> 0 | I7: 121 | J7: 0 | K7: 0 | L7: 2021-04-05 | N7: 350 | O7: 150 | P7: =O6 -> 200 | R7: =N7+1&"-"&N8&". Játékhétig +"&O7 -> 351-500. Játékhétig +150
B8: 6 napos játékhét megszerzésének dátuma: | C8: 2021-07-01 | E8: 7 | F8: 2021-04-12 | G8: 1416 | H8: =IF(YEAR(F9)=YEAR(F8),IF(MONTH(F9)>MONTH(F8),VLOOKUP(G8,$N$5:$P$25,IF(F8>$C$7,3,2),1),0),VLOOKUP(G8,$N$5:$P$25,IF(F8>$C$7,3,2),1)) -> 0 | I8: 141 | J8: 0 | K8: 0 | L8: 2021-04-12 | N8: 500 | O8: 120 | P8: =O7 -> 150 | R8: =N8+1&"-"&N9&". Játékhétig +"&O8 -> 501-650. Játékhétig +120
E9: 7 | F9: 2021-04-19 | G9: 1417 | H9: =IF(YEAR(F10)=YEAR(F9),IF(MONTH(F10)>MONTH(F9),VLOOKUP(G9,$N$5:$P$25,IF(F9>$C$7,3,2),1),0),VLOOKUP(G9,$N$5:$P$25,IF(F9>$C$7,3,2),1)) -> 0 | I9: 161 | J9: 0 | K9: 0 | L9: 2021-04-19 | N9: 650 | O9: 100 | P9: =O8 -> 120 | R9: =N9+1&"-"&N10&". Játékhétig +"&O9 -> 651-800. Játékhétig +100
E10: 7 | F10: 2021-04-26 | G10: 1418 | H10: =IF(YEAR(F11)=YEAR(F10),IF(MONTH(F11)>MONTH(F10),VLOOKUP(G10,$N$5:$P$25,IF(F10>$C$7,3,2),1),0),VLOOKUP(G10,$N$5:$P$25,IF(F10>$C$7,3,2),1)) -> 10 | I10: 181 | J10: 0 | K10: 0 | L10: 2021-04-26 | N10: 800 | O10: 75 | P10: =O9 -> 100 | R10: =N10+1&"-"&N11&". Játékhétig +"&O10 -> 801-950. Játékhétig +75
B11: Maximum vehető játékhét | C11: 1800 | E11: 7 | F11: 2021-05-03 | G11: 1429 | H11: =IF(YEAR(F12)=YEAR(F11),IF(MONTH(F12)>MONTH(F11),VLOOKUP(G11,$N$5:$P$25,IF(F11>$C$7,3,2),1),0),VLOOKUP(G11,$N$5:$P$25,IF(F11>$C$7,3,2),1)) -> 0 | I11: 201 | J11: 0 | K11: 0 | L11: 2021-05-03 | N11: 950 | O11: 30 | P11: =O10 -> 75 | R11: =N11+1&"-"&N12&". Játékhétig +"&O11 -> 951-1200. Játékhétig +30
B12: szükséges EXT venni db: | C12: =VLOOKUP(C11,G:K,5,1) -> 92 | E12: 7 | F12: 2021-05-10 | G12: 1430 | H12: =IF(YEAR(F13)=YEAR(F12),IF(MONTH(F13)>MONTH(F12),VLOOKUP(G12,$N$5:$P$25,IF(F12>$C$7,3,2),1),0),VLOOKUP(G12,$N$5:$P$25,IF(F12>$C$7,3,2),1)) -> 0 | I12: 221 | J12: 0 | K12: 0 | L12: 2021-05-10 | N12: 1200 | O12: 10 | P12: =O11 -> 30 | R12: =N12+1&"-"&N13&". Játékhétig +"&O12 -> 1201-1500. Játékhétig +10
B13: HUF | C13: =C12*50 -> 4600 | E13: 7 | F13: 2021-05-17 | G13: 1431 | H13: =IF(YEAR(F14)=YEAR(F13),IF(MONTH(F14)>MONTH(F13),VLOOKUP(G13,$N$5:$P$25,IF(F13>$C$7,3,2),1),0),VLOOKUP(G13,$N$5:$P$25,IF(F13>$C$7,3,2),1)) -> 0 | I13: 241 | J13: 0 | K13: 0 | L13: 2021-05-17 | N13: 1500 | O13: 5 | P13: =O12 -> 10 | R13: =N13+1&"-"&N14&". Játékhétig +"&O13 -> 1501-1800. Játékhétig +5
B14: (abban az esetben, ha minden héten maximum lépés van) | E14: 7 | F14: 2021-05-24 | G14: 1432 | H14: =IF(YEAR(F15)=YEAR(F14),IF(MONTH(F15)>MONTH(F14),VLOOKUP(G14,$N$5:$P$25,IF(F14>$C$7,3,2),1),0),VLOOKUP(G14,$N$5:$P$25,IF(F14>$C$7,3,2),1)) -> 0 | I14: 261 | J14: 0 | K14: 0 | L14: 2021-05-24 | N14: 1800 | O14: 3 | P14: =O13 -> 5 | R14: =N14+1&"-"&N23&". Játékhéttől +"&O14 -> 1801-. Játékhéttől +3
E15: 7 | F15: 2021-05-31 | G15: 1433 | H15: =IF(YEAR(F16)=YEAR(F15),IF(MONTH(F16)>MONTH(F15),VLOOKUP(G15,$N$5:$P$25,IF(F15>$C$7,3,2),1),0),VLOOKUP(G15,$N$5:$P$25,IF(F15>$C$7,3,2),1)) -> 30 | I15: 281 | J15: 0 | K15: 0 | L15: 2021-05-31
B16: cél fordulószám | C16: 1500 | E16: 7 | F16: 2021-06-07 | G16: 1464 | H16: =IF(YEAR(F17)=YEAR(F16),IF(MONTH(F17)>MONTH(F16),VLOOKUP(G16,$N$5:$P$25,IF(F16>$C$7,3,2),1),0),VLOOKUP(G16,$N$5:$P$25,IF(F16>$C$7,3,2),1)) -> 0 | I16: 301 | J16: 0 | K16: 0 | L16: 2021-06-07
B17: szükséges EXT venni db: | C17: =VLOOKUP(C16,G:K,5,1) -> 0 | E17: 7 | F17: 2021-06-14 | G17: 1465 | H17: =IF(YEAR(F18)=YEAR(F17),IF(MONTH(F18)>MONTH(F17),VLOOKUP(G17,$N$5:$P$25,IF(F17>$C$7,3,2),1),0),VLOOKUP(G17,$N$5:$P$25,IF(F17>$C$7,3,2),1)) -> 0 | I17: 321 | J17: 0 | K17: 0 | L17: 2021-06-14
B18: HUF | C18: =C17*50 -> 0 | E18: 7 | F18: 2021-06-21 | G18: 1466 | H18: =IF(YEAR(F19)=YEAR(F18),IF(MONTH(F19)>MONTH(F18),VLOOKUP(G18,$N$5:$P$25,IF(F18>$C$7,3,2),1),0),VLOOKUP(G18,$N$5:$P$25,IF(F18>$C$7,3,2),1)) -> 0 | I18: 341 | J18: 0 | K18: 0 | L18: 2021-06-21
B19: Cél fordulószám elérésének legkorábbi dátuma | C19: =VLOOKUP(C16,I:L,4,1) -> 2022-05-31 | E19: 7 | F19: 2021-06-28 | G19: 1467 | H19: =IF(YEAR(F20)=YEAR(F19),IF(MONTH(F20)>MONTH(F19),VLOOKUP(G19,$N$5:$P$25,IF(F19>$C$7,3,2),1),0),VLOOKUP(G19,$N$5:$P$25,IF(F19>$C$7,3,2),1)) -> 30 | I19: 361 | J19: 0 | K19: 0 | L19: 2021-06-28
E20: 7 | F20: 2021-07-05 | G20: 1498 | H20: =IF(YEAR(F21)=YEAR(F20),IF(MONTH(F21)>MONTH(F20),VLOOKUP(G20,$N$5:$P$25,IF(F20>$C$7,3,2),1),0),VLOOKUP(G20,$N$5:$P$25,IF(F20>$C$7,3,2),1)) -> 0 | I20: 381 | J20: 0 | K20: 0 | L20: 2021-07-05
E21: 6 | F21: 2021-07-11 | G21: 1499 | H21: =IF(YEAR(F22)=YEAR(F21),IF(MONTH(F22)>MONTH(F21),VLOOKUP(G21,$N$5:$P$25,IF(F21>$C$7,3,2),1),0),VLOOKUP(G21,$N$5:$P$25,IF(F21>$C$7,3,2),1)) -> 0 | I21: 401 | J21: 0 | K21: 0 | L21: 2021-07-11
E22: 6 | F22: 2021-07-17 | G22: 1500 | H22: =IF(YEAR(F23)=YEAR(F22),IF(MONTH(F23)>MONTH(F22),VLOOKUP(G22,$N$5:$P$25,IF(F22>$C$7,3,2),1),0),VLOOKUP(G22,$N$5:$P$25,IF(F22>$C$7,3,2),1)) -> 0 | I22: 421 | J22: 0 | K22: 0 | L22: 2021-07-17
E23: 6 | F23: 2021-07-23 | G23: 1501 | H23: =IF(YEAR(F24)=YEAR(F23),IF(MONTH(F24)>MONTH(F23),VLOOKUP(G23,$N$5:$P$25,IF(F23>$C$7,3,2),1),0),VLOOKUP(G23,$N$5:$P$25,IF(F23>$C$7,3,2),1)) -> 0 | I23: 441 | J23: 0 | K23: 0 | L23: 2021-07-23
E24: 6 | F24: 2021-07-29 | G24: 1502 | H24: =IF(YEAR(F25)=YEAR(F24),IF(MONTH(F25)>MONTH(F24),VLOOKUP(G24,$N$5:$P$25,IF(F24>$C$7,3,2),1),0),VLOOKUP(G24,$N$5:$P$25,IF(F24>$C$7,3,2),1)) -> 10 | I24: 461 | J24: 0 | K24: 0 | L24: 2021-07-29
E25: 6 | F25: 2021-08-04 | G25: 1513 | H25: =IF(YEAR(F26)=YEAR(F25),IF(MONTH(F26)>MONTH(F25),VLOOKUP(G25,$N$5:$P$25,IF(F25>$C$7,3,2),1),0),VLOOKUP(G25,$N$5:$P$25,IF(F25>$C$7,3,2),1)) -> 0 | I25: 481 | J25: 0 | K25: 0 | L25: 2021-08-04
E26: 6 | F26: 2021-08-10 | G26: 1514 | H26: =IF(YEAR(F27)=YEAR(F26),IF(MONTH(F27)>MONTH(F26),VLOOKUP(G26,$N$5:$P$25,IF(F26>$C$7,3,2),1),0),VLOOKUP(G26,$N$5:$P$25,IF(F26>$C$7,3,2),1)) -> 0 | I26: 501 | J26: 0 | K26: 0 | L26: 2021-08-10
E27: 6 | F27: 2021-08-16 | G27: 1515 | H27: =IF(YEAR(F28)=YEAR(F27),IF(MONTH(F28)>MONTH(F27),VLOOKUP(G27,$N$5:$P$25,IF(F27>$C$7,3,2),1),0),VLOOKUP(G27,$N$5:$P$25,IF(F27>$C$7,3,2),1)) -> 0 | I27: 521 | J27: 0 | K27: 0 | L27: 2021-08-16
E28: 6 | F28: 2021-08-22 | G28: 1516 | H28: =IF(YEAR(F29)=YEAR(F28),IF(MONTH(F29)>MONTH(F28),VLOOKUP(G28,$N$5:$P$25,IF(F28>$C$7,3,2),1),0),VLOOKUP(G28,$N$5:$P$25,IF(F28>$C$7,3,2),1)) -> 0 | I28: 541 | J28: 0 | K28: 0 | L28: 2021-08-22
E29: 6 | F29: 2021-08-28 | G29: 1517 | H29: =IF(YEAR(F30)=YEAR(F29),IF(MONTH(F30)>MONTH(F29),VLOOKUP(G29,$N$5:$P$25,IF(F29>$C$7,3,2),1),0),VLOOKUP(G29,$N$5:$P$25,IF(F29>$C$7,3,2),1)) -> 10 | I29: 561 | J29: 0 | K29: 0 | L29: 2021-08-28
E30: 6 | F30: 2021-09-03 | G30: 1528 | H30: =IF(YEAR(F31)=YEAR(F30),IF(MONTH(F31)>MONTH(F30),VLOOKUP(G30,$N$5:$P$25,IF(F30>$C$7,3,2),1),0),VLOOKUP(G30,$N$5:$P$25,IF(F30>$C$7,3,2),1)) -> 0 | I30: 581 | J30: 0 | K30: 0 | L30: 2021-09-03
E31: 6 | F31: 2021-09-09 | G31: 1529 | H31: =IF(YEAR(F32)=YEAR(F31),IF(MONTH(F32)>MONTH(F31),VLOOKUP(G31,$N$5:$P$25,IF(F31>$C$7,3,2),1),0),VLOOKUP(G31,$N$5:$P$25,IF(F31>$C$7,3,2),1)) -> 0 | I31: 601 | J31: 0 | K31: 0 | L31: 2021-09-09
E32: 6 | F32: 2021-09-15 | G32: 1530 | H32: =IF(YEAR(F33)=YEAR(F32),IF(MONTH(F33)>MONTH(F32),VLOOKUP(G32,$N$5:$P$25,IF(F32>$C$7,3,2),1),0),VLOOKUP(G32,$N$5:$P$25,IF(F32>$C$7,3,2),1)) -> 0 | I32: 621 | J32: 0 | K32: 0 | L32: 2021-09-15
E33: 6 | F33: 2021-09-21 | G33: 1531 | H33: =IF(YEAR(F34)=YEAR(F33),IF(MONTH(F34)>MONTH(F33),VLOOKUP(G33,$N$5:$P$25,IF(F33>$C$7,3,2),1),0),VLOOKUP(G33,$N$5:$P$25,IF(F33>$C$7,3,2),1)) -> 0 | I33: 641 | J33: 0 | K33: 0 | L33: 2021-09-21
E34: 6 | F34: 2021-09-27 | G34: 1532 | H34: =IF(YEAR(F35)=YEAR(F34),IF(MONTH(F35)>MONTH(F34),VLOOKUP(G34,$N$5:$P$25,IF(F34>$C$7,3,2),1),0),VLOOKUP(G34,$N$5:$P$25,IF(F34>$C$7,3,2),1)) -> 10 | I34: 661 | J34: 0 | K34: 0 | L34: 2021-09-27
E35: 6 | F35: 2021-10-03 | G35: 1543 | H35: =IF(YEAR(F36)=YEAR(F35),IF(MONTH(F36)>MONTH(F35),VLOOKUP(G35,$N$5:$P$25,IF(F35>$C$7,3,2),1),0),VLOOKUP(G35,$N$5:$P$25,IF(F35>$C$7,3,2),1)) -> 0 | I35: 681 | J35: 0 | K35: 0 | L35: 2021-10-03
E36: 6 | F36: 2021-10-09 | G36: 1544 | H36: =IF(YEAR(F37)=YEAR(F36),IF(MONTH(F37)>MONTH(F36),VLOOKUP(G36,$N$5:$P$25,IF(F36>$C$7,3,2),1),0),VLOOKUP(G36,$N$5:$P$25,IF(F36>$C$7,3,2),1)) -> 0 | I36: 701 | J36: 0 | K36: 0 | L36: 2021-10-09
E37: 6 | F37: 2021-10-15 | G37: 1545 | H37: =IF(YEAR(F38)=YEAR(F37),IF(MONTH(F38)>MONTH(F37),VLOOKUP(G37,$N$5:$P$25,IF(F37>$C$7,3,2),1),0),VLOOKUP(G37,$N$5:$P$25,IF(F37>$C$7,3,2),1)) -> 0 | I37: 721 | J37: 0 | K37: 0 | L37: 2021-10-15
E38: 6 | F38: 2021-10-21 | G38: 1546 | H38: =IF(YEAR(F39)=YEAR(F38),IF(MONTH(F39)>MONTH(F38),VLOOKUP(G38,$N$5:$P$25,IF(F38>$C$7,3,2),1),0),VLOOKUP(G38,$N$5:$P$25,IF(F38>$C$7,3,2),1)) -> 0 | I38: 741 | J38: 0 | K38: 0 | L38: 2021-10-21
E39: 6 | F39: 2021-10-27 | G39: 1547 | H39: =IF(YEAR(F40)=YEAR(F39),IF(MONTH(F40)>MONTH(F39),VLOOKUP(G39,$N$5:$P$25,IF(F39>$C$7,3,2),1),0),VLOOKUP(G39,$N$5:$P$25,IF(F39>$C$7,3,2),1)) -> 10 | I39: 761 | J39: 0 | K39: 0 | L39: 2021-10-27
E40: 6 | F40: 2021-11-02 | G40: 1558 | H40: =IF(YEAR(F41)=YEAR(F40),IF(MONTH(F41)>MONTH(F40),VLOOKUP(G40,$N$5:$P$25,IF(F40>$C$7,3,2),1),0),VLOOKUP(G40,$N$5:$P$25,IF(F40>$C$7,3,2),1)) -> 0 | I40: 781 | J40: 0 | K40: 0 | L40: 2021-11-02
E41: 6 | F41: 2021-11-08 | G41: 1559 | H41: =IF(YEAR(F42)=YEAR(F41),IF(MONTH(F42)>MONTH(F41),VLOOKUP(G41,$N$5:$P$25,IF(F41>$C$7,3,2),1),0),VLOOKUP(G41,$N$5:$P$25,IF(F41>$C$7,3,2),1)) -> 0 | I41: 801 | J41: 0 | K41: 0 | L41: 2021-11-08
E42: 6 | F42: 2021-11-14 | G42: 1560 | H42: =IF(YEAR(F43)=YEAR(F42),IF(MONTH(F43)>MONTH(F42),VLOOKUP(G42,$N$5:$P$25,IF(F42>$C$7,3,2),1),0),VLOOKUP(G42,$N$5:$P$25,IF(F42>$C$7,3,2),1)) -> 0 | I42: 821 | J42: 0 | K42: 0 | L42: 2021-11-14
E43: 6 | F43: 2021-11-20 | G43: 1561 | H43: =IF(YEAR(F44)=YEAR(F43),IF(MONTH(F44)>MONTH(F43),VLOOKUP(G43,$N$5:$P$25,IF(F43>$C$7,3,2),1),0),VLOOKUP(G43,$N$5:$P$25,IF(F43>$C$7,3,2),1)) -> 0 | I43: 841 | J43: 0 | K43: 0 | L43: 2021-11-20
E44: 6 | F44: 2021-11-26 | G44: 1562 | H44: =IF(YEAR(F45)=YEAR(F44),IF(MONTH(F45)>MONTH(F44),VLOOKUP(G44,$N$5:$P$25,IF(F44>$C$7,3,2),1),0),VLOOKUP(G44,$N$5:$P$25,IF(F44>$C$7,3,2),1)) -> 10 | I44: 861 | J44: 0 | K44: 0 | L44: 2021-11-26
E45: 6 | F45: 2021-12-02 | G45: 1573 | H45: =IF(YEAR(F46)=YEAR(F45),IF(MONTH(F46)>MONTH(F45),VLOOKUP(G45,$N$5:$P$25,IF(F45>$C$7,3,2),1),0),VLOOKUP(G45,$N$5:$P$25,IF(F45>$C$7,3,2),1)) -> 0 | I45: 881 | J45: 0 | K45: 0 | L45: 2021-12-02
E46: 6 | F46: 2021-12-08 | G46: 1574 | H46: =IF(YEAR(F47)=YEAR(F46),IF(MONTH(F47)>MONTH(F46),VLOOKUP(G46,$N$5:$P$25,IF(F46>$C$7,3,2),1),0),VLOOKUP(G46,$N$5:$P$25,IF(F46>$C$7,3,2),1)) -> 0 | I46: 901 | J46: 0 | K46: 0 | L46: 2021-12-08
E47: 6 | F47: 2021-12-14 | G47: 1575 | H47: =IF(YEAR(F48)=YEAR(F47),IF(MONTH(F48)>MONTH(F47),VLOOKUP(G47,$N$5:$P$25,IF(F47>$C$7,3,2),1),0),VLOOKUP(G47,$N$5:$P$25,IF(F47>$C$7,3,2),1)) -> 0 | I47: 921 | J47: 0 | K47: 0 | L47: 2021-12-14
E48: 6 | F48: 2021-12-20 | G48: 1576 | H48: =IF(YEAR(F49)=YEAR(F48),IF(MONTH(F49)>MONTH(F48),VLOOKUP(G48,$N$5:$P$25,IF(F48>$C$7,3,2),1),0),VLOOKUP(G48,$N$5:$P$25,IF(F48>$C$7,3,2),1)) -> 0 | I48: 941 | J48: 0 | K48: 0 | L48: 2021-12-20
E49: 6 | F49: 2021-12-26 | G49: 1577 | H49: =IF(YEAR(F50)=YEAR(F49),IF(MONTH(F50)>MONTH(F49),VLOOKUP(G49,$N$5:$P$25,IF(F49>$C$7,3,2),1),0),VLOOKUP(G49,$N$5:$P$25,IF(F49>$C$7,3,2),1)) -> 10 | I49: 961 | J49: 0 | K49: 0 | L49: 2021-12-26
E50: 6 | F50: 2022-01-01 | G50: 1588 | H50: =IF(YEAR(F51)=YEAR(F50),IF(MONTH(F51)>MONTH(F50),VLOOKUP(G50,$N$5:$P$25,IF(F50>$C$7,3,2),1),0),VLOOKUP(G50,$N$5:$P$25,IF(F50>$C$7,3,2),1)) -> 0 | I50: 981 | J50: 0 | K50: 0 | L50: 2022-01-01
E51: 6 | F51: 2022-01-07 | G51: 1589 | H51: =IF(YEAR(F52)=YEAR(F51),IF(MONTH(F52)>MONTH(F51),VLOOKUP(G51,$N$5:$P$25,IF(F51>$C$7,3,2),1),0),VLOOKUP(G51,$N$5:$P$25,IF(F51>$C$7,3,2),1)) -> 0 | I51: 1001 | J51: 0 | K51: 0 | L51: 2022-01-07
E52: 6 | F52: 2022-01-13 | G52: 1590 | H52: =IF(YEAR(F53)=YEAR(F52),IF(MONTH(F53)>MONTH(F52),VLOOKUP(G52,$N$5:$P$25,IF(F52>$C$7,3,2),1),0),VLOOKUP(G52,$N$5:$P$25,IF(F52>$C$7,3,2),1)) -> 0 | I52: 1021 | J52: 0 | K52: 0 | L52: 2022-01-13
E53: 6 | F53: 2022-01-19 | G53: 1591 | H53: =IF(YEAR(F54)=YEAR(F53),IF(MONTH(F54)>MONTH(F53),VLOOKUP(G53,$N$5:$P$25,IF(F53>$C$7,3,2),1),0),VLOOKUP(G53,$N$5:$P$25,IF(F53>$C$7,3,2),1)) -> 0 | I53: 1041 | J53: 0 | K53: 0 | L53: 2022-01-19
E54: 6 | F54: 2022-01-25 | G54: 1592 | H54: =IF(YEAR(F55)=YEAR(F54),IF(MONTH(F55)>MONTH(F54),VLOOKUP(G54,$N$5:$P$25,IF(F54>$C$7,3,2),1),0),VLOOKUP(G54,$N$5:$P$25,IF(F54>$C$7,3,2),1)) -> 0 | I54: 1061 | J54: 0 | K54: 0 | L54: 2022-01-25
E55: 6 | F55: 2022-01-31 | G55: 1593 | H55: =IF(YEAR(F56)=YEAR(F55),IF(MONTH(F56)>MONTH(F55),VLOOKUP(G55,$N$5:$P$25,IF(F55>$C$7,3,2),1),0),VLOOKUP(G55,$N$5:$P$25,IF(F55>$C$7,3,2),1)) -> 10 | I55: 1081 | J55: 0 | K55: 0 | L55: 2022-01-31
E56: 6 | F56: 2022-02-06 | G56: 1604 | H56: =IF(YEAR(F57)=YEAR(F56),IF(MONTH(F57)>MONTH(F56),VLOOKUP(G56,$N$5:$P$25,IF(F56>$C$7,3,2),1),0),VLOOKUP(G56,$N$5:$P$25,IF(F56>$C$7,3,2),1)) -> 0 | I56: 1101 | J56: 0 | K56: 0 | L56: 2022-02-06
E57: 6 | F57: 2022-02-12 | G57: 1605 | H57: =IF(YEAR(F58)=YEAR(F57),IF(MONTH(F58)>MONTH(F57),VLOOKUP(G57,$N$5:$P$25,IF(F57>$C$7,3,2),1),0),VLOOKUP(G57,$N$5:$P$25,IF(F57>$C$7,3,2),1)) -> 0 | I57: 1121 | J57: 0 | K57: 0 | L57: 2022-02-12
E58: 6 | F58: 2022-02-18 | G58: 1606 | H58: =IF(YEAR(F59)=YEAR(F58),IF(MONTH(F59)>MONTH(F58),VLOOKUP(G58,$N$5:$P$25,IF(F58>$C$7,3,2),1),0),VLOOKUP(G58,$N$5:$P$25,IF(F58>$C$7,3,2),1)) -> 0 | I58: 1141 | J58: 0 | K58: 0 | L58: 2022-02-18
E59: 6 | F59: 2022-02-24 | G59: 1607 | H59: =IF(YEAR(F60)=YEAR(F59),IF(MONTH(F60)>MONTH(F59),VLOOKUP(G59,$N$5:$P$25,IF(F59>$C$7,3,2),1),0),VLOOKUP(G59,$N$5:$P$25,IF(F59>$C$7,3,2),1)) -> 10 | I59: 1161 | J59: 0 | K59: 0 | L59: 2022-02-24
E60: 6 | F60: 2022-03-02 | G60: 1618 | H60: =IF(YEAR(F61)=YEAR(F60),IF(MONTH(F61)>MONTH(F60),VLOOKUP(G60,$N$5:$P$25,IF(F60>$C$7,3,2),1),0),VLOOKUP(G60,$N$5:$P$25,IF(F60>$C$7,3,2),1)) -> 0 | I60: 1181 | J60: 0 | K60: 0 | L60: 2022-03-02
E61: 6 | F61: 2022-03-08 | G61: 1619 | H61: =IF(YEAR(F62)=YEAR(F61),IF(MONTH(F62)>MONTH(F61),VLOOKUP(G61,$N$5:$P$25,IF(F61>$C$7,3,2),1),0),VLOOKUP(G61,$N$5:$P$25,IF(F61>$C$7,3,2),1)) -> 0 | I61: 1201 | J61: 0 | K61: 0 | L61: 2022-03-08
E62: 6 | F62: 2022-03-14 | G62: 1620 | H62: =IF(YEAR(F63)=YEAR(F62),IF(MONTH(F63)>MONTH(F62),VLOOKUP(G62,$N$5:$P$25,IF(F62>$C$7,3,2),1),0),VLOOKUP(G62,$N$5:$P$25,IF(F62>$C$7,3,2),1)) -> 0 | I62: 1221 | J62: 0 | K62: 0 | L62: 2022-03-14
E63: 6 | F63: 2022-03-20 | G63: 1621 | H63: =IF(YEAR(F64)=YEAR(F63),IF(MONTH(F64)>MONTH(F63),VLOOKUP(G63,$N$5:$P$25,IF(F63>$C$7,3,2),1),0),VLOOKUP(G63,$N$5:$P$25,IF(F63>$C$7,3,2),1)) -> 0 | I63: 1241 | J63: 0 | K63: 0 | L63: 2022-03-20
E64: 6 | F64: 2022-03-26 | G64: 1622 | H64: =IF(YEAR(F65)=YEAR(F64),IF(MONTH(F65)>MONTH(F64),VLOOKUP(G64,$N$5:$P$25,IF(F64>$C$7,3,2),1),0),VLOOKUP(G64,$N$5:$P$25,IF(F64>$C$7,3,2),1)) -> 10 | I64: 1261 | J64: 0 | K64: 0 | L64: 2022-03-26
E65: 6 | F65: 2022-04-01 | G65: 1633 | H65: =IF(YEAR(F66)=YEAR(F65),IF(MONTH(F66)>MONTH(F65),VLOOKUP(G65,$N$5:$P$25,IF(F65>$C$7,3,2),1),0),VLOOKUP(G65,$N$5:$P$25,IF(F65>$C$7,3,2),1)) -> 0 | I65: 1281 | J65: 0 | K65: 0 | L65: 2022-04-01
E66: 6 | F66: 2022-04-07 | G66: 1634 | H66: =IF(YEAR(F67)=YEAR(F66),IF(MONTH(F67)>MONTH(F66),VLOOKUP(G66,$N$5:$P$25,IF(F66>$C$7,3,2),1),0),VLOOKUP(G66,$N$5:$P$25,IF(F66>$C$7,3,2),1)) -> 0 | I66: 1301 | J66: 0 | K66: 0 | L66: 2022-04-07
E67: =IF(F66>$C$8,6,7) -> 6 | F67: 2022-04-13 | G67: =G66+H66+J66+IF($C$1="IGEN",IF(I66<100,20,1),1) -> 1635 | H67: =IF(YEAR(F68)=YEAR(F67),IF(MONTH(F68)>MONTH(F67),VLOOKUP(G67,$N$5:$P$25,IF(F67>$C$7,3,2),1),0),VLOOKUP(G67,$N$5:$P$25,IF(F67>$C$7,3,2),1)) -> 0 | I67: 1321 | J67: =IF(G67-I67<0,I67-G67,0) -> 0 | K67: 0 | L67: =F67 -> 2022-04-13
E68: 6 | F68: =F67+E68 -> 2022-04-19 | G68: 1636 | H68: =IF(YEAR(F69)=YEAR(F68),IF(MONTH(F69)>MONTH(F68),VLOOKUP(G68,$N$5:$P$25,IF(F68>$C$7,3,2),1),0),VLOOKUP(G68,$N$5:$P$25,IF(F68>$C$7,3,2),1)) -> 0 | I68: =I67+20 -> 1341 | J68: 0 | K68: =J68+K67 -> 0 | L68: 2022-04-19
E69: 6 | F69: 2022-04-25 | G69: 1637 | H69: =IF(YEAR(F70)=YEAR(F69),IF(MONTH(F70)>MONTH(F69),VLOOKUP(G69,$N$5:$P$25,IF(F69>$C$7,3,2),1),0),VLOOKUP(G69,$N$5:$P$25,IF(F69>$C$7,3,2),1)) -> 10 | I69: 1361 | J69: 0 | K69: 0 | L69: 2022-04-25
E70: 6 | F70: 2022-05-01 | G70: 1648 | H70: =IF(YEAR(F71)=YEAR(F70),IF(MONTH(F71)>MONTH(F70),VLOOKUP(G70,$N$5:$P$25,IF(F70>$C$7,3,2),1),0),VLOOKUP(G70,$N$5:$P$25,IF(F70>$C$7,3,2),1)) -> 0 | I70: 1381 | J70: 0 | K70: 0 | L70: 2022-05-01
E71: 6 | F71: 2022-05-07 | G71: 1649 | H71: =IF(YEAR(F72)=YEAR(F71),IF(MONTH(F72)>MONTH(F71),VLOOKUP(G71,$N$5:$P$25,IF(F71>$C$7,3,2),1),0),VLOOKUP(G71,$N$5:$P$25,IF(F71>$C$7,3,2),1)) -> 0 | I71: 1401 | J71: 0 | K71: 0 | L71: 2022-05-07
E72: 6 | F72: 2022-05-13 | G72: 1650 | H72: =IF(YEAR(F73)=YEAR(F72),IF(MONTH(F73)>MONTH(F72),VLOOKUP(G72,$N$5:$P$25,IF(F72>$C$7,3,2),1),0),VLOOKUP(G72,$N$5:$P$25,IF(F72>$C$7,3,2),1)) -> 0 | I72: 1421 | J72: 0 | K72: 0 | L72: 2022-05-13
E73: 6 | F73: 2022-05-19 | G73: 1651 | H73: =IF(YEAR(F74)=YEAR(F73),IF(MONTH(F74)>MONTH(F73),VLOOKUP(G73,$N$5:$P$25,IF(F73>$C$7,3,2),1),0),VLOOKUP(G73,$N$5:$P$25,IF(F73>$C$7,3,2),1)) -> 0 | I73: 1441 | J73: 0 | K73: 0 | L73: 2022-05-19
E74: 6 | F74: 2022-05-25 | G74: 1652 | H74: =IF(YEAR(F75)=YEAR(F74),IF(MONTH(F75)>MONTH(F74),VLOOKUP(G74,$N$5:$P$25,IF(F74>$C$7,3,2),1),0),VLOOKUP(G74,$N$5:$P$25,IF(F74>$C$7,3,2),1)) -> 0 | I74: 1461 | J74: 0 | K74: 0 | L74: 2022-05-25
E75: 6 | F75: 2022-05-31 | G75: 1653 | H75: =IF(YEAR(F76)=YEAR(F75),IF(MONTH(F76)>MONTH(F75),VLOOKUP(G75,$N$5:$P$25,IF(F75>$C$7,3,2),1),0),VLOOKUP(G75,$N$5:$P$25,IF(F75>$C$7,3,2),1)) -> 10 | I75: 1481 | J75: 0 | K75: 0 | L75: 2022-05-31
E76: 6 | F76: 2022-06-06 | G76: 1664 | H76: =IF(YEAR(F77)=YEAR(F76),IF(MONTH(F77)>MONTH(F76),VLOOKUP(G76,$N$5:$P$25,IF(F76>$C$7,3,2),1),0),VLOOKUP(G76,$N$5:$P$25,IF(F76>$C$7,3,2),1)) -> 0 | I76: 1501 | J76: 0 | K76: 0 | L76: 2022-06-06
E77: 6 | F77: 2022-06-12 | G77: 1665 | H77: =IF(YEAR(F78)=YEAR(F77),IF(MONTH(F78)>MONTH(F77),VLOOKUP(G77,$N$5:$P$25,IF(F77>$C$7,3,2),1),0),VLOOKUP(G77,$N$5:$P$25,IF(F77>$C$7,3,2),1)) -> 0 | I77: 1521 | J77: 0 | K77: 0 | L77: 2022-06-12
E78: 6 | F78: 2022-06-18 | G78: 1666 | H78: =IF(YEAR(F79)=YEAR(F78),IF(MONTH(F79)>MONTH(F78),VLOOKUP(G78,$N$5:$P$25,IF(F78>$C$7,3,2),1),0),VLOOKUP(G78,$N$5:$P$25,IF(F78>$C$7,3,2),1)) -> 0 | I78: 1541 | J78: 0 | K78: 0 | L78: 2022-06-18
E79: 6 | F79: 2022-06-24 | G79: 1667 | H79: =IF(YEAR(F80)=YEAR(F79),IF(MONTH(F80)>MONTH(F79),VLOOKUP(G79,$N$5:$P$25,IF(F79>$C$7,3,2),1),0),VLOOKUP(G79,$N$5:$P$25,IF(F79>$C$7,3,2),1)) -> 0 | I79: 1561 | J79: 0 | K79: 0 | L79: 2022-06-24
E80: 6 | F80: 2022-06-30 | G80: 1668 | H80: =IF(YEAR(F81)=YEAR(F80),IF(MONTH(F81)>MONTH(F80),VLOOKUP(G80,$N$5:$P$25,IF(F80>$C$7,3,2),1),0),VLOOKUP(G80,$N$5:$P$25,IF(F80>$C$7,3,2),1)) -> 10 | I80: 1581 | J80: 0 | K80: 0 | L80: 2022-06-30
E81: 6 | F81: 2022-07-06 | G81: 1679 | H81: =IF(YEAR(F82)=YEAR(F81),IF(MONTH(F82)>MONTH(F81),VLOOKUP(G81,$N$5:$P$25,IF(F81>$C$7,3,2),1),0),VLOOKUP(G81,$N$5:$P$25,IF(F81>$C$7,3,2),1)) -> 0 | I81: 1601 | J81: 0 | K81: 0 | L81: 2022-07-06
E82: 6 | F82: 2022-07-12 | G82: 1680 | H82: =IF(YEAR(F83)=YEAR(F82),IF(MONTH(F83)>MONTH(F82),VLOOKUP(G82,$N$5:$P$25,IF(F82>$C$7,3,2),1),0),VLOOKUP(G82,$N$5:$P$25,IF(F82>$C$7,3,2),1)) -> 0 | I82: 1621 | J82: 0 | K82: 0 | L82: 2022-07-12
E83: 6 | F83: 2022-07-18 | G83: 1681 | H83: =IF(YEAR(F84)=YEAR(F83),IF(MONTH(F84)>MONTH(F83),VLOOKUP(G83,$N$5:$P$25,IF(F83>$C$7,3,2),1),0),VLOOKUP(G83,$N$5:$P$25,IF(F83>$C$7,3,2),1)) -> 0 | I83: 1641 | J83: 0 | K83: 0 | L83: 2022-07-18
E84: 6 | F84: 2022-07-24 | G84: 1682 | H84: =IF(YEAR(F85)=YEAR(F84),IF(MONTH(F85)>MONTH(F84),VLOOKUP(G84,$N$5:$P$25,IF(F84>$C$7,3,2),1),0),VLOOKUP(G84,$N$5:$P$25,IF(F84>$C$7,3,2),1)) -> 0 | I84: 1661 | J84: 0 | K84: 0 | L84: 2022-07-24
E85: 6 | F85: 2022-07-30 | G85: 1683 | H85: =IF(YEAR(F86)=YEAR(F85),IF(MONTH(F86)>MONTH(F85),VLOOKUP(G85,$N$5:$P$25,IF(F85>$C$7,3,2),1),0),VLOOKUP(G85,$N$5:$P$25,IF(F85>$C$7,3,2),1)) -> 10 | I85: 1681 | J85: 0 | K85: 0 | L85: 2022-07-30
E86: 6 | F86: 2022-08-05 | G86: 1694 | H86: =IF(YEAR(F87)=YEAR(F86),IF(MONTH(F87)>MONTH(F86),VLOOKUP(G86,$N$5:$P$25,IF(F86>$C$7,3,2),1),0),VLOOKUP(G86,$N$5:$P$25,IF(F86>$C$7,3,2),1)) -> 0 | I86: 1701 | J86: 7 | K86: 7 | L86: 2022-08-05
E87: 6 | F87: 2022-08-11 | G87: 1702 | H87: =IF(YEAR(F88)=YEAR(F87),IF(MONTH(F88)>MONTH(F87),VLOOKUP(G87,$N$5:$P$25,IF(F87>$C$7,3,2),1),0),VLOOKUP(G87,$N$5:$P$25,IF(F87>$C$7,3,2),1)) -> 0 | I87: 1721 | J87: 19 | K87: 26 | L87: 2022-08-11
E88: 6 | F88: 2022-08-17 | G88: 1722 | H88: =IF(YEAR(F89)=YEAR(F88),IF(MONTH(F89)>MONTH(F88),VLOOKUP(G88,$N$5:$P$25,IF(F88>$C$7,3,2),1),0),VLOOKUP(G88,$N$5:$P$25,IF(F88>$C$7,3,2),1)) -> 0 | I88: 1741 | J88: 19 | K88: 45 | L88: 2022-08-17
E89: 6 | F89: 2022-08-23 | G89: 1742 | H89: =IF(YEAR(F90)=YEAR(F89),IF(MONTH(F90)>MONTH(F89),VLOOKUP(G89,$N$5:$P$25,IF(F89>$C$7,3,2),1),0),VLOOKUP(G89,$N$5:$P$25,IF(F89>$C$7,3,2),1)) -> 0 | I89: 1761 | J89: 19 | K89: 64 | L89: 2022-08-23
E90: 6 | F90: 2022-08-29 | G90: 1762 | H90: =IF(YEAR(F91)=YEAR(F90),IF(MONTH(F91)>MONTH(F90),VLOOKUP(G90,$N$5:$P$25,IF(F90>$C$7,3,2),1),0),VLOOKUP(G90,$N$5:$P$25,IF(F90>$C$7,3,2),1)) -> 10 | I90: 1781 | J90: 19 | K90: 83 | L90: 2022-08-29
E91: 6 | F91: 2022-09-04 | G91: 1792 | H91: =IF(YEAR(F92)=YEAR(F91),IF(MONTH(F92)>MONTH(F91),VLOOKUP(G91,$N$5:$P$25,IF(F91>$C$7,3,2),1),0),VLOOKUP(G91,$N$5:$P$25,IF(F91>$C$7,3,2),1)) -> 0 | I91: 1801 | J91: 9 | K91: 92 | L91: 2022-09-04
E92: 6 | F92: 2022-09-10 | G92: 1802 | H92: =IF(YEAR(F93)=YEAR(F92),IF(MONTH(F93)>MONTH(F92),VLOOKUP(G92,$N$5:$P$25,IF(F92>$C$7,3,2),1),0),VLOOKUP(G92,$N$5:$P$25,IF(F92>$C$7,3,2),1)) -> 0 | I92: 1821 | J92: 19 | K92: 111 | L92: 2022-09-10
E93: 6 | F93: 2022-09-16 | G93: 1822 | H93: =IF(YEAR(F94)=YEAR(F93),IF(MONTH(F94)>MONTH(F93),VLOOKUP(G93,$N$5:$P$25,IF(F93>$C$7,3,2),1),0),VLOOKUP(G93,$N$5:$P$25,IF(F93>$C$7,3,2),1)) -> 0 | I93: 1841 | J93: 19 | K93: 130 | L93: 2022-09-16
E94: 6 | F94: 2022-09-22 | G94: 1842 | H94: =IF(YEAR(F95)=YEAR(F94),IF(MONTH(F95)>MONTH(F94),VLOOKUP(G94,$N$5:$P$25,IF(F94>$C$7,3,2),1),0),VLOOKUP(G94,$N$5:$P$25,IF(F94>$C$7,3,2),1)) -> 0 | I94: 1861 | J94: 19 | K94: 149 | L94: 2022-09-22
E95: 6 | F95: 2022-09-28 | G95: 1862 | H95: =IF(YEAR(F96)=YEAR(F95),IF(MONTH(F96)>MONTH(F95),VLOOKUP(G95,$N$5:$P$25,IF(F95>$C$7,3,2),1),0),VLOOKUP(G95,$N$5:$P$25,IF(F95>$C$7,3,2),1)) -> 5 | I95: 1881 | J95: 19 | K95: 168 | L95: 2022-09-28
E96: 6 | F96: 2022-10-04 | G96: 1887 | H96: =IF(YEAR(F97)=YEAR(F96),IF(MONTH(F97)>MONTH(F96),VLOOKUP(G96,$N$5:$P$25,IF(F96>$C$7,3,2),1),0),VLOOKUP(G96,$N$5:$P$25,IF(F96>$C$7,3,2),1)) -> 0 | I96: 1901 | J96: 14 | K96: 182 | L96: 2022-10-04
E97: 6 | F97: 2022-10-10 | G97: 1902 | H97: =IF(YEAR(F98)=YEAR(F97),IF(MONTH(F98)>MONTH(F97),VLOOKUP(G97,$N$5:$P$25,IF(F97>$C$7,3,2),1),0),VLOOKUP(G97,$N$5:$P$25,IF(F97>$C$7,3,2),1)) -> 0 | I97: 1921 | J97: 19 | K97: 201 | L97: 2022-10-10
E98: 6 | F98: 2022-10-16 | G98: 1922 | H98: =IF(YEAR(F99)=YEAR(F98),IF(MONTH(F99)>MONTH(F98),VLOOKUP(G98,$N$5:$P$25,IF(F98>$C$7,3,2),1),0),VLOOKUP(G98,$N$5:$P$25,IF(F98>$C$7,3,2),1)) -> 0 | I98: 1941 | J98: 19 | K98: 220 | L98: 2022-10-16
E99: 6 | F99: 2022-10-22 | G99: 1942 | H99: =IF(YEAR(F100)=YEAR(F99),IF(MONTH(F100)>MONTH(F99),VLOOKUP(G99,$N$5:$P$25,IF(F99>$C$7,3,2),1),0),VLOOKUP(G99,$N$5:$P$25,IF(F99>$C$7,3,2),1)) -> 0 | I99: 1961 | J99: 19 | K99: 239 | L99: 2022-10-22
E100: 6 | F100: 2022-10-28 | G100: 1962 | H100: =IF(YEAR(F101)=YEAR(F100),IF(MONTH(F101)>MONTH(F100),VLOOKUP(G100,$N$5:$P$25,IF(F100>$C$7,3,2),1),0),VLOOKUP(G100,$N$5:$P$25,IF(F100>$C$7,3,2),1)) -> 5 | I100: 1981 | J100: 19 | K100: 258 | L100: 2022-10-28
E101: 6 | F101: 2022-11-03 | G101: 1987 | H101: =IF(YEAR(F102)=YEAR(F101),IF(MONTH(F102)>MONTH(F101),VLOOKUP(G101,$N$5:$P$25,IF(F101>$C$7,3,2),1),0),VLOOKUP(G101,$N$5:$P$25,IF(F101>$C$7,3,2),1)) -> 0 | I101: 2001 | J101: 14 | K101: 272 | L101: 2022-11-03
E102: 6 | F102: 2022-11-09 | G102: 2002 | H102: =IF(YEAR(F103)=YEAR(F102),IF(MONTH(F103)>MONTH(F102),VLOOKUP(G102,$N$5:$P$25,IF(F102>$C$7,3,2),1),0),VLOOKUP(G102,$N$5:$P$25,IF(F102>$C$7,3,2),1)) -> 0 | I102: 2021 | J102: 19 | K102: 291 | L102: 2022-11-09
E103: 6 | F103: 2022-11-15 | G103: 2022 | H103: =IF(YEAR(F104)=YEAR(F103),IF(MONTH(F104)>MONTH(F103),VLOOKUP(G103,$N$5:$P$25,IF(F103>$C$7,3,2),1),0),VLOOKUP(G103,$N$5:$P$25,IF(F103>$C$7,3,2),1)) -> 0 | I103: 2041 | J103: 19 | K103: 310 | L103: 2022-11-15
E104: 6 | F104: 2022-11-21 | G104: 2042 | H104: =IF(YEAR(F105)=YEAR(F104),IF(MONTH(F105)>MONTH(F104),VLOOKUP(G104,$N$5:$P$25,IF(F104>$C$7,3,2),1),0),VLOOKUP(G104,$N$5:$P$25,IF(F104>$C$7,3,2),1)) -> 0 | I104: 2061 | J104: 19 | K104: 329 | L104: 2022-11-21
E105: 6 | F105: 2022-11-27 | G105: 2062 | H105: =IF(YEAR(F106)=YEAR(F105),IF(MONTH(F106)>MONTH(F105),VLOOKUP(G105,$N$5:$P$25,IF(F105>$C$7,3,2),1),0),VLOOKUP(G105,$N$5:$P$25,IF(F105>$C$7,3,2),1)) -> 5 | I105: 2081 | J105: 19 | K105: 348 | L105: 2022-11-27
E106: 6 | F106: 2022-12-03 | G106: 2087 | H106: =IF(YEAR(F107)=YEAR(F106),IF(MONTH(F107)>MONTH(F106),VLOOKUP(G106,$N$5:$P$25,IF(F106>$C$7,3,2),1),0),VLOOKUP(G106,$N$5:$P$25,IF(F106>$C$7,3,2),1)) -> 0 | I106: 2101 | J106: 14 | K106: 362 | L106: 2022-12-03
E107: 6 | F107: 2022-12-09 | G107: 2102 | H107: =IF(YEAR(F108)=YEAR(F107),IF(MONTH(F108)>MONTH(F107),VLOOKUP(G107,$N$5:$P$25,IF(F107>$C$7,3,2),1),0),VLOOKUP(G107,$N$5:$P$25,IF(F107>$C$7,3,2),1)) -> 0 | I107: 2121 | J107: 19 | K107: 381 | L107: 2022-12-09
E108: 6 | F108: 2022-12-15 | G108: 2122 | H108: =IF(YEAR(F109)=YEAR(F108),IF(MONTH(F109)>MONTH(F108),VLOOKUP(G108,$N$5:$P$25,IF(F108>$C$7,3,2),1),0),VLOOKUP(G108,$N$5:$P$25,IF(F108>$C$7,3,2),1)) -> 0 | I108: 2141 | J108: 19 | K108: 400 | L108: 2022-12-15
E109: 6 | F109: 2022-12-21 | G109: 2142 | H109: =IF(YEAR(F110)=YEAR(F109),IF(MONTH(F110)>MONTH(F109),VLOOKUP(G109,$N$5:$P$25,IF(F109>$C$7,3,2),1),0),VLOOKUP(G109,$N$5:$P$25,IF(F109>$C$7,3,2),1)) -> 0 | I109: 2161 | J109: 19 | K109: 419 | L109: 2022-12-21
E110: 6 | F110: 2022-12-27 | G110: 2162 | H110: =IF(YEAR(F111)=YEAR(F110),IF(MONTH(F111)>MONTH(F110),VLOOKUP(G110,$N$5:$P$25,IF(F110>$C$7,3,2),1),0),VLOOKUP(G110,$N$5:$P$25,IF(F110>$C$7,3,2),1)) -> 5 | I110: 2181 | J110: 19 | K110: 438 | L110: 2022-12-27
E111: 6 | F111: 2023-01-02 | G111: 2187 | H111: =IF(YEAR(F112)=YEAR(F111),IF(MONTH(F112)>MONTH(F111),VLOOKUP(G111,$N$5:$P$25,IF(F111>$C$7,3,2),1),0),VLOOKUP(G111,$N$5:$P$25,IF(F111>$C$7,3,2),1)) -> 0 | I111: 2201 | J111: 14 | K111: 452 | L111: 2023-01-02
E112: 6 | F112: 2023-01-08 | G112: 2202 | H112: =IF(YEAR(F113)=YEAR(F112),IF(MONTH(F113)>MONTH(F112),VLOOKUP(G112,$N$5:$P$25,IF(F112>$C$7,3,2),1),0),VLOOKUP(G112,$N$5:$P$25,IF(F112>$C$7,3,2),1)) -> 0 | I112: 2221 | J112: 19 | K112: 471 | L112: 2023-01-08
E113: 6 | F113: 2023-01-14 | G113: 2222 | H113: =IF(YEAR(F114)=YEAR(F113),IF(MONTH(F114)>MONTH(F113),VLOOKUP(G113,$N$5:$P$25,IF(F113>$C$7,3,2),1),0),VLOOKUP(G113,$N$5:$P$25,IF(F113>$C$7,3,2),1)) -> 0 | I113: 2241 | J113: 19 | K113: 490 | L113: 2023-01-14
E114: 6 | F114: 2023-01-20 | G114: 2242 | H114: =IF(YEAR(F115)=YEAR(F114),IF(MONTH(F115)>MONTH(F114),VLOOKUP(G114,$N$5:$P$25,IF(F114>$C$7,3,2),1),0),VLOOKUP(G114,$N$5:$P$25,IF(F114>$C$7,3,2),1)) -> 0 | I114: 2261 | J114: 19 | K114: 509 | L114: 2023-01-20
E115: 6 | F115: 2023-01-26 | G115: 2262 | H115: =IF(YEAR(F116)=YEAR(F115),IF(MONTH(F116)>MONTH(F115),VLOOKUP(G115,$N$5:$P$25,IF(F115>$C$7,3,2),1),0),VLOOKUP(G115,$N$5:$P$25,IF(F115>$C$7,3,2),1)) -> 5 | I115: 2281 | J115: 19 | K115: 528 | L115: 2023-01-26
E116: 6 | F116: 2023-02-01 | G116: 2287 | H116: =IF(YEAR(F117)=YEAR(F116),IF(MONTH(F117)>MONTH(F116),VLOOKUP(G116,$N$5:$P$25,IF(F116>$C$7,3,2),1),0),VLOOKUP(G116,$N$5:$P$25,IF(F116>$C$7,3,2),1)) -> 0 | I116: 2301 | J116: 14 | K116: 542 | L116: 2023-02-01
E117: 6 | F117: 2023-02-07 | G117: 2302 | H117: =IF(YEAR(F118)=YEAR(F117),IF(MONTH(F118)>MONTH(F117),VLOOKUP(G117,$N$5:$P$25,IF(F117>$C$7,3,2),1),0),VLOOKUP(G117,$N$5:$P$25,IF(F117>$C$7,3,2),1)) -> 0 | I117: 2321 | J117: 19 | K117: 561 | L117: 2023-02-07
E118: 6 | F118: 2023-02-13 | G118: 2322 | H118: =IF(YEAR(F119)=YEAR(F118),IF(MONTH(F119)>MONTH(F118),VLOOKUP(G118,$N$5:$P$25,IF(F118>$C$7,3,2),1),0),VLOOKUP(G118,$N$5:$P$25,IF(F118>$C$7,3,2),1)) -> 0 | I118: 2341 | J118: 19 | K118: 580 | L118: 2023-02-13
E119: 6 | F119: 2023-02-19 | G119: 2342 | H119: =IF(YEAR(F120)=YEAR(F119),IF(MONTH(F120)>MONTH(F119),VLOOKUP(G119,$N$5:$P$25,IF(F119>$C$7,3,2),1),0),VLOOKUP(G119,$N$5:$P$25,IF(F119>$C$7,3,2),1)) -> 0 | I119: 2361 | J119: 19 | K119: 599 | L119: 2023-02-19
E120: 6 | F120: 2023-02-25 | G120: 2362 | H120: =IF(YEAR(F121)=YEAR(F120),IF(MONTH(F121)>MONTH(F120),VLOOKUP(G120,$N$5:$P$25,IF(F120>$C$7,3,2),1),0),VLOOKUP(G120,$N$5:$P$25,IF(F120>$C$7,3,2),1)) -> 5 | I120: 2381 | J120: 19 | K120: 618 | L120: 2023-02-25
E121: 6 | F121: 2023-03-03 | G121: 2387 | H121: =IF(YEAR(F122)=YEAR(F121),IF(MONTH(F122)>MONTH(F121),VLOOKUP(G121,$N$5:$P$25,IF(F121>$C$7,3,2),1),0),VLOOKUP(G121,$N$5:$P$25,IF(F121>$C$7,3,2),1)) -> 0 | I121: 2401 | J121: 14 | K121: 632 | L121: 2023-03-03
E122: 6 | F122: 2023-03-09 | G122: 2402 | H122: =IF(YEAR(F123)=YEAR(F122),IF(MONTH(F123)>MONTH(F122),VLOOKUP(G122,$N$5:$P$25,IF(F122>$C$7,3,2),1),0),VLOOKUP(G122,$N$5:$P$25,IF(F122>$C$7,3,2),1)) -> 0 | I122: 2421 | J122: 19 | K122: 651 | L122: 2023-03-09
E123: 6 | F123: 2023-03-15 | G123: 2422 | H123: =IF(YEAR(F124)=YEAR(F123),IF(MONTH(F124)>MONTH(F123),VLOOKUP(G123,$N$5:$P$25,IF(F123>$C$7,3,2),1),0),VLOOKUP(G123,$N$5:$P$25,IF(F123>$C$7,3,2),1)) -> 0 | I123: 2441 | J123: 19 | K123: 670 | L123: 2023-03-15
E124: 6 | F124: 2023-03-21 | G124: 2442 | H124: =IF(YEAR(F125)=YEAR(F124),IF(MONTH(F125)>MONTH(F124),VLOOKUP(G124,$N$5:$P$25,IF(F124>$C$7,3,2),1),0),VLOOKUP(G124,$N$5:$P$25,IF(F124>$C$7,3,2),1)) -> 0 | I124: 2461 | J124: 19 | K124: 689 | L124: 2023-03-21
E125: 6 | F125: 2023-03-27 | G125: 2462 | H125: =IF(YEAR(F126)=YEAR(F125),IF(MONTH(F126)>MONTH(F125),VLOOKUP(G125,$N$5:$P$25,IF(F125>$C$7,3,2),1),0),VLOOKUP(G125,$N$5:$P$25,IF(F125>$C$7,3,2),1)) -> 5 | I125: 2481 | J125: 19 | K125: 708 | L125: 2023-03-27
E126: 6 | F126: 2023-04-02 | G126: 2487 | H126: =IF(YEAR(F127)=YEAR(F126),IF(MONTH(F127)>MONTH(F126),VLOOKUP(G126,$N$5:$P$25,IF(F126>$C$7,3,2),1),0),VLOOKUP(G126,$N$5:$P$25,IF(F126>$C$7,3,2),1)) -> 0 | I126: 2501 | J126: 14 | K126: 722 | L126: 2023-04-02
E127: 6 | F127: 2023-04-08 | G127: 2502 | H127: =IF(YEAR(F128)=YEAR(F127),IF(MONTH(F128)>MONTH(F127),VLOOKUP(G127,$N$5:$P$25,IF(F127>$C$7,3,2),1),0),VLOOKUP(G127,$N$5:$P$25,IF(F127>$C$7,3,2),1)) -> 0 | I127: 2521 | J127: 19 | K127: 741 | L127: 2023-04-08
E128: 6 | F128: 2023-04-14 | G128: 2522 | H128: =IF(YEAR(F129)=YEAR(F128),IF(MONTH(F129)>MONTH(F128),VLOOKUP(G128,$N$5:$P$25,IF(F128>$C$7,3,2),1),0),VLOOKUP(G128,$N$5:$P$25,IF(F128>$C$7,3,2),1)) -> 0 | I128: 2541 | J128: 19 | K128: 760 | L128: 2023-04-14
E129: 6 | F129: 2023-04-20 | G129: 2542 | H129: =IF(YEAR(F130)=YEAR(F129),IF(MONTH(F130)>MONTH(F129),VLOOKUP(G129,$N$5:$P$25,IF(F129>$C$7,3,2),1),0),VLOOKUP(G129,$N$5:$P$25,IF(F129>$C$7,3,2),1)) -> 0 | I129: 2561 | J129: 19 | K129: 779 | L129: 2023-04-20
E130: 6 | F130: 2023-04-26 | G130: 2562 | H130: =IF(YEAR(F131)=YEAR(F130),IF(MONTH(F131)>MONTH(F130),VLOOKUP(G130,$N$5:$P$25,IF(F130>$C$7,3,2),1),0),VLOOKUP(G130,$N$5:$P$25,IF(F130>$C$7,3,2),1)) -> 5 | I130: 2581 | J130: 19 | K130: 798 | L130: 2023-04-26
E131: =IF(F130>$C$8,6,7) -> 6 | F131: 2023-05-02 | G131: =G130+H130+J130+IF($C$1="IGEN",IF(I130<100,20,1),1) -> 2587 | H131: =IF(YEAR(F132)=YEAR(F131),IF(MONTH(F132)>MONTH(F131),VLOOKUP(G131,$N$5:$P$25,IF(F131>$C$7,3,2),1),0),VLOOKUP(G131,$N$5:$P$25,IF(F131>$C$7,3,2),1)) -> 0 | I131: 2601 | J131: =IF(G131-I131<0,I131-G131,0) -> 14 | K131: 812 | L131: =F131 -> 2023-05-02
E132: 6 | F132: =F131+E132 -> 2023-05-08 | G132: 2602 | H132: =IF(YEAR(F133)=YEAR(F132),IF(MONTH(F133)>MONTH(F132),VLOOKUP(G132,$N$5:$P$25,IF(F132>$C$7,3,2),1),0),VLOOKUP(G132,$N$5:$P$25,IF(F132>$C$7,3,2),1)) -> 0 | I132: =I131+20 -> 2621 | J132: 19 | K132: =J132+K131 -> 831 | L132: 2023-05-08
E133: 6 | F133: 2023-05-14 | G133: 2622 | H133: =IF(YEAR(F134)=YEAR(F133),IF(MONTH(F134)>MONTH(F133),VLOOKUP(G133,$N$5:$P$25,IF(F133>$C$7,3,2),1),0),VLOOKUP(G133,$N$5:$P$25,IF(F133>$C$7,3,2),1)) -> 0 | I133: 2641 | J133: 19 | K133: 850 | L133: 2023-05-14
E134: 6 | F134: 2023-05-20 | G134: 2642 | H134: =IF(YEAR(F135)=YEAR(F134),IF(MONTH(F135)>MONTH(F134),VLOOKUP(G134,$N$5:$P$25,IF(F134>$C$7,3,2),1),0),VLOOKUP(G134,$N$5:$P$25,IF(F134>$C$7,3,2),1)) -> 0 | I134: 2661 | J134: 19 | K134: 869 | L134: 2023-05-20
E135: 6 | F135: 2023-05-26 | G135: 2662 | H135: =IF(YEAR(F136)=YEAR(F135),IF(MONTH(F136)>MONTH(F135),VLOOKUP(G135,$N$5:$P$25,IF(F135>$C$7,3,2),1),0),VLOOKUP(G135,$N$5:$P$25,IF(F135>$C$7,3,2),1)) -> 5 | I135: 2681 | J135: 19 | K135: 888 | L135: 2023-05-26
E136: 6 | F136: 2023-06-01 | G136: 2687 | H136: =IF(YEAR(F137)=YEAR(F136),IF(MONTH(F137)>MONTH(F136),VLOOKUP(G136,$N$5:$P$25,IF(F136>$C$7,3,2),1),0),VLOOKUP(G136,$N$5:$P$25,IF(F136>$C$7,3,2),1)) -> 0 | I136: 2701 | J136: 14 | K136: 902 | L136: 2023-06-01
E137: 6 | F137: 2023-06-07 | G137: 2702 | H137: =IF(YEAR(F138)=YEAR(F137),IF(MONTH(F138)>MONTH(F137),VLOOKUP(G137,$N$5:$P$25,IF(F137>$C$7,3,2),1),0),VLOOKUP(G137,$N$5:$P$25,IF(F137>$C$7,3,2),1)) -> 0 | I137: 2721 | J137: 19 | K137: 921 | L137: 2023-06-07
E138: 6 | F138: 2023-06-13 | G138: 2722 | H138: =IF(YEAR(F139)=YEAR(F138),IF(MONTH(F139)>MONTH(F138),VLOOKUP(G138,$N$5:$P$25,IF(F138>$C$7,3,2),1),0),VLOOKUP(G138,$N$5:$P$25,IF(F138>$C$7,3,2),1)) -> 0 | I138: 2741 | J138: 19 | K138: 940 | L138: 2023-06-13
E139: 6 | F139: 2023-06-19 | G139: 2742 | H139: =IF(YEAR(F140)=YEAR(F139),IF(MONTH(F140)>MONTH(F139),VLOOKUP(G139,$N$5:$P$25,IF(F139>$C$7,3,2),1),0),VLOOKUP(G139,$N$5:$P$25,IF(F139>$C$7,3,2),1)) -> 0 | I139: 2761 | J139: 19 | K139: 959 | L139: 2023-06-19
E140: 6 | F140: 2023-06-25 | G140: 2762 | H140: =IF(YEAR(F141)=YEAR(F140),IF(MONTH(F141)>MONTH(F140),VLOOKUP(G140,$N$5:$P$25,IF(F140>$C$7,3,2),1),0),VLOOKUP(G140,$N$5:$P$25,IF(F140>$C$7,3,2),1)) -> 5 | I140: 2781 | J140: 19 | K140: 978 | L140: 2023-06-25
E141: 6 | F141: 2023-07-01 | G141: 2787 | H141: =IF(YEAR(F142)=YEAR(F141),IF(MONTH(F142)>MONTH(F141),VLOOKUP(G141,$N$5:$P$25,IF(F141>$C$7,3,2),1),0),VLOOKUP(G141,$N$5:$P$25,IF(F141>$C$7,3,2),1)) -> 0 | I141: 2801 | J141: 14 | K141: 992 | L141: 2023-07-01
E142: 6 | F142: 2023-07-07 | G142: 2802 | H142: =IF(YEAR(F143)=YEAR(F142),IF(MONTH(F143)>MONTH(F142),VLOOKUP(G142,$N$5:$P$25,IF(F142>$C$7,3,2),1),0),VLOOKUP(G142,$N$5:$P$25,IF(F142>$C$7,3,2),1)) -> 0 | I142: 2821 | J142: 19 | K142: 1011 | L142: 2023-07-07
E143: 6 | F143: 2023-07-13 | G143: 2822 | H143: =IF(YEAR(F144)=YEAR(F143),IF(MONTH(F144)>MONTH(F143),VLOOKUP(G143,$N$5:$P$25,IF(F143>$C$7,3,2),1),0),VLOOKUP(G143,$N$5:$P$25,IF(F143>$C$7,3,2),1)) -> 0 | I143: 2841 | J143: 19 | K143: 1030 | L143: 2023-07-13
E144: 6 | F144: 2023-07-19 | G144: 2842 | H144: =IF(YEAR(F145)=YEAR(F144),IF(MONTH(F145)>MONTH(F144),VLOOKUP(G144,$N$5:$P$25,IF(F144>$C$7,3,2),1),0),VLOOKUP(G144,$N$5:$P$25,IF(F144>$C$7,3,2),1)) -> 0 | I144: 2861 | J144: 19 | K144: 1049 | L144: 2023-07-19
E145: 6 | F145: 2023-07-25 | G145: 2862 | H145: =IF(YEAR(F146)=YEAR(F145),IF(MONTH(F146)>MONTH(F145),VLOOKUP(G145,$N$5:$P$25,IF(F145>$C$7,3,2),1),0),VLOOKUP(G145,$N$5:$P$25,IF(F145>$C$7,3,2),1)) -> 0 | I145: 2881 | J145: 19 | K145: 1068 | L145: 2023-07-25
E146: 6 | F146: 2023-07-31 | G146: 2882 | H146: =IF(YEAR(F147)=YEAR(F146),IF(MONTH(F147)>MONTH(F146),VLOOKUP(G146,$N$5:$P$25,IF(F146>$C$7,3,2),1),0),VLOOKUP(G146,$N$5:$P$25,IF(F146>$C$7,3,2),1)) -> 5 | I146: 2901 | J146: 19 | K146: 1087 | L146: 2023-07-31
E147: 6 | F147: 2023-08-06 | G147: 2907 | H147: =IF(YEAR(F148)=YEAR(F147),IF(MONTH(F148)>MONTH(F147),VLOOKUP(G147,$N$5:$P$25,IF(F147>$C$7,3,2),1),0),VLOOKUP(G147,$N$5:$P$25,IF(F147>$C$7,3,2),1)) -> 0 | I147: 2921 | J147: 14 | K147: 1101 | L147: 2023-08-06
E148: 6 | F148: 2023-08-12 | G148: 2922 | H148: =IF(YEAR(F149)=YEAR(F148),IF(MONTH(F149)>MONTH(F148),VLOOKUP(G148,$N$5:$P$25,IF(F148>$C$7,3,2),1),0),VLOOKUP(G148,$N$5:$P$25,IF(F148>$C$7,3,2),1)) -> 0 | I148: 2941 | J148: 19 | K148: 1120 | L148: 2023-08-12
E149: 6 | F149: 2023-08-18 | G149: 2942 | H149: =IF(YEAR(F150)=YEAR(F149),IF(MONTH(F150)>MONTH(F149),VLOOKUP(G149,$N$5:$P$25,IF(F149>$C$7,3,2),1),0),VLOOKUP(G149,$N$5:$P$25,IF(F149>$C$7,3,2),1)) -> 0 | I149: 2961 | J149: 19 | K149: 1139 | L149: 2023-08-18
E150: 6 | F150: 2023-08-24 | G150: 2962 | H150: =IF(YEAR(F151)=YEAR(F150),IF(MONTH(F151)>MONTH(F150),VLOOKUP(G150,$N$5:$P$25,IF(F150>$C$7,3,2),1),0),VLOOKUP(G150,$N$5:$P$25,IF(F150>$C$7,3,2),1)) -> 0 | I150: 2981 | J150: 19 | K150: 1158 | L150: 2023-08-24
E151: 6 | F151: 2023-08-30 | G151: 2982 | H151: =IF(YEAR(F152)=YEAR(F151),IF(MONTH(F152)>MONTH(F151),VLOOKUP(G151,$N$5:$P$25,IF(F151>$C$7,3,2),1),0),VLOOKUP(G151,$N$5:$P$25,IF(F151>$C$7,3,2),1)) -> 5 | I151: 3001 | J151: 19 | K151: 1177 | L151: 2023-08-30
E152: 6 | F152: 2023-09-05 | G152: 3007 | H152: =IF(YEAR(F153)=YEAR(F152),IF(MONTH(F153)>MONTH(F152),VLOOKUP(G152,$N$5:$P$25,IF(F152>$C$7,3,2),1),0),VLOOKUP(G152,$N$5:$P$25,IF(F152>$C$7,3,2),1)) -> 0 | I152: 3021 | J152: 14 | K152: 1191 | L152: 2023-09-05
E153: 6 | F153: 2023-09-11 | G153: 3022 | H153: =IF(YEAR(F154)=YEAR(F153),IF(MONTH(F154)>MONTH(F153),VLOOKUP(G153,$N$5:$P$25,IF(F153>$C$7,3,2),1),0),VLOOKUP(G153,$N$5:$P$25,IF(F153>$C$7,3,2),1)) -> 0 | I153: 3041 | J153: 19 | K153: 1210 | L153: 2023-09-11
E154: 6 | F154: 2023-09-17 | G154: 3042 | H154: =IF(YEAR(F155)=YEAR(F154),IF(MONTH(F155)>MONTH(F154),VLOOKUP(G154,$N$5:$P$25,IF(F154>$C$7,3,2),1),0),VLOOKUP(G154,$N$5:$P$25,IF(F154>$C$7,3,2),1)) -> 0 | I154: 3061 | J154: 19 | K154: 1229 | L154: 2023-09-17
E155: 6 | F155: 2023-09-23 | G155: 3062 | H155: =IF(YEAR(F156)=YEAR(F155),IF(MONTH(F156)>MONTH(F155),VLOOKUP(G155,$N$5:$P$25,IF(F155>$C$7,3,2),1),0),VLOOKUP(G155,$N$5:$P$25,IF(F155>$C$7,3,2),1)) -> 0 | I155: 3081 | J155: 19 | K155: 1248 | L155: 2023-09-23
E156: 6 | F156: 2023-09-29 | G156: 3082 | H156: =IF(YEAR(F157)=YEAR(F156),IF(MONTH(F157)>MONTH(F156),VLOOKUP(G156,$N$5:$P$25,IF(F156>$C$7,3,2),1),0),VLOOKUP(G156,$N$5:$P$25,IF(F156>$C$7,3,2),1)) -> 5 | I156: 3101 | J156: 19 | K156: 1267 | L156: 2023-09-29
E157: 6 | F157: 2023-10-05 | G157: 3107 | H157: =IF(YEAR(F158)=YEAR(F157),IF(MONTH(F158)>MONTH(F157),VLOOKUP(G157,$N$5:$P$25,IF(F157>$C$7,3,2),1),0),VLOOKUP(G157,$N$5:$P$25,IF(F157>$C$7,3,2),1)) -> 0 | I157: 3121 | J157: 14 | K157: 1281 | L157: 2023-10-05
E158: 6 | F158: 2023-10-11 | G158: 3122 | H158: =IF(YEAR(F159)=YEAR(F158),IF(MONTH(F159)>MONTH(F158),VLOOKUP(G158,$N$5:$P$25,IF(F158>$C$7,3,2),1),0),VLOOKUP(G158,$N$5:$P$25,IF(F158>$C$7,3,2),1)) -> 0 | I158: 3141 | J158: 19 | K158: 1300 | L158: 2023-10-11
E159: 6 | F159: 2023-10-17 | G159: 3142 | H159: =IF(YEAR(F160)=YEAR(F159),IF(MONTH(F160)>MONTH(F159),VLOOKUP(G159,$N$5:$P$25,IF(F159>$C$7,3,2),1),0),VLOOKUP(G159,$N$5:$P$25,IF(F159>$C$7,3,2),1)) -> 0 | I159: 3161 | J159: 19 | K159: 1319 | L159: 2023-10-17
E160: 6 | F160: 2023-10-23 | G160: 3162 | H160: =IF(YEAR(F161)=YEAR(F160),IF(MONTH(F161)>MONTH(F160),VLOOKUP(G160,$N$5:$P$25,IF(F160>$C$7,3,2),1),0),VLOOKUP(G160,$N$5:$P$25,IF(F160>$C$7,3,2),1)) -> 0 | I160: 3181 | J160: 19 | K160: 1338 | L160: 2023-10-23
E161: 6 | F161: 2023-10-29 | G161: 3182 | H161: =IF(YEAR(F162)=YEAR(F161),IF(MONTH(F162)>MONTH(F161),VLOOKUP(G161,$N$5:$P$25,IF(F161>$C$7,3,2),1),0),VLOOKUP(G161,$N$5:$P$25,IF(F161>$C$7,3,2),1)) -> 5 | I161: 3201 | J161: 19 | K161: 1357 | L161: 2023-10-29
E162: 6 | F162: 2023-11-04 | G162: 3207 | H162: =IF(YEAR(F163)=YEAR(F162),IF(MONTH(F163)>MONTH(F162),VLOOKUP(G162,$N$5:$P$25,IF(F162>$C$7,3,2),1),0),VLOOKUP(G162,$N$5:$P$25,IF(F162>$C$7,3,2),1)) -> 0 | I162: 3221 | J162: 14 | K162: 1371 | L162: 2023-11-04
E163: 6 | F163: 2023-11-10 | G163: 3222 | H163: =IF(YEAR(F164)=YEAR(F163),IF(MONTH(F164)>MONTH(F163),VLOOKUP(G163,$N$5:$P$25,IF(F163>$C$7,3,2),1),0),VLOOKUP(G163,$N$5:$P$25,IF(F163>$C$7,3,2),1)) -> 0 | I163: 3241 | J163: 19 | K163: 1390 | L163: 2023-11-10
E164: 6 | F164: 2023-11-16 | G164: 3242 | H164: =IF(YEAR(F165)=YEAR(F164),IF(MONTH(F165)>MONTH(F164),VLOOKUP(G164,$N$5:$P$25,IF(F164>$C$7,3,2),1),0),VLOOKUP(G164,$N$5:$P$25,IF(F164>$C$7,3,2),1)) -> 0 | I164: 3261 | J164: 19 | K164: 1409 | L164: 2023-11-16
E165: 6 | F165: 2023-11-22 | G165: 3262 | H165: =IF(YEAR(F166)=YEAR(F165),IF(MONTH(F166)>MONTH(F165),VLOOKUP(G165,$N$5:$P$25,IF(F165>$C$7,3,2),1),0),VLOOKUP(G165,$N$5:$P$25,IF(F165>$C$7,3,2),1)) -> 0 | I165: 3281 | J165: 19 | K165: 1428 | L165: 2023-11-22
E166: 6 | F166: 2023-11-28 | G166: 3282 | H166: =IF(YEAR(F167)=YEAR(F166),IF(MONTH(F167)>MONTH(F166),VLOOKUP(G166,$N$5:$P$25,IF(F166>$C$7,3,2),1),0),VLOOKUP(G166,$N$5:$P$25,IF(F166>$C$7,3,2),1)) -> 5 | I166: 3301 | J166: 19 | K166: 1447 | L166: 2023-11-28
E167: 6 | F167: 2023-12-04 | G167: 3307 | H167: =IF(YEAR(F168)=YEAR(F167),IF(MONTH(F168)>MONTH(F167),VLOOKUP(G167,$N$5:$P$25,IF(F167>$C$7,3,2),1),0),VLOOKUP(G167,$N$5:$P$25,IF(F167>$C$7,3,2),1)) -> 0 | I167: 3321 | J167: 14 | K167: 1461 | L167: 2023-12-04
E168: 6 | F168: 2023-12-10 | G168: 3322 | H168: =IF(YEAR(F169)=YEAR(F168),IF(MONTH(F169)>MONTH(F168),VLOOKUP(G168,$N$5:$P$25,IF(F168>$C$7,3,2),1),0),VLOOKUP(G168,$N$5:$P$25,IF(F168>$C$7,3,2),1)) -> 0 | I168: 3341 | J168: 19 | K168: 1480 | L168: 2023-12-10
E169: 6 | F169: 2023-12-16 | G169: 3342 | H169: =IF(YEAR(F170)=YEAR(F169),IF(MONTH(F170)>MONTH(F169),VLOOKUP(G169,$N$5:$P$25,IF(F169>$C$7,3,2),1),0),VLOOKUP(G169,$N$5:$P$25,IF(F169>$C$7,3,2),1)) -> 0 | I169: 3361 | J169: 19 | K169: 1499 | L169: 2023-12-16
E170: 6 | F170: 2023-12-22 | G170: 3362 | H170: =IF(YEAR(F171)=YEAR(F170),IF(MONTH(F171)>MONTH(F170),VLOOKUP(G170,$N$5:$P$25,IF(F170>$C$7,3,2),1),0),VLOOKUP(G170,$N$5:$P$25,IF(F170>$C$7,3,2),1)) -> 0 | I170: 3381 | J170: 19 | K170: 1518 | L170: 2023-12-22
E171: 6 | F171: 2023-12-28 | G171: 3382 | H171: =IF(YEAR(F172)=YEAR(F171),IF(MONTH(F172)>MONTH(F171),VLOOKUP(G171,$N$5:$P$25,IF(F171>$C$7,3,2),1),0),VLOOKUP(G171,$N$5:$P$25,IF(F171>$C$7,3,2),1)) -> 5 | I171: 3401 | J171: 19 | K171: 1537 | L171: 2023-12-28
E172: 6 | F172: 2024-01-03 | G172: 3407 | H172: =IF(YEAR(F173)=YEAR(F172),IF(MONTH(F173)>MONTH(F172),VLOOKUP(G172,$N$5:$P$25,IF(F172>$C$7,3,2),1),0),VLOOKUP(G172,$N$5:$P$25,IF(F172>$C$7,3,2),1)) -> 0 | I172: 3421 | J172: 14 | K172: 1551 | L172: 2024-01-03
E173: 6 | F173: 2024-01-09 | G173: 3422 | H173: =IF(YEAR(F174)=YEAR(F173),IF(MONTH(F174)>MONTH(F173),VLOOKUP(G173,$N$5:$P$25,IF(F173>$C$7,3,2),1),0),VLOOKUP(G173,$N$5:$P$25,IF(F173>$C$7,3,2),1)) -> 0 | I173: 3441 | J173: 19 | K173: 1570 | L173: 2024-01-09
E174: 6 | F174: 2024-01-15 | G174: 3442 | H174: =IF(YEAR(F175)=YEAR(F174),IF(MONTH(F175)>MONTH(F174),VLOOKUP(G174,$N$5:$P$25,IF(F174>$C$7,3,2),1),0),VLOOKUP(G174,$N$5:$P$25,IF(F174>$C$7,3,2),1)) -> 0 | I174: 3461 | J174: 19 | K174: 1589 | L174: 2024-01-15
E175: 6 | F175: 2024-01-21 | G175: 3462 | H175: =IF(YEAR(F176)=YEAR(F175),IF(MONTH(F176)>MONTH(F175),VLOOKUP(G175,$N$5:$P$25,IF(F175>$C$7,3,2),1),0),VLOOKUP(G175,$N$5:$P$25,IF(F175>$C$7,3,2),1)) -> 0 | I175: 3481 | J175: 19 | K175: 1608 | L175: 2024-01-21
E176: 6 | F176: 2024-01-27 | G176: 3482 | H176: =IF(YEAR(F177)=YEAR(F176),IF(MONTH(F177)>MONTH(F176),VLOOKUP(G176,$N$5:$P$25,IF(F176>$C$7,3,2),1),0),VLOOKUP(G176,$N$5:$P$25,IF(F176>$C$7,3,2),1)) -> 5 | I176: 3501 | J176: 19 | K176: 1627 | L176: 2024-01-27
E177: 6 | F177: 2024-02-02 | G177: 3507 | H177: =IF(YEAR(F178)=YEAR(F177),IF(MONTH(F178)>MONTH(F177),VLOOKUP(G177,$N$5:$P$25,IF(F177>$C$7,3,2),1),0),VLOOKUP(G177,$N$5:$P$25,IF(F177>$C$7,3,2),1)) -> 0 | I177: 3521 | J177: 14 | K177: 1641 | L177: 2024-02-02
E178: 6 | F178: 2024-02-08 | G178: 3522 | H178: =IF(YEAR(F179)=YEAR(F178),IF(MONTH(F179)>MONTH(F178),VLOOKUP(G178,$N$5:$P$25,IF(F178>$C$7,3,2),1),0),VLOOKUP(G178,$N$5:$P$25,IF(F178>$C$7,3,2),1)) -> 0 | I178: 3541 | J178: 19 | K178: 1660 | L178: 2024-02-08
E179: 6 | F179: 2024-02-14 | G179: 3542 | H179: =IF(YEAR(F180)=YEAR(F179),IF(MONTH(F180)>MONTH(F179),VLOOKUP(G179,$N$5:$P$25,IF(F179>$C$7,3,2),1),0),VLOOKUP(G179,$N$5:$P$25,IF(F179>$C$7,3,2),1)) -> 0 | I179: 3561 | J179: 19 | K179: 1679 | L179: 2024-02-14
E180: 6 | F180: 2024-02-20 | G180: 3562 | H180: =IF(YEAR(F181)=YEAR(F180),IF(MONTH(F181)>MONTH(F180),VLOOKUP(G180,$N$5:$P$25,IF(F180>$C$7,3,2),1),0),VLOOKUP(G180,$N$5:$P$25,IF(F180>$C$7,3,2),1)) -> 0 | I180: 3581 | J180: 19 | K180: 1698 | L180: 2024-02-20
E181: 6 | F181: 2024-02-26 | G181: 3582 | H181: =IF(YEAR(F182)=YEAR(F181),IF(MONTH(F182)>MONTH(F181),VLOOKUP(G181,$N$5:$P$25,IF(F181>$C$7,3,2),1),0),VLOOKUP(G181,$N$5:$P$25,IF(F181>$C$7,3,2),1)) -> 5 | I181: 3601 | J181: 19 | K181: 1717 | L181: 2024-02-26
E182: 6 | F182: 2024-03-03 | G182: 3607 | H182: =IF(YEAR(F183)=YEAR(F182),IF(MONTH(F183)>MONTH(F182),VLOOKUP(G182,$N$5:$P$25,IF(F182>$C$7,3,2),1),0),VLOOKUP(G182,$N$5:$P$25,IF(F182>$C$7,3,2),1)) -> 0 | I182: 3621 | J182: 14 | K182: 1731 | L182: 2024-03-03
E183: 6 | F183: 2024-03-09 | G183: 3622 | H183: =IF(YEAR(F184)=YEAR(F183),IF(MONTH(F184)>MONTH(F183),VLOOKUP(G183,$N$5:$P$25,IF(F183>$C$7,3,2),1),0),VLOOKUP(G183,$N$5:$P$25,IF(F183>$C$7,3,2),1)) -> 0 | I183: 3641 | J183: 19 | K183: 1750 | L183: 2024-03-09
E184: 6 | F184: 2024-03-15 | G184: 3642 | H184: =IF(YEAR(F185)=YEAR(F184),IF(MONTH(F185)>MONTH(F184),VLOOKUP(G184,$N$5:$P$25,IF(F184>$C$7,3,2),1),0),VLOOKUP(G184,$N$5:$P$25,IF(F184>$C$7,3,2),1)) -> 0 | I184: 3661 | J184: 19 | K184: 1769 | L184: 2024-03-15
E185: 6 | F185: 2024-03-21 | G185: 3662 | H185: =IF(YEAR(F186)=YEAR(F185),IF(MONTH(F186)>MONTH(F185),VLOOKUP(G185,$N$5:$P$25,IF(F185>$C$7,3,2),1),0),VLOOKUP(G185,$N$5:$P$25,IF(F185>$C$7,3,2),1)) -> 0 | I185: 3681 | J185: 19 | K185: 1788 | L185: 2024-03-21
E186: 6 | F186: 2024-03-27 | G186: 3682 | H186: =IF(YEAR(F187)=YEAR(F186),IF(MONTH(F187)>MONTH(F186),VLOOKUP(G186,$N$5:$P$25,IF(F186>$C$7,3,2),1),0),VLOOKUP(G186,$N$5:$P$25,IF(F186>$C$7,3,2),1)) -> 5 | I186: 3701 | J186: 19 | K186: 1807 | L186: 2024-03-27
E187: 6 | F187: 2024-04-02 | G187: 3707 | H187: =IF(YEAR(F188)=YEAR(F187),IF(MONTH(F188)>MONTH(F187),VLOOKUP(G187,$N$5:$P$25,IF(F187>$C$7,3,2),1),0),VLOOKUP(G187,$N$5:$P$25,IF(F187>$C$7,3,2),1)) -> 0 | I187: 3721 | J187: 14 | K187: 1821 | L187: 2024-04-02
E188: 6 | F188: 2024-04-08 | G188: 3722 | H188: =IF(YEAR(F189)=YEAR(F188),IF(MONTH(F189)>MONTH(F188),VLOOKUP(G188,$N$5:$P$25,IF(F188>$C$7,3,2),1),0),VLOOKUP(G188,$N$5:$P$25,IF(F188>$C$7,3,2),1)) -> 0 | I188: 3741 | J188: 19 | K188: 1840 | L188: 2024-04-08
E189: 6 | F189: 2024-04-14 | G189: 3742 | H189: =IF(YEAR(F190)=YEAR(F189),IF(MONTH(F190)>MONTH(F189),VLOOKUP(G189,$N$5:$P$25,IF(F189>$C$7,3,2),1),0),VLOOKUP(G189,$N$5:$P$25,IF(F189>$C$7,3,2),1)) -> 0 | I189: 3761 | J189: 19 | K189: 1859 | L189: 2024-04-14
E190: 6 | F190: 2024-04-20 | G190: 3762 | H190: =IF(YEAR(F191)=YEAR(F190),IF(MONTH(F191)>MONTH(F190),VLOOKUP(G190,$N$5:$P$25,IF(F190>$C$7,3,2),1),0),VLOOKUP(G190,$N$5:$P$25,IF(F190>$C$7,3,2),1)) -> 0 | I190: 3781 | J190: 19 | K190: 1878 | L190: 2024-04-20
E191: 6 | F191: 2024-04-26 | G191: 3782 | H191: =IF(YEAR(F192)=YEAR(F191),IF(MONTH(F192)>MONTH(F191),VLOOKUP(G191,$N$5:$P$25,IF(F191>$C$7,3,2),1),0),VLOOKUP(G191,$N$5:$P$25,IF(F191>$C$7,3,2),1)) -> 5 | I191: 3801 | J191: 19 | K191: 1897 | L191: 2024-04-26
E192: 6 | F192: 2024-05-02 | G192: 3807 | H192: =IF(YEAR(F193)=YEAR(F192),IF(MONTH(F193)>MONTH(F192),VLOOKUP(G192,$N$5:$P$25,IF(F192>$C$7,3,2),1),0),VLOOKUP(G192,$N$5:$P$25,IF(F192>$C$7,3,2),1)) -> 0 | I192: 3821 | J192: 14 | K192: 1911 | L192: 2024-05-02
E193: 6 | F193: 2024-05-08 | G193: 3822 | H193: =IF(YEAR(F194)=YEAR(F193),IF(MONTH(F194)>MONTH(F193),VLOOKUP(G193,$N$5:$P$25,IF(F193>$C$7,3,2),1),0),VLOOKUP(G193,$N$5:$P$25,IF(F193>$C$7,3,2),1)) -> 0 | I193: 3841 | J193: 19 | K193: 1930 | L193: 2024-05-08
E194: 6 | F194: 2024-05-14 | G194: 3842 | H194: =IF(YEAR(F195)=YEAR(F194),IF(MONTH(F195)>MONTH(F194),VLOOKUP(G194,$N$5:$P$25,IF(F194>$C$7,3,2),1),0),VLOOKUP(G194,$N$5:$P$25,IF(F194>$C$7,3,2),1)) -> 0 | I194: 3861 | J194: 19 | K194: 1949 | L194: 2024-05-14
E195: =IF(F194>$C$8,6,7) -> 6 | F195: 2024-05-20 | G195: =G194+H194+J194+IF($C$1="IGEN",IF(I194<100,20,1),1) -> 3862 | H195: =IF(YEAR(F196)=YEAR(F195),IF(MONTH(F196)>MONTH(F195),VLOOKUP(G195,$N$5:$P$25,IF(F195>$C$7,3,2),1),0),VLOOKUP(G195,$N$5:$P$25,IF(F195>$C$7,3,2),1)) -> 0 | I195: 3881 | J195: =IF(G195-I195<0,I195-G195,0) -> 19 | K195: 1968 | L195: =F195 -> 2024-05-20
E196: 6 | F196: =F195+E196 -> 2024-05-26 | G196: 3882 | H196: =IF(YEAR(F197)=YEAR(F196),IF(MONTH(F197)>MONTH(F196),VLOOKUP(G196,$N$5:$P$25,IF(F196>$C$7,3,2),1),0),VLOOKUP(G196,$N$5:$P$25,IF(F196>$C$7,3,2),1)) -> 5 | I196: =I195+20 -> 3901 | J196: 19 | K196: =J196+K195 -> 1987 | L196: 2024-05-26
E197: 6 | F197: 2024-06-01 | G197: 3907 | H197: =IF(YEAR(F198)=YEAR(F197),IF(MONTH(F198)>MONTH(F197),VLOOKUP(G197,$N$5:$P$25,IF(F197>$C$7,3,2),1),0),VLOOKUP(G197,$N$5:$P$25,IF(F197>$C$7,3,2),1)) -> 0 | I197: 3921 | J197: 14 | K197: 2001 | L197: 2024-06-01
E198: 6 | F198: 2024-06-07 | G198: 3922 | H198: =IF(YEAR(F199)=YEAR(F198),IF(MONTH(F199)>MONTH(F198),VLOOKUP(G198,$N$5:$P$25,IF(F198>$C$7,3,2),1),0),VLOOKUP(G198,$N$5:$P$25,IF(F198>$C$7,3,2),1)) -> 0 | I198: 3941 | J198: 19 | K198: 2020 | L198: 2024-06-07
E199: 6 | F199: 2024-06-13 | G199: 3942 | H199: =IF(YEAR(F200)=YEAR(F199),IF(MONTH(F200)>MONTH(F199),VLOOKUP(G199,$N$5:$P$25,IF(F199>$C$7,3,2),1),0),VLOOKUP(G199,$N$5:$P$25,IF(F199>$C$7,3,2),1)) -> 0 | I199: 3961 | J199: 19 | K199: 2039 | L199: 2024-06-13
E200: 6 | F200: 2024-06-19 | G200: 3962 | H200: =IF(YEAR(F201)=YEAR(F200),IF(MONTH(F201)>MONTH(F200),VLOOKUP(G200,$N$5:$P$25,IF(F200>$C$7,3,2),1),0),VLOOKUP(G200,$N$5:$P$25,IF(F200>$C$7,3,2),1)) -> 0 | I200: 3981 | J200: 19 | K200: 2058 | L200: 2024-06-19
... 310 more rows
